{"text_format":"1","workbook":"xlsx","n_sheets":8,"sheets":["Property Info","Table 1","Table 2","Table 3","Table 4","777 Water","777 Soil","Organoleptics"],"not_rendered":{"charts":0,"images":0,"macros":1,"external_links":0,"defined_names":8,"comments":2,"pivot_tables":0},"unopened":[],"bounds":{"document_bytes":16777216,"sheet_cells":100000,"rows_first":2000,"rows_last":500,"rows_between":2000,"halvings":0,"cell_chars":16384,"cell_head_chars":4096},"cells_cut":0,"cells_raw":0,"read":"whole","date_system":"1900"}

{"sheet":"Property Info","index":0,"n_rows":33,"n_cols":10,"rows_kept":33,"cut":false,"hidden":false,"merged":[[0,0,0,9],[5,6,5,7],[5,8,5,9]]}
["Contamination Notification Data Collection - Off-site Property Information"]
[null,"Site Name"]
[null,"Site ID"]
[]
[]
["Property Map ID","Parcel ID","Property Name","Property Address","Property Owner Name","Property Owner Address","Groundwater",null,"Soil"]
["(A,B,C…)","(If known)","(If known)","(If known)","(If known)","(If known)","Confirmed","Suspected","Confirmed","Suspected"]
["A"]
["B"]
["C"]
["D"]
["E"]
["F"]
["G"]
["H"]
["I"]
["J"]
["K"]
["L"]
["M"]
["N"]
["O"]
["P"]
["Q"]
["R"]
["S"]
["T"]
["U"]
["V"]
["W"]
["X"]
["Y"]
["Z"]

{"sheet":"Table 1","index":1,"n_rows":37,"n_cols":18,"rows_kept":37,"cut":false,"hidden":false,"merged":[[0,0,0,11],[1,9,1,10],[2,9,2,10],[1,2,1,5],[2,2,2,5]]}
["Table 1 - Groundwater Data for Properties with Contaminated Wells"]
[null,"Site Name -",{"$f":"'Property Info'!C2","v":0},null,null,null,null,null,"Source of data - ","<report type & date>"]
[null,"Site ID",{"$f":"'Property Info'!C3","v":0},null,null,null,null,null,"Consultant Company Name - "]
[]
["Property ID","Property Name","Sample ID","Sample Type (DP, IW, MW, PW, O)*","Sample Date","Contaminant","Concentration","Health-Based CTL Value ","Health-Based CTL Exceeded","CTL Value Based on Nuisance, Organoleptic or Aesthetic Concerns","Nuisance, Organoleptic or Aesthetic CTL Exceeded","Source of Data\n(Report type & Date;\nApproved OR Not approved)"]
["(A,B,C…)","(if known)",null,null,null,"(Name)","(in µg/L)","(in µg/L)","(Yes or No)","(in µg/L)","(Yes or No)",null,null,null,null,null,"Sample Type"]
[null,{"$f":"IF(ISBLANK(A7),\"\",VLOOKUP(A7,'Property Info'!$A$8:$C$33,2,FALSE))","v":""},null,null,null,null,null,{"$f":"IF(ISBLANK(F7),\"\",VLOOKUP(F7,'777 Water'!$D$4:$J$542,6,FALSE))","v":""},{"$f":"IF(AND(ISNUMBER(G7),H7>0),IF(H7=\"Secondary\",\"-\",IF(G7>H7,\"Yes\",\"No\")),\"\")","v":""},{"$f":"IF(ISBLANK(F7),\"\",VLOOKUP(F7,'777 Water'!$D$4:$J$542,7,FALSE))","v":""},{"$f":"IF(AND(ISNUMBER(G7),J7>0),IF(J7=\"-\",J7,IF(G7>J7,\"Yes\",\"No\")),\"\")","v":""},null,null,null,null,2,"MW","Monitoring Well"]
[null,{"$f":"IF(ISBLANK(A8),\"\",VLOOKUP(A8,'Property Info'!$A$8:$C$33,2,FALSE))","v":""},null,null,null,null,null,{"$f":"IF(ISBLANK(F8),\"\",VLOOKUP(F8,'777 Water'!$D$4:$J$542,6,FALSE))","v":""},{"$f":"IF(AND(ISNUMBER(G8),H8>0),IF(H8=\"Secondary\",\"-\",IF(G8>H8,\"Yes\",\"No\")),\"\")","v":""},{"$f":"IF(ISBLANK(F8),\"\",VLOOKUP(F8,'777 Water'!$D$4:$J$542,7,FALSE))","v":""},{"$f":"IF(AND(ISNUMBER(G8),J8>0),IF(J8=\"-\",J8,IF(G8>J8,\"Yes\",\"No\")),\"\")","v":""},null,null,null,null,null,"DP","Direct Push"]
[null,{"$f":"IF(ISBLANK(A9),\"\",VLOOKUP(A9,'Property Info'!$A$8:$C$33,2,FALSE))","v":""},null,null,null,null,null,{"$f":"IF(ISBLANK(F9),\"\",VLOOKUP(F9,'777 Water'!$D$4:$J$542,6,FALSE))","v":""},{"$f":"IF(AND(ISNUMBER(G9),H9>0),IF(H9=\"Secondary\",\"-\",IF(G9>H9,\"Yes\",\"No\")),\"\")","v":""},{"$f":"IF(ISBLANK(F9),\"\",VLOOKUP(F9,'777 Water'!$D$4:$J$542,7,FALSE))","v":""},"",null,null,null,null,null,"IW","Irrigation Well"]
[null,{"$f":"IF(ISBLANK(A10),\"\",VLOOKUP(A10,'Property Info'!$A$8:$C$33,2,FALSE))","v":""},null,null,null,null,null,{"$f":"IF(ISBLANK(F10),\"\",VLOOKUP(F10,'777 Water'!$D$4:$J$542,6,FALSE))","v":""},{"$f":"IF(AND(ISNUMBER(G10),H10>0),IF(H10=\"Secondary\",\"-\",IF(G10>H10,\"Yes\",\"No\")),\"\")","v":""},{"$f":"IF(ISBLANK(F10),\"\",VLOOKUP(F10,'777 Water'!$D$4:$J$542,7,FALSE))","v":""},"",null,null,null,null,null,"PW","Potable Well"]
[null,{"$f":"IF(ISBLANK(A11),\"\",VLOOKUP(A11,'Property Info'!$A$8:$C$33,2,FALSE))","v":""},null,null,null,null,null,{"$f":"IF(ISBLANK(F11),\"\",VLOOKUP(F11,'777 Water'!$D$4:$J$542,6,FALSE))","v":""},{"$f":"IF(AND(ISNUMBER(G11),H11>0),IF(H11=\"Secondary\",\"-\",IF(G11>H11,\"Yes\",\"No\")),\"\")","v":""},{"$f":"IF(ISBLANK(F11),\"\",VLOOKUP(F11,'777 Water'!$D$4:$J$542,7,FALSE))","v":""},"",null,null,null,null,null,"Other","Other Sample Type"]
[null,{"$f":"IF(ISBLANK(A12),\"\",VLOOKUP(A12,'Property Info'!$A$8:$C$33,2,FALSE))","v":""},null,null,null,null,null,{"$f":"IF(ISBLANK(F12),\"\",VLOOKUP(F12,'777 Water'!$D$4:$J$542,6,FALSE))","v":""},{"$f":"IF(AND(ISNUMBER(G12),H12>0),IF(H12=\"Secondary\",\"-\",IF(G12>H12,\"Yes\",\"No\")),\"\")","v":""},{"$f":"IF(ISBLANK(F12),\"\",VLOOKUP(F12,'777 Water'!$D$4:$J$542,7,FALSE))","v":""},""]
[null,{"$f":"IF(ISBLANK(A13),\"\",VLOOKUP(A13,'Property Info'!$A$8:$C$33,2,FALSE))","v":""},null,null,null,null,null,{"$f":"IF(ISBLANK(F13),\"\",VLOOKUP(F13,'777 Water'!$D$4:$J$542,6,FALSE))","v":""},"",{"$f":"IF(ISBLANK(F13),\"\",VLOOKUP(F13,'777 Water'!$D$4:$J$542,7,FALSE))","v":""},""]
[null,{"$f":"IF(ISBLANK(A14),\"\",VLOOKUP(A14,'Property Info'!$A$8:$C$33,2,FALSE))","v":""},null,null,null,null,null,{"$f":"IF(ISBLANK(F14),\"\",VLOOKUP(F14,'777 Water'!$D$4:$J$542,6,FALSE))","v":""},"",{"$f":"IF(ISBLANK(F14),\"\",VLOOKUP(F14,'777 Water'!$D$4:$J$542,7,FALSE))","v":""},""]
[null,{"$f":"IF(ISBLANK(A15),\"\",VLOOKUP(A15,'Property Info'!$A$8:$C$33,2,FALSE))","v":""},null,null,null,null,null,{"$f":"IF(ISBLANK(F15),\"\",VLOOKUP(F15,'777 Water'!$D$4:$J$542,6,FALSE))","v":""},"",{"$f":"IF(ISBLANK(F15),\"\",VLOOKUP(F15,'777 Water'!$D$4:$J$542,7,FALSE))","v":""},""]
[null,{"$f":"IF(ISBLANK(A16),\"\",VLOOKUP(A16,'Property Info'!$A$8:$C$33,2,FALSE))","v":""},null,null,null,null,null,{"$f":"IF(ISBLANK(F16),\"\",VLOOKUP(F16,'777 Water'!$D$4:$J$542,6,FALSE))","v":""},"",{"$f":"IF(ISBLANK(F16),\"\",VLOOKUP(F16,'777 Water'!$D$4:$J$542,7,FALSE))","v":""},""]
[null,{"$f":"IF(ISBLANK(A17),\"\",VLOOKUP(A17,'Property Info'!$A$8:$C$33,2,FALSE))","v":""},null,null,null,null,null,{"$f":"IF(ISBLANK(F17),\"\",VLOOKUP(F17,'777 Water'!$D$4:$J$542,6,FALSE))","v":""},"",{"$f":"IF(ISBLANK(F17),\"\",VLOOKUP(F17,'777 Water'!$D$4:$J$542,7,FALSE))","v":""},""]
[null,{"$f":"IF(ISBLANK(A18),\"\",VLOOKUP(A18,'Property Info'!$A$8:$C$33,2,FALSE))","v":""},null,null,null,null,null,{"$f":"IF(ISBLANK(F18),\"\",VLOOKUP(F18,'777 Water'!$D$4:$J$542,6,FALSE))","v":""},"",{"$f":"IF(ISBLANK(F18),\"\",VLOOKUP(F18,'777 Water'!$D$4:$J$542,7,FALSE))","v":""},""]
[null,{"$f":"IF(ISBLANK(A19),\"\",VLOOKUP(A19,'Property Info'!$A$8:$C$33,2,FALSE))","v":""},null,null,null,null,null,{"$f":"IF(ISBLANK(F19),\"\",VLOOKUP(F19,'777 Water'!$D$4:$J$542,6,FALSE))","v":""},"",{"$f":"IF(ISBLANK(F19),\"\",VLOOKUP(F19,'777 Water'!$D$4:$J$542,7,FALSE))","v":""},""]
[null,{"$f":"IF(ISBLANK(A20),\"\",VLOOKUP(A20,'Property Info'!$A$8:$C$33,2,FALSE))","v":""},null,null,null,null,null,{"$f":"IF(ISBLANK(F20),\"\",VLOOKUP(F20,'777 Water'!$D$4:$J$542,6,FALSE))","v":""},"",{"$f":"IF(ISBLANK(F20),\"\",VLOOKUP(F20,'777 Water'!$D$4:$J$542,7,FALSE))","v":""},""]
[null,{"$f":"IF(ISBLANK(A21),\"\",VLOOKUP(A21,'Property Info'!$A$8:$C$33,2,FALSE))","v":""},null,null,null,null,null,{"$f":"IF(ISBLANK(F21),\"\",VLOOKUP(F21,'777 Water'!$D$4:$J$542,6,FALSE))","v":""},"",{"$f":"IF(ISBLANK(F21),\"\",VLOOKUP(F21,'777 Water'!$D$4:$J$542,7,FALSE))","v":""},""]
[null,{"$f":"IF(ISBLANK(A22),\"\",VLOOKUP(A22,'Property Info'!$A$8:$C$33,2,FALSE))","v":""},null,null,null,null,null,{"$f":"IF(ISBLANK(F22),\"\",VLOOKUP(F22,'777 Water'!$D$4:$J$542,6,FALSE))","v":""},"",{"$f":"IF(ISBLANK(F22),\"\",VLOOKUP(F22,'777 Water'!$D$4:$J$542,7,FALSE))","v":""},""]
[null,{"$f":"IF(ISBLANK(A23),\"\",VLOOKUP(A23,'Property Info'!$A$8:$C$33,2,FALSE))","v":""},null,null,null,null,null,{"$f":"IF(ISBLANK(F23),\"\",VLOOKUP(F23,'777 Water'!$D$4:$J$542,6,FALSE))","v":""},"",{"$f":"IF(ISBLANK(F23),\"\",VLOOKUP(F23,'777 Water'!$D$4:$J$542,7,FALSE))","v":""},""]
[null,{"$f":"IF(ISBLANK(A24),\"\",VLOOKUP(A24,'Property Info'!$A$8:$C$33,2,FALSE))","v":""},null,null,null,null,null,{"$f":"IF(ISBLANK(F24),\"\",VLOOKUP(F24,'777 Water'!$D$4:$J$542,6,FALSE))","v":""},"",{"$f":"IF(ISBLANK(F24),\"\",VLOOKUP(F24,'777 Water'!$D$4:$J$542,7,FALSE))","v":""},""]
[null,{"$f":"IF(ISBLANK(A25),\"\",VLOOKUP(A25,'Property Info'!$A$8:$C$33,2,FALSE))","v":""},null,null,null,null,null,{"$f":"IF(ISBLANK(F25),\"\",VLOOKUP(F25,'777 Water'!$D$4:$J$542,6,FALSE))","v":""},"",{"$f":"IF(ISBLANK(F25),\"\",VLOOKUP(F25,'777 Water'!$D$4:$J$542,7,FALSE))","v":""},""]
[null,{"$f":"IF(ISBLANK(A26),\"\",VLOOKUP(A26,'Property Info'!$A$8:$C$33,2,FALSE))","v":""},null,null,null,null,null,{"$f":"IF(ISBLANK(F26),\"\",VLOOKUP(F26,'777 Water'!$D$4:$J$542,6,FALSE))","v":""},"",{"$f":"IF(ISBLANK(F26),\"\",VLOOKUP(F26,'777 Water'!$D$4:$J$542,7,FALSE))","v":""},""]
[null,{"$f":"IF(ISBLANK(A27),\"\",VLOOKUP(A27,'Property Info'!$A$8:$C$33,2,FALSE))","v":""},null,null,null,null,null,{"$f":"IF(ISBLANK(F27),\"\",VLOOKUP(F27,'777 Water'!$D$4:$J$542,6,FALSE))","v":""},"",{"$f":"IF(ISBLANK(F27),\"\",VLOOKUP(F27,'777 Water'!$D$4:$J$542,7,FALSE))","v":""},""]
[null,{"$f":"IF(ISBLANK(A28),\"\",VLOOKUP(A28,'Property Info'!$A$8:$C$33,2,FALSE))","v":""},null,null,null,null,null,{"$f":"IF(ISBLANK(F28),\"\",VLOOKUP(F28,'777 Water'!$D$4:$J$542,6,FALSE))","v":""},"",{"$f":"IF(ISBLANK(F28),\"\",VLOOKUP(F28,'777 Water'!$D$4:$J$542,7,FALSE))","v":""},""]
[null,{"$f":"IF(ISBLANK(A29),\"\",VLOOKUP(A29,'Property Info'!$A$8:$C$33,2,FALSE))","v":""},null,null,null,null,null,{"$f":"IF(ISBLANK(F29),\"\",VLOOKUP(F29,'777 Water'!$D$4:$J$542,6,FALSE))","v":""},"",{"$f":"IF(ISBLANK(F29),\"\",VLOOKUP(F29,'777 Water'!$D$4:$J$542,7,FALSE))","v":""},""]
[null,{"$f":"IF(ISBLANK(A30),\"\",VLOOKUP(A30,'Property Info'!$A$8:$C$33,2,FALSE))","v":""},null,null,null,null,null,{"$f":"IF(ISBLANK(F30),\"\",VLOOKUP(F30,'777 Water'!$D$4:$J$542,6,FALSE))","v":""},"",{"$f":"IF(ISBLANK(F30),\"\",VLOOKUP(F30,'777 Water'!$D$4:$J$542,7,FALSE))","v":""},""]
[null,{"$f":"IF(ISBLANK(A31),\"\",VLOOKUP(A31,'Property Info'!$A$8:$C$33,2,FALSE))","v":""},null,null,null,null,null,{"$f":"IF(ISBLANK(F31),\"\",VLOOKUP(F31,'777 Water'!$D$4:$J$542,6,FALSE))","v":""},"",{"$f":"IF(ISBLANK(F31),\"\",VLOOKUP(F31,'777 Water'!$D$4:$J$542,7,FALSE))","v":""},""]
[null,{"$f":"IF(ISBLANK(A32),\"\",VLOOKUP(A32,'Property Info'!$A$8:$C$33,2,FALSE))","v":""},null,null,null,null,null,{"$f":"IF(ISBLANK(F32),\"\",VLOOKUP(F32,'777 Water'!$D$4:$J$542,6,FALSE))","v":""},"",{"$f":"IF(ISBLANK(F32),\"\",VLOOKUP(F32,'777 Water'!$D$4:$J$542,7,FALSE))","v":""},""]
[null,{"$f":"IF(ISBLANK(A33),\"\",VLOOKUP(A33,'Property Info'!$A$8:$C$33,2,FALSE))","v":""},null,null,null,null,null,{"$f":"IF(ISBLANK(F33),\"\",VLOOKUP(F33,'777 Water'!$D$4:$J$542,6,FALSE))","v":""},"",{"$f":"IF(ISBLANK(F33),\"\",VLOOKUP(F33,'777 Water'!$D$4:$J$542,7,FALSE))","v":""},""]
[null,{"$f":"IF(ISBLANK(A34),\"\",VLOOKUP(A34,'Property Info'!$A$8:$C$33,2,FALSE))","v":""},null,null,null,null,null,{"$f":"IF(ISBLANK(F34),\"\",VLOOKUP(F34,'777 Water'!$D$4:$J$542,6,FALSE))","v":""},"",{"$f":"IF(ISBLANK(F34),\"\",VLOOKUP(F34,'777 Water'!$D$4:$J$542,7,FALSE))","v":""},""]
[null,{"$f":"IF(ISBLANK(A35),\"\",VLOOKUP(A35,'Property Info'!$A$8:$C$33,2,FALSE))","v":""},null,null,null,null,null,{"$f":"IF(ISBLANK(F35),\"\",VLOOKUP(F35,'777 Water'!$D$4:$J$542,6,FALSE))","v":""},"",{"$f":"IF(ISBLANK(F35),\"\",VLOOKUP(F35,'777 Water'!$D$4:$J$542,7,FALSE))","v":""},""]
[null,{"$f":"IF(ISBLANK(A36),\"\",VLOOKUP(A36,'Property Info'!$A$8:$C$33,2,FALSE))","v":""},null,null,null,null,null,{"$f":"IF(ISBLANK(F36),\"\",VLOOKUP(F36,'777 Water'!$D$4:$J$542,6,FALSE))","v":""},"",{"$f":"IF(ISBLANK(F36),\"\",VLOOKUP(F36,'777 Water'!$D$4:$J$542,7,FALSE))","v":""},""]
[null,null,"* DP = direct push, IW = irrigation well, MW = monitoring well, PW = potable well, O = other"]

{"sheet":"Table 2","index":2,"n_rows":37,"n_cols":18,"rows_kept":37,"cut":false,"hidden":false,"merged":[[2,2,2,5],[0,0,0,11],[1,2,1,5]]}
["Table 2 - Groundwater Data for Properties with No Wells"]
[null,"Site Name -",{"$f":"'Property Info'!C2","v":0}]
[null,"Site ID",{"$f":"'Property Info'!C3","v":0}]
[]
["Property ID","Property Name","Boundary Sample ID","Boundary Sample Type (DP, IW, MW, PW, O)*","Sample Date","Contaminant","Concentration","Health-Based CTL Value ","Health-Based CTL Exceeded","CTL Value Based on Nuisance, Organoleptic or Aesthetic Concerns","Nuisance, Organoleptic or Aesthetic CTL Exceeded","Source of Data\n(Report type & Date;\nApproved OR Not approved)"]
["(A,B,C…)","(if known)",null,null,null,"(Name)","(in µg/L)","(in µg/L)","(Yes or No)","(in µg/L)","(Yes or No)",null,null,null,null,null,"Sample Type"]
[null,{"$f":"IF(ISBLANK(A7),\"\",VLOOKUP(A7,'Property Info'!$A$8:$C$33,2,FALSE))","v":""},null,null,null,null,null,{"$f":"IF(ISBLANK(F7),\"\",VLOOKUP(F7,'777 Water'!$D$4:$J$542,6,FALSE))","v":""},{"$f":"IF(AND(ISNUMBER(G7),H7>0),IF(H7=\"Secondary\",\"-\",IF(G7>H7,\"Yes\",\"No\")),\"\")","v":""},{"$f":"IF(ISBLANK(F7),\"\",VLOOKUP(F7,'777 Water'!$D$4:$J$542,7,FALSE))","v":""},{"$f":"IF(AND(ISNUMBER(G7),J7>0),IF(J7=\"-\",J7,IF(G7>J7,\"Yes\",\"No\")),\"\")","v":""},null,null,null,null,2,"MW","Monitoring Well"]
[null,null,null,null,null,null,null,{"$f":"IF(ISBLANK(F8),\"\",VLOOKUP(F8,'777 Water'!$D$4:$J$542,6,FALSE))","v":""},{"$f":"IF(AND(ISNUMBER(G8),H8>0),IF(H8=\"Secondary\",\"-\",IF(G8>H8,\"Yes\",\"No\")),\"\")","v":""},{"$f":"IF(ISBLANK(F8),\"\",VLOOKUP(F8,'777 Water'!$D$4:$J$542,7,FALSE))","v":""},{"$f":"IF(AND(ISNUMBER(G8),J8>0),IF(J8=\"-\",J8,IF(G8>J8,\"Yes\",\"No\")),\"\")","v":""},null,null,null,null,null,"DP","Direct Push"]
[null,null,null,null,null,null,null,{"$f":"IF(ISBLANK(F9),\"\",VLOOKUP(F9,'777 Water'!$D$4:$J$542,6,FALSE))","v":""},{"$f":"IF(AND(ISNUMBER(G9),H9>0),IF(H9=\"Secondary\",\"-\",IF(G9>H9,\"Yes\",\"No\")),\"\")","v":""},{"$f":"IF(ISBLANK(F9),\"\",VLOOKUP(F9,'777 Water'!$D$4:$J$542,7,FALSE))","v":""},"",null,null,null,null,null,"IW","Irrigation Well"]
[null,null,null,null,null,null,null,{"$f":"IF(ISBLANK(F10),\"\",VLOOKUP(F10,'777 Water'!$D$4:$J$542,6,FALSE))","v":""},{"$f":"IF(AND(ISNUMBER(G10),H10>0),IF(H10=\"Secondary\",\"-\",IF(G10>H10,\"Yes\",\"No\")),\"\")","v":""},{"$f":"IF(ISBLANK(F10),\"\",VLOOKUP(F10,'777 Water'!$D$4:$J$542,7,FALSE))","v":""},"",null,null,null,null,null,"PW","Potable Well"]
[null,null,null,null,null,null,null,{"$f":"IF(ISBLANK(F11),\"\",VLOOKUP(F11,'777 Water'!$D$4:$J$542,6,FALSE))","v":""},{"$f":"IF(AND(ISNUMBER(G11),H11>0),IF(H11=\"Secondary\",\"-\",IF(G11>H11,\"Yes\",\"No\")),\"\")","v":""},{"$f":"IF(ISBLANK(F11),\"\",VLOOKUP(F11,'777 Water'!$D$4:$J$542,7,FALSE))","v":""},"",null,null,null,null,null,"Other","Other Sample Type"]
[null,null,null,null,null,null,null,{"$f":"IF(ISBLANK(F12),\"\",VLOOKUP(F12,'777 Water'!$D$4:$J$542,6,FALSE))","v":""},{"$f":"IF(AND(ISNUMBER(G12),H12>0),IF(H12=\"Secondary\",\"-\",IF(G12>H12,\"Yes\",\"No\")),\"\")","v":""},{"$f":"IF(ISBLANK(F12),\"\",VLOOKUP(F12,'777 Water'!$D$4:$J$542,7,FALSE))","v":""},""]
[null,null,null,null,null,null,null,{"$f":"IF(ISBLANK(F13),\"\",VLOOKUP(F13,'777 Water'!$D$4:$J$542,6,FALSE))","v":""},"",{"$f":"IF(ISBLANK(F13),\"\",VLOOKUP(F13,'777 Water'!$D$4:$J$542,7,FALSE))","v":""},""]
[null,null,null,null,null,null,null,{"$f":"IF(ISBLANK(F14),\"\",VLOOKUP(F14,'777 Water'!$D$4:$J$542,6,FALSE))","v":""},"",{"$f":"IF(ISBLANK(F14),\"\",VLOOKUP(F14,'777 Water'!$D$4:$J$542,7,FALSE))","v":""},""]
[null,null,null,null,null,null,null,{"$f":"IF(ISBLANK(F15),\"\",VLOOKUP(F15,'777 Water'!$D$4:$J$542,6,FALSE))","v":""},"",{"$f":"IF(ISBLANK(F15),\"\",VLOOKUP(F15,'777 Water'!$D$4:$J$542,7,FALSE))","v":""},""]
[null,null,null,null,null,null,null,{"$f":"IF(ISBLANK(F16),\"\",VLOOKUP(F16,'777 Water'!$D$4:$J$542,6,FALSE))","v":""},"",{"$f":"IF(ISBLANK(F16),\"\",VLOOKUP(F16,'777 Water'!$D$4:$J$542,7,FALSE))","v":""},""]
[null,null,null,null,null,null,null,{"$f":"IF(ISBLANK(F17),\"\",VLOOKUP(F17,'777 Water'!$D$4:$J$542,6,FALSE))","v":""},"",{"$f":"IF(ISBLANK(F17),\"\",VLOOKUP(F17,'777 Water'!$D$4:$J$542,7,FALSE))","v":""},""]
[null,null,null,null,null,null,null,{"$f":"IF(ISBLANK(F18),\"\",VLOOKUP(F18,'777 Water'!$D$4:$J$542,6,FALSE))","v":""},"",{"$f":"IF(ISBLANK(F18),\"\",VLOOKUP(F18,'777 Water'!$D$4:$J$542,7,FALSE))","v":""},""]
[null,null,null,null,null,null,null,{"$f":"IF(ISBLANK(F19),\"\",VLOOKUP(F19,'777 Water'!$D$4:$J$542,6,FALSE))","v":""},"",{"$f":"IF(ISBLANK(F19),\"\",VLOOKUP(F19,'777 Water'!$D$4:$J$542,7,FALSE))","v":""},""]
[null,null,null,null,null,null,null,{"$f":"IF(ISBLANK(F20),\"\",VLOOKUP(F20,'777 Water'!$D$4:$J$542,6,FALSE))","v":""},"",{"$f":"IF(ISBLANK(F20),\"\",VLOOKUP(F20,'777 Water'!$D$4:$J$542,7,FALSE))","v":""},""]
[null,null,null,null,null,null,null,{"$f":"IF(ISBLANK(F21),\"\",VLOOKUP(F21,'777 Water'!$D$4:$J$542,6,FALSE))","v":""},"",{"$f":"IF(ISBLANK(F21),\"\",VLOOKUP(F21,'777 Water'!$D$4:$J$542,7,FALSE))","v":""},""]
[null,null,null,null,null,null,null,{"$f":"IF(ISBLANK(F22),\"\",VLOOKUP(F22,'777 Water'!$D$4:$J$542,6,FALSE))","v":""},"",{"$f":"IF(ISBLANK(F22),\"\",VLOOKUP(F22,'777 Water'!$D$4:$J$542,7,FALSE))","v":""},""]
[null,null,null,null,null,null,null,{"$f":"IF(ISBLANK(F23),\"\",VLOOKUP(F23,'777 Water'!$D$4:$J$542,6,FALSE))","v":""},"",{"$f":"IF(ISBLANK(F23),\"\",VLOOKUP(F23,'777 Water'!$D$4:$J$542,7,FALSE))","v":""},""]
[null,null,null,null,null,null,null,{"$f":"IF(ISBLANK(F24),\"\",VLOOKUP(F24,'777 Water'!$D$4:$J$542,6,FALSE))","v":""},"",{"$f":"IF(ISBLANK(F24),\"\",VLOOKUP(F24,'777 Water'!$D$4:$J$542,7,FALSE))","v":""},""]
[null,null,null,null,null,null,null,{"$f":"IF(ISBLANK(F25),\"\",VLOOKUP(F25,'777 Water'!$D$4:$J$542,6,FALSE))","v":""},"",{"$f":"IF(ISBLANK(F25),\"\",VLOOKUP(F25,'777 Water'!$D$4:$J$542,7,FALSE))","v":""},""]
[null,null,null,null,null,null,null,{"$f":"IF(ISBLANK(F26),\"\",VLOOKUP(F26,'777 Water'!$D$4:$J$542,6,FALSE))","v":""},"",{"$f":"IF(ISBLANK(F26),\"\",VLOOKUP(F26,'777 Water'!$D$4:$J$542,7,FALSE))","v":""},""]
[null,null,null,null,null,null,null,{"$f":"IF(ISBLANK(F27),\"\",VLOOKUP(F27,'777 Water'!$D$4:$J$542,6,FALSE))","v":""},"",{"$f":"IF(ISBLANK(F27),\"\",VLOOKUP(F27,'777 Water'!$D$4:$J$542,7,FALSE))","v":""},""]
[null,null,null,null,null,null,null,{"$f":"IF(ISBLANK(F28),\"\",VLOOKUP(F28,'777 Water'!$D$4:$J$542,6,FALSE))","v":""},"",{"$f":"IF(ISBLANK(F28),\"\",VLOOKUP(F28,'777 Water'!$D$4:$J$542,7,FALSE))","v":""},""]
[null,null,null,null,null,null,null,{"$f":"IF(ISBLANK(F29),\"\",VLOOKUP(F29,'777 Water'!$D$4:$J$542,6,FALSE))","v":""},"",{"$f":"IF(ISBLANK(F29),\"\",VLOOKUP(F29,'777 Water'!$D$4:$J$542,7,FALSE))","v":""},""]
[null,null,null,null,null,null,null,{"$f":"IF(ISBLANK(F30),\"\",VLOOKUP(F30,'777 Water'!$D$4:$J$542,6,FALSE))","v":""},"",{"$f":"IF(ISBLANK(F30),\"\",VLOOKUP(F30,'777 Water'!$D$4:$J$542,7,FALSE))","v":""},""]
[null,null,null,null,null,null,null,{"$f":"IF(ISBLANK(F31),\"\",VLOOKUP(F31,'777 Water'!$D$4:$J$542,6,FALSE))","v":""},"",{"$f":"IF(ISBLANK(F31),\"\",VLOOKUP(F31,'777 Water'!$D$4:$J$542,7,FALSE))","v":""},""]
[null,null,null,null,null,null,null,{"$f":"IF(ISBLANK(F32),\"\",VLOOKUP(F32,'777 Water'!$D$4:$J$542,6,FALSE))","v":""},"",{"$f":"IF(ISBLANK(F32),\"\",VLOOKUP(F32,'777 Water'!$D$4:$J$542,7,FALSE))","v":""},""]
[null,null,null,null,null,null,null,{"$f":"IF(ISBLANK(F33),\"\",VLOOKUP(F33,'777 Water'!$D$4:$J$542,6,FALSE))","v":""},"",{"$f":"IF(ISBLANK(F33),\"\",VLOOKUP(F33,'777 Water'!$D$4:$J$542,7,FALSE))","v":""},""]
[null,null,null,null,null,null,null,{"$f":"IF(ISBLANK(F34),\"\",VLOOKUP(F34,'777 Water'!$D$4:$J$542,6,FALSE))","v":""},"",{"$f":"IF(ISBLANK(F34),\"\",VLOOKUP(F34,'777 Water'!$D$4:$J$542,7,FALSE))","v":""},""]
[null,null,null,null,null,null,null,{"$f":"IF(ISBLANK(F35),\"\",VLOOKUP(F35,'777 Water'!$D$4:$J$542,6,FALSE))","v":""},"",{"$f":"IF(ISBLANK(F35),\"\",VLOOKUP(F35,'777 Water'!$D$4:$J$542,7,FALSE))","v":""},""]
[null,null,null,null,null,null,null,{"$f":"IF(ISBLANK(F36),\"\",VLOOKUP(F36,'777 Water'!$D$4:$J$542,6,FALSE))","v":""},"",{"$f":"IF(ISBLANK(F36),\"\",VLOOKUP(F36,'777 Water'!$D$4:$J$542,7,FALSE))","v":""},""]
[null,null,null,null,null,null,"* DP = direct push, IW = irrigation well, MW = monitoring well, PW = potable well, O = other"]

{"sheet":"Table 3","index":3,"n_rows":31,"n_cols":13,"rows_kept":31,"cut":false,"hidden":false,"merged":[[0,0,0,12],[2,8,2,9],[3,8,3,9],[1,8,1,9],[1,2,1,5],[2,2,2,5]]}
["Table 3 - Soil Data for Properties with Contaminated Soil Samples"]
[null,"Site Name -",{"$f":"'Property Info'!C2","v":0},null,null,null,null,"Source of data - ","<report type & date>"]
[null,"Site ID",{"$f":"'Property Info'!C3","v":0},null,null,null,null,"Consultant Company Name-"]
[]
["Property ID","Property Name","Sample ID","Sample Date","Contaminant","Concentration\n0-2' BLS","Concentration\n>2' BLS","Residential Direct Exposure  CTL      ","Leachability Based on Groundwater Criteria CTL","Residential Direct Exposure Exceeded\n0-2' BLS","Residential Direct Exposure Exceeded\n>2' BLS","Leachability Exceeded","Source of Data\n(Report type & Date;\nApproved OR Not approved)"]
["(A,B,C…)","(if known)",null,null,"(Name)","(in mg/kg)","(in mg/kg)","(in mg/kg)","(in mg/kg)","(Yes or No)","(Yes or No)","(Yes or No)"]
[null,null,null,null,null,null,null,{"$f":"IF(ISBLANK(E7),\"\",VLOOKUP(E7,'777 Soil'!$D$4:$I$478,4,FALSE))","v":""},{"$f":"IF(ISBLANK(E7),\"\",VLOOKUP(E7,'777 Soil'!$D$4:$I$478,6,FALSE))","v":""},{"$f":"IF(AND(ISNUMBER(F7),H7>0),IF(F7>H7,\"Yes\",\"No\"),\"\")","v":""},{"$f":"IF(AND(ISNUMBER(G7),H7>0),IF(G7>H7,\"Yes\",\"No\"),\"\")","v":""},{"$f":"IF(AND(OR(ISNUMBER(F7),ISNUMBER(G7)),I7>0),IF(OR(AND(ISNUMBER(F7),F7>I7),AND(ISNUMBER(G7),G7>I7)),\"Yes\",\"No\"),\"\")","v":""}]
[null,null,null,null,null,null,null,{"$f":"IF(ISBLANK(E8),\"\",VLOOKUP(E8,'777 Soil'!$D$4:$I$478,4,FALSE))","v":""},{"$f":"IF(ISBLANK(E8),\"\",VLOOKUP(E8,'777 Soil'!$D$4:$I$478,6,FALSE))","v":""},"","",""]
[null,null,null,null,null,null,null,{"$f":"IF(ISBLANK(E9),\"\",VLOOKUP(E9,'777 Soil'!$D$4:$I$478,4,FALSE))","v":""},{"$f":"IF(ISBLANK(E9),\"\",VLOOKUP(E9,'777 Soil'!$D$4:$I$478,6,FALSE))","v":""},"","",""]
[null,null,null,null,null,null,null,{"$f":"IF(ISBLANK(E10),\"\",VLOOKUP(E10,'777 Soil'!$D$4:$I$478,4,FALSE))","v":""},{"$f":"IF(ISBLANK(E10),\"\",VLOOKUP(E10,'777 Soil'!$D$4:$I$478,6,FALSE))","v":""},"","",""]
[null,null,null,null,null,null,null,{"$f":"IF(ISBLANK(E11),\"\",VLOOKUP(E11,'777 Soil'!$D$4:$I$478,4,FALSE))","v":""},{"$f":"IF(ISBLANK(E11),\"\",VLOOKUP(E11,'777 Soil'!$D$4:$I$478,6,FALSE))","v":""},"","",""]
[null,null,null,null,null,null,null,{"$f":"IF(ISBLANK(E12),\"\",VLOOKUP(E12,'777 Soil'!$D$4:$I$478,4,FALSE))","v":""},{"$f":"IF(ISBLANK(E12),\"\",VLOOKUP(E12,'777 Soil'!$D$4:$I$478,6,FALSE))","v":""},"","",""]
[null,null,null,null,null,null,null,{"$f":"IF(ISBLANK(E13),\"\",VLOOKUP(E13,'777 Soil'!$D$4:$I$478,4,FALSE))","v":""},{"$f":"IF(ISBLANK(E13),\"\",VLOOKUP(E13,'777 Soil'!$D$4:$I$478,6,FALSE))","v":""},"","",""]
[null,null,null,null,null,null,null,{"$f":"IF(ISBLANK(E14),\"\",VLOOKUP(E14,'777 Soil'!$D$4:$I$478,4,FALSE))","v":""},{"$f":"IF(ISBLANK(E14),\"\",VLOOKUP(E14,'777 Soil'!$D$4:$I$478,6,FALSE))","v":""},"","",""]
[null,null,null,null,null,null,null,{"$f":"IF(ISBLANK(E15),\"\",VLOOKUP(E15,'777 Soil'!$D$4:$I$478,4,FALSE))","v":""},{"$f":"IF(ISBLANK(E15),\"\",VLOOKUP(E15,'777 Soil'!$D$4:$I$478,6,FALSE))","v":""},"","",""]
[null,null,null,null,null,null,null,{"$f":"IF(ISBLANK(E16),\"\",VLOOKUP(E16,'777 Soil'!$D$4:$I$478,4,FALSE))","v":""},{"$f":"IF(ISBLANK(E16),\"\",VLOOKUP(E16,'777 Soil'!$D$4:$I$478,6,FALSE))","v":""},"","",""]
[null,null,null,null,null,null,null,{"$f":"IF(ISBLANK(E17),\"\",VLOOKUP(E17,'777 Soil'!$D$4:$I$478,4,FALSE))","v":""},{"$f":"IF(ISBLANK(E17),\"\",VLOOKUP(E17,'777 Soil'!$D$4:$I$478,6,FALSE))","v":""},"","",""]
[null,null,null,null,null,null,null,{"$f":"IF(ISBLANK(E18),\"\",VLOOKUP(E18,'777 Soil'!$D$4:$I$478,4,FALSE))","v":""},{"$f":"IF(ISBLANK(E18),\"\",VLOOKUP(E18,'777 Soil'!$D$4:$I$478,6,FALSE))","v":""},"","",""]
[null,null,null,null,null,null,null,{"$f":"IF(ISBLANK(E19),\"\",VLOOKUP(E19,'777 Soil'!$D$4:$I$478,4,FALSE))","v":""},{"$f":"IF(ISBLANK(E19),\"\",VLOOKUP(E19,'777 Soil'!$D$4:$I$478,6,FALSE))","v":""},"","",""]
[null,null,null,null,null,null,null,{"$f":"IF(ISBLANK(E20),\"\",VLOOKUP(E20,'777 Soil'!$D$4:$I$478,4,FALSE))","v":""},{"$f":"IF(ISBLANK(E20),\"\",VLOOKUP(E20,'777 Soil'!$D$4:$I$478,6,FALSE))","v":""},"","",""]
[null,null,null,null,null,null,null,{"$f":"IF(ISBLANK(E21),\"\",VLOOKUP(E21,'777 Soil'!$D$4:$I$478,4,FALSE))","v":""},{"$f":"IF(ISBLANK(E21),\"\",VLOOKUP(E21,'777 Soil'!$D$4:$I$478,6,FALSE))","v":""},"","",""]
[null,null,null,null,null,null,null,{"$f":"IF(ISBLANK(E22),\"\",VLOOKUP(E22,'777 Soil'!$D$4:$I$478,4,FALSE))","v":""},{"$f":"IF(ISBLANK(E22),\"\",VLOOKUP(E22,'777 Soil'!$D$4:$I$478,6,FALSE))","v":""},"","",""]
[null,null,null,null,null,null,null,{"$f":"IF(ISBLANK(E23),\"\",VLOOKUP(E23,'777 Soil'!$D$4:$I$478,4,FALSE))","v":""},{"$f":"IF(ISBLANK(E23),\"\",VLOOKUP(E23,'777 Soil'!$D$4:$I$478,6,FALSE))","v":""},"","",""]
[null,null,null,null,null,null,null,{"$f":"IF(ISBLANK(E24),\"\",VLOOKUP(E24,'777 Soil'!$D$4:$I$478,4,FALSE))","v":""},{"$f":"IF(ISBLANK(E24),\"\",VLOOKUP(E24,'777 Soil'!$D$4:$I$478,6,FALSE))","v":""},"","",""]
[null,null,null,null,null,null,null,{"$f":"IF(ISBLANK(E25),\"\",VLOOKUP(E25,'777 Soil'!$D$4:$I$478,4,FALSE))","v":""},{"$f":"IF(ISBLANK(E25),\"\",VLOOKUP(E25,'777 Soil'!$D$4:$I$478,6,FALSE))","v":""},"","",""]
[null,null,null,null,null,null,null,{"$f":"IF(ISBLANK(E26),\"\",VLOOKUP(E26,'777 Soil'!$D$4:$I$478,4,FALSE))","v":""},{"$f":"IF(ISBLANK(E26),\"\",VLOOKUP(E26,'777 Soil'!$D$4:$I$478,6,FALSE))","v":""},"","",""]
[null,null,null,null,null,null,null,{"$f":"IF(ISBLANK(E27),\"\",VLOOKUP(E27,'777 Soil'!$D$4:$I$478,4,FALSE))","v":""},{"$f":"IF(ISBLANK(E27),\"\",VLOOKUP(E27,'777 Soil'!$D$4:$I$478,6,FALSE))","v":""},"","",""]
[null,null,null,null,null,null,null,{"$f":"IF(ISBLANK(E28),\"\",VLOOKUP(E28,'777 Soil'!$D$4:$I$478,4,FALSE))","v":""},{"$f":"IF(ISBLANK(E28),\"\",VLOOKUP(E28,'777 Soil'!$D$4:$I$478,6,FALSE))","v":""},"","",""]
[null,null,null,null,null,null,null,{"$f":"IF(ISBLANK(E29),\"\",VLOOKUP(E29,'777 Soil'!$D$4:$I$478,4,FALSE))","v":""},{"$f":"IF(ISBLANK(E29),\"\",VLOOKUP(E29,'777 Soil'!$D$4:$I$478,6,FALSE))","v":""},"","",""]
[null,null,null,null,null,null,null,{"$f":"IF(ISBLANK(E30),\"\",VLOOKUP(E30,'777 Soil'!$D$4:$I$478,4,FALSE))","v":""},{"$f":"IF(ISBLANK(E30),\"\",VLOOKUP(E30,'777 Soil'!$D$4:$I$478,6,FALSE))","v":""},"","",""]
[null,null,null,null,null,null,null,{"$f":"IF(ISBLANK(E31),\"\",VLOOKUP(E31,'777 Soil'!$D$4:$I$478,4,FALSE))","v":""},{"$f":"IF(ISBLANK(E31),\"\",VLOOKUP(E31,'777 Soil'!$D$4:$I$478,6,FALSE))","v":""},"","",""]

{"sheet":"Table 4","index":4,"n_rows":32,"n_cols":13,"rows_kept":32,"cut":false,"hidden":false,"merged":[[3,8,3,9],[1,2,1,5],[2,2,2,5],[0,0,0,12]]}
["Table 4 - Soil Data for Properties with No Soil Samples"]
[null,"Site Name -",{"$f":"'Property Info'!C2","v":0}]
[null,"Site ID",{"$f":"'Property Info'!C3","v":0}]
[]
["Property ID","Property Name"," Boundary Sample ID","Sample Date","Contaminant","Concentration\n0-2' BLS","Concentration\n>2' BLS","Residential Direct Exposure  CTL      ","Leachability Based on Groundwater Criteria CTL","Residential Direct Exposure Exceeded\n0-2' BLS","Residential Direct Exposure Exceeded\n>2' BLS","Leachability Exceeded","Source of Data\n(Report type & Date;\nApproved OR Not approved)"]
["(A,B,C…)","(if known)",null,null,"(Name)","(in mg/kg)","(in mg/kg)","(in mg/kg)","(in mg/kg)","(Yes or No)","(Yes or No)","(Yes or No)"]
[null,{"$f":"IF(ISBLANK(A7),\"\",VLOOKUP(A7,'Property Info'!$A$8:$C$33,2,FALSE))","v":""},null,null,null,null,null,null,null,{"$f":"IF(AND(ISNUMBER(F7),H7>0),IF(F7>H7,\"Yes\",\"No\"),\"\")","v":""},{"$f":"IF(AND(ISNUMBER(G7),H7>0),IF(G7>H7,\"Yes\",\"No\"),\"\")","v":""},{"$f":"IF(AND(OR(ISNUMBER(F7),ISNUMBER(G7)),I7>0),IF(OR(AND(ISNUMBER(F7),F7>I7),AND(ISNUMBER(G7),G7>I7)),\"Yes\",\"No\"),\"\")","v":""}]
[null,null,null,null,null,null,null,{"$f":"IF(ISBLANK(E8),\"\",VLOOKUP(E8,'777 Soil'!$D$4:$I$478,4,FALSE))","v":""},{"$f":"IF(ISBLANK(E8),\"\",VLOOKUP(E8,'777 Soil'!$D$4:$I$478,6,FALSE))","v":""},"","",""]
[null,null,null,null,null,null,null,{"$f":"IF(ISBLANK(E9),\"\",VLOOKUP(E9,'777 Soil'!$D$4:$I$478,4,FALSE))","v":""},{"$f":"IF(ISBLANK(E9),\"\",VLOOKUP(E9,'777 Soil'!$D$4:$I$478,6,FALSE))","v":""},"","",""]
[null,null,null,null,null,null,null,{"$f":"IF(ISBLANK(E10),\"\",VLOOKUP(E10,'777 Soil'!$D$4:$I$478,4,FALSE))","v":""},{"$f":"IF(ISBLANK(E10),\"\",VLOOKUP(E10,'777 Soil'!$D$4:$I$478,6,FALSE))","v":""},"","",""]
[null,null,null,null,null,null,null,{"$f":"IF(ISBLANK(E11),\"\",VLOOKUP(E11,'777 Soil'!$D$4:$I$478,4,FALSE))","v":""},{"$f":"IF(ISBLANK(E11),\"\",VLOOKUP(E11,'777 Soil'!$D$4:$I$478,6,FALSE))","v":""},"","",""]
[null,null,null,null,null,null,null,{"$f":"IF(ISBLANK(E12),\"\",VLOOKUP(E12,'777 Soil'!$D$4:$I$478,4,FALSE))","v":""},{"$f":"IF(ISBLANK(E12),\"\",VLOOKUP(E12,'777 Soil'!$D$4:$I$478,6,FALSE))","v":""},"","",""]
[null,null,null,null,null,null,null,{"$f":"IF(ISBLANK(E13),\"\",VLOOKUP(E13,'777 Soil'!$D$4:$I$478,4,FALSE))","v":""},{"$f":"IF(ISBLANK(E13),\"\",VLOOKUP(E13,'777 Soil'!$D$4:$I$478,6,FALSE))","v":""},"","",""]
[null,null,null,null,null,null,null,{"$f":"IF(ISBLANK(E14),\"\",VLOOKUP(E14,'777 Soil'!$D$4:$I$478,4,FALSE))","v":""},{"$f":"IF(ISBLANK(E14),\"\",VLOOKUP(E14,'777 Soil'!$D$4:$I$478,6,FALSE))","v":""},"","",""]
[null,null,null,null,null,null,null,{"$f":"IF(ISBLANK(E15),\"\",VLOOKUP(E15,'777 Soil'!$D$4:$I$478,4,FALSE))","v":""},{"$f":"IF(ISBLANK(E15),\"\",VLOOKUP(E15,'777 Soil'!$D$4:$I$478,6,FALSE))","v":""},"","",""]
[null,null,null,null,null,null,null,{"$f":"IF(ISBLANK(E16),\"\",VLOOKUP(E16,'777 Soil'!$D$4:$I$478,4,FALSE))","v":""},{"$f":"IF(ISBLANK(E16),\"\",VLOOKUP(E16,'777 Soil'!$D$4:$I$478,6,FALSE))","v":""},"","",""]
[null,null,null,null,null,null,null,{"$f":"IF(ISBLANK(E17),\"\",VLOOKUP(E17,'777 Soil'!$D$4:$I$478,4,FALSE))","v":""},{"$f":"IF(ISBLANK(E17),\"\",VLOOKUP(E17,'777 Soil'!$D$4:$I$478,6,FALSE))","v":""},"","",""]
[null,null,null,null,null,null,null,{"$f":"IF(ISBLANK(E18),\"\",VLOOKUP(E18,'777 Soil'!$D$4:$I$478,4,FALSE))","v":""},{"$f":"IF(ISBLANK(E18),\"\",VLOOKUP(E18,'777 Soil'!$D$4:$I$478,6,FALSE))","v":""},"","",""]
[null,null,null,null,null,null,null,{"$f":"IF(ISBLANK(E19),\"\",VLOOKUP(E19,'777 Soil'!$D$4:$I$478,4,FALSE))","v":""},{"$f":"IF(ISBLANK(E19),\"\",VLOOKUP(E19,'777 Soil'!$D$4:$I$478,6,FALSE))","v":""},"","",""]
[null,null,null,null,null,null,null,{"$f":"IF(ISBLANK(E20),\"\",VLOOKUP(E20,'777 Soil'!$D$4:$I$478,4,FALSE))","v":""},{"$f":"IF(ISBLANK(E20),\"\",VLOOKUP(E20,'777 Soil'!$D$4:$I$478,6,FALSE))","v":""},"","",""]
[null,null,null,null,null,null,null,{"$f":"IF(ISBLANK(E21),\"\",VLOOKUP(E21,'777 Soil'!$D$4:$I$478,4,FALSE))","v":""},{"$f":"IF(ISBLANK(E21),\"\",VLOOKUP(E21,'777 Soil'!$D$4:$I$478,6,FALSE))","v":""},"","",""]
[null,null,null,null,null,null,null,{"$f":"IF(ISBLANK(E22),\"\",VLOOKUP(E22,'777 Soil'!$D$4:$I$478,4,FALSE))","v":""},{"$f":"IF(ISBLANK(E22),\"\",VLOOKUP(E22,'777 Soil'!$D$4:$I$478,6,FALSE))","v":""},"","",""]
[null,null,null,null,null,null,null,{"$f":"IF(ISBLANK(E23),\"\",VLOOKUP(E23,'777 Soil'!$D$4:$I$478,4,FALSE))","v":""},{"$f":"IF(ISBLANK(E23),\"\",VLOOKUP(E23,'777 Soil'!$D$4:$I$478,6,FALSE))","v":""},"","",""]
[null,null,null,null,null,null,null,{"$f":"IF(ISBLANK(E24),\"\",VLOOKUP(E24,'777 Soil'!$D$4:$I$478,4,FALSE))","v":""},{"$f":"IF(ISBLANK(E24),\"\",VLOOKUP(E24,'777 Soil'!$D$4:$I$478,6,FALSE))","v":""},"","",""]
[null,null,null,null,null,null,null,{"$f":"IF(ISBLANK(E25),\"\",VLOOKUP(E25,'777 Soil'!$D$4:$I$478,4,FALSE))","v":""},{"$f":"IF(ISBLANK(E25),\"\",VLOOKUP(E25,'777 Soil'!$D$4:$I$478,6,FALSE))","v":""},"","",""]
[null,null,null,null,null,null,null,{"$f":"IF(ISBLANK(E26),\"\",VLOOKUP(E26,'777 Soil'!$D$4:$I$478,4,FALSE))","v":""},{"$f":"IF(ISBLANK(E26),\"\",VLOOKUP(E26,'777 Soil'!$D$4:$I$478,6,FALSE))","v":""},"","",""]
[null,null,null,null,null,null,null,{"$f":"IF(ISBLANK(E27),\"\",VLOOKUP(E27,'777 Soil'!$D$4:$I$478,4,FALSE))","v":""},{"$f":"IF(ISBLANK(E27),\"\",VLOOKUP(E27,'777 Soil'!$D$4:$I$478,6,FALSE))","v":""},"","",""]
[null,null,null,null,null,null,null,{"$f":"IF(ISBLANK(E28),\"\",VLOOKUP(E28,'777 Soil'!$D$4:$I$478,4,FALSE))","v":""},{"$f":"IF(ISBLANK(E28),\"\",VLOOKUP(E28,'777 Soil'!$D$4:$I$478,6,FALSE))","v":""},"","",""]
[null,null,null,null,null,null,null,{"$f":"IF(ISBLANK(E29),\"\",VLOOKUP(E29,'777 Soil'!$D$4:$I$478,4,FALSE))","v":""},{"$f":"IF(ISBLANK(E29),\"\",VLOOKUP(E29,'777 Soil'!$D$4:$I$478,6,FALSE))","v":""},"","",""]
[null,null,null,null,null,null,null,{"$f":"IF(ISBLANK(E30),\"\",VLOOKUP(E30,'777 Soil'!$D$4:$I$478,4,FALSE))","v":""},{"$f":"IF(ISBLANK(E30),\"\",VLOOKUP(E30,'777 Soil'!$D$4:$I$478,6,FALSE))","v":""},"","",""]
[null,null,null,null,null,null,null,{"$f":"IF(ISBLANK(E31),\"\",VLOOKUP(E31,'777 Soil'!$D$4:$I$478,4,FALSE))","v":""},{"$f":"IF(ISBLANK(E31),\"\",VLOOKUP(E31,'777 Soil'!$D$4:$I$478,6,FALSE))","v":""},"","",""]
[null,null,null,null,null,null,null,{"$f":"IF(ISBLANK(E32),\"\",VLOOKUP(E32,'777 Soil'!$D$4:$I$478,4,FALSE))","v":""},{"$f":"IF(ISBLANK(E32),\"\",VLOOKUP(E32,'777 Soil'!$D$4:$I$478,6,FALSE))","v":""},"","",""]

{"sheet":"777 Water","index":5,"n_rows":564,"n_cols":23,"rows_kept":564,"cut":false,"hidden":false,"merged":[]}
[]
["HW Sort","Petrloleum Sort","Seq. Num.","Chemical","Groundwater Criteria","Notes","Health Based CTL (Lookup from Organoleptics tab)","Health Based CTL (Fill in missing values)","Health Based CTL","Orangoleptic or Secondary Standard","Freshwater Surface Water Criteria","Marine Surface Water Criteria","Groundwater of Low Yield/Poor Quality Criteria","Non-Cancer Target Organs/ Systems or Effects","CAS","Carcinogenic","Groundwater","Freshwater","Marine","Notes","Groundwater","Freshwater","Marine"]
[]
[1,null,485,"Tetrachloroethene  [or PCE]",3,"",{"$error":"#N/A"},{"$f":"IF(ISBLANK(E4),\"\",IF(ISNA(G4),E4,G4))","v":3},3,"-",8.85,8.85,30,"Liver ","127-18-4","Yes ","Primary Standard","62-302","62-302",null,"Carcinogen","annual average","annual average"]
[2,null,509,"Trichloroethene  [or TCE]",3,"",{"$error":"#N/A"},3,3,"-",80.7,80.7,30,"None Specified ",28861,"Yes ","Primary Standard","62-302","62-302",null,"Carcinogen","annual average","annual average"]
[3,null,192,"Dichloroethene, cis-1,2-",70,"",{"$error":"#N/A"},70,70,"-",null,null,700,"Blood ","156-59-2",null,"Primary Standard","NA","NA",null,"Systemic Toxicant"]
[4,null,193,"Dichloroethene, trans-1,2-",100,"",{"$error":"#N/A"},100,100,"-",11000,11000,1000,"Blood, Liver ","156-60-5",null,"Primary Standard","Toxicity Criteria","Toxicity Criteria",null,"Systemic Toxicant"]
[5,null,190,"Dichloroethene, 1,1-",7,"**",{"$error":"#N/A"},7,7,"-",3.2,3.2,70,"Liver ","75-35-4",null,"Primary Standard","62-302","62-302",null,"Carcinogen","annual average","annual average"]
[6,null,533,"Vinyl chloride",1,"",{"$error":"#N/A"},1,1,"-",2.4,2.4,10,"Liver ",27398,"Yes ","Primary Standard","Human Health","Human Health","(d)","Carcinogen"]
[7,null,188,"Dichloroethane, 1,1-",70,"**",{"$error":"#N/A"},70,70,"-",null,null,700,"Kidney ","75-34-3",null,"Minimum Criteria","NA","NA",null,"Systemic Toxicant"]
[8,null,31,"Arsenic",10,"",{"$error":"#N/A"},10,10,"-",50,50,100,"Cardiovascular, Skin ","NOCAS","Yes ","Primary Standard","62-302","62-302",null,"Carcinogen"]
[9,null,311,"Iron",300,"",4200,4200,4200,300,1000,300,3000,"Gastrointestinal ","7439-89-6",null,"Secondary Standard","62-302","62-302",null,"Aesthetic"]
[10,null,317,"Lead",15,"",{"$error":"#N/A"},15,15,"-",null,8.5,150,"Neurological ","7439-92-1",null,"Primary Standard","62-302","62-302",null,"Systemic Toxicant","f, g","g"]
[11,null,90,"Cadmium",5,"",{"$error":"#N/A"},5,5,"-",null,9.3000000000000007,50,"Kidney ","7440-43-9","Yes ","Primary Standard","62-302","62-302",null,"Carcinogen","f, g","g"]
[12,null,20,"Aluminum",200,"",7000,7000,7000,200,13,1500,2000,"Body Weight ","7429-90-5",null,"Secondary Standard","Toxicity Criteria","62-302",null,"Organoleptic"]
[13,null,41,"Benzaldehyde",700,"",{"$error":"#N/A"},700,700,"-",54,54,7000,"Gastrointestinal, Kidney ","100-52-7",null,"Minimum Criteria","Toxicity Criteria","Toxicity Criteria",null,"Systemic Toxicant"]
[14,4,535,"Xylenes, total",20,"","1400(10000) (c)","1400(10000) (c)",1400,20,370,370,200,"Neurological ","1330-20-7",null,"Secondary Standard","Toxicity Criteria","Toxicity Criteria",null,"Organoleptic"]
[15,6,378,"Naphthalene",14,"**",{"$error":"#N/A"},14,14,"-",26,26,140,"Nasal ","91-20-3",null,"Minimum Criteria","Toxicity Criteria","Toxicity Criteria",null,"Systemic Toxicant"]
[16,10,46,"Benzo(a)pyrene",0.2,"",{"$error":"#N/A"},0.2,0.2,"-","*","*",2,null,"50-32-8","Yes ","Primary Standard","62-302","62-302",null,"Carcinogen","annual average","annual average"]
[17,null,207,"Dieldrin",2E-3,"",{"$error":"#N/A"},2E-3,2E-3,"-",1.3999999999999999E-4,1.3999999999999999E-4,0.02,"Liver ","60-57-1","Yes ","Minimum Criteria","62-302","62-302",null,"Carcinogen","annual avg; 0.0019 max.","annual avg; 0.0019 max."]
[18,null,289,"Heptachlor epoxide",0.2,"",{"$error":"#N/A"},0.2,0.2,"-",4.0000000000000003E-5,4.0000000000000003E-5,2,"Liver ","1024-57-3","Yes ","Primary Standard","Human Health","Human Health",null,"Carcinogen"]
[19,null,327,"Manganese",50,"",330,330,330,50,null,null,500,"Neurological ","7439-96-5",null,"Secondary Standard","NA","NA",null,"Aesthetic"]
[20,null,471,"Sulfate",250000,"","NA","NA","NA",250000,null,null,2500000,"None Specified ","14808-79-8",null,"Secondary Standard","NA","NA",null,"Organoleptic"]
[21,null,35,"Barium (soluble salts)",2000,"",{"$error":"#N/A"},2000,2000,"-",null,null,20000,"Cardiovascular ","7440-39-3",null,"Primary Standard","NA","NA",null,"Systemic Toxicant"]
[22,null,134,"Chromium (total)",100,"",{"$error":"#N/A"},100,100,"-",11,50,1000,null,"NOCAS","Yes ","Primary Standard",null,null,null,"Systemic Toxicant","h","h"]
[23,null,331,"Mercury",2,"",{"$error":"#N/A"},2,2,"-",1.2E-2,2.5000000000000001E-2,20,"Neurological ","7439-97-6",null,"Primary Standard","62-302","62-302",null,"Systemic Toxicant"]
[24,null,232,"Dioxane, 1,4-",3.2,"",{"$error":"#N/A"},3.2,3.2,"-",120,120,32,null,"123-91-1","Yes ","Minimum Criteria","Human Health","Human Health",null,"Carcinogen"]
[25,null,97,"Carbon disulfide",700,"",{"$error":"#N/A"},700,700,"-",110,110,7000,"Developmental, Neurological ","75-15-0",null,"Minimum Criteria","Toxicity Criteria","Toxicity Criteria",null,"Systemic Toxicant"]
[26,3,263,"Ethylbenzene",30,"","700(700)","700(700)",700,30,610,610,300,"Developmental, Kidney, Liver ","100-41-4",null,"Secondary Standard","Toxicity Criteria","Toxicity Criteria",null,"Organoleptic"]
[27,null,292,"Hexachlorocyclohexane, alpha-  [or BHC, alpha-]",6.0000000000000001E-3,"",{"$error":"#N/A"},6.0000000000000001E-3,6.0000000000000001E-3,"-",5.0000000000000001E-3,5.0000000000000001E-3,0.06,null,"319-84-6","Yes ","Minimum Criteria","Human Health","Human Health",null,"Carcinogen"]
[28,null,293,"Hexachlorocyclohexane, beta-  [BHC, beta-]",0.02,"",{"$error":"#N/A"},0.02,0.02,"-",4.5999999999999999E-2,4.5999999999999999E-2,0.2,null,"319-85-7","Yes ","Minimum Criteria","62-302","62-302",null,"Carcinogen","annual average","annual average"]
[29,null,383,"Nitrate",10000,"",{"$error":"#N/A"},10000,10000,"-",null,null,100000,"Blood ","14797-55-8",null,"Primary Standard","NA","NA",null,"Systemic Toxicant"]
[30,null,498,"Total dissolved solids  [or TDS]",500000,"","NA","NA","NA",500000,null,null,5000000,"None Specified ","C-010",null,"Secondary Standard","NA","NA"]
[null,null,1,"Acenaphthene",20,"",420,{"$f":"IF(ISBLANK(E34),\"\",IF(ISNA(G34),E34,G34))","v":420},420,20,3,3,200,"Liver ","83-32-9",null,"Minimum Criteria","Toxicity Criteria","Toxicity Criteria",null,"Organoleptic"]
[null,null,2,"Acenaphthylene",210,"",{"$error":"#N/A"},210,210,"-","*","*",2100,"Liver ","208-96-8",null,"Minimum Criteria","62-302","62-302",null,"Systemic Toxicant","annual average","annual average"]
[null,null,3,"Acephate",4,"",{"$error":"#N/A"},4,4,"-",190,190,40,"Neurological ","30560-19-1","Yes ","Minimum Criteria","Toxicity Criteria","Toxicity Criteria",null,"Carcinogen"]
[null,null,4,"Acetone",6300,"",{"$error":"#N/A"},6300,6300,"-",1700,1700,63000,"Kidney, Liver, Neurological ","67-64-1",null,"Minimum Criteria","Toxicity Criteria","Toxicity Criteria",null,"Systemic Toxicant"]
[null,null,5,"Acetonitrile",42,"",{"$error":"#N/A"},42,42,"-",20000,20000,420,"Mortality ",27522,null,"Minimum Criteria","Toxicity Criteria","Toxicity Criteria",null,"Systemic Toxicant"]
[null,null,6,"Acetophenone",700,"",{"$error":"#N/A"},700,700,"-",7800,7800,7000,"None Specified ","98-86-2",null,"Minimum Criteria","Toxicity Criteria","Toxicity Criteria",null,"Systemic Toxicant"]
[null,null,7,"Acifluorfen, sodium  [or Blazer]",1,"",{"$error":"#N/A"},1,1,"-",190,190,10,"Kidney ","62476-59-9",null,"Minimum Criteria","Toxicity Criteria","Toxicity Criteria",null,"Carcinogen"]
[null,null,8,"Acrolein",3.5,"",{"$error":"#N/A"},3.5,3.5,"-",0.4,0.4,35,"Nasal ",-654840,null,"Minimum Criteria","Toxicity Criteria","Toxicity Criteria",null,"Systemic Toxicant"]
[null,null,9,"Acrylamide",8.0000000000000002E-3,"",{"$error":"#N/A"},8.0000000000000002E-3,8.0000000000000002E-3,"-",0.3,0.3,0.08,"Neurological ",29007,"Yes ","Minimum Criteria","Human Health","Human Health",null,"Carcinogen"]
[null,null,10,"Acrylic acid",3500,"",{"$error":"#N/A"},3500,3500,"-",null,null,35000,"Developmental ",29135,null,"Minimum Criteria","NA","NA",null,"Systemic Toxicant"]
[null,null,11,"Acrylonitrile",0.06,"",{"$error":"#N/A"},0.06,0.06,"-",0.2,0.2,0.6,"Nasal, Reproductive ","107-13-1","Yes ","Minimum Criteria","Human Health","Human Health",null,"Carcinogen"]
[null,null,12,"Alachlor",2,"",{"$error":"#N/A"},2,2,"-",0.5,0.5,20,"Blood ","15972-60-8","Yes ","Primary Standard","Human Health","Human Health",null,"Carcinogen"]
[null,null,13,"Aldicarb  [or Temik]",7,"",{"$error":"#N/A"},7,7,"-",0.9,0.9,70,"Neurological ",-651437,null,"Minimum Criteria","Toxicity Criteria","Toxicity Criteria",null,"Systemic Toxicant"]
[null,null,14,"Aldicarb sulfone",7,"",{"$error":"#N/A"},7,7,"-",46,46,70,"Neurological ","1646-88-4",null,"Minimum Criteria","Toxicity Criteria","Toxicity Criteria",null,"Systemic Toxicant"]
[null,null,15,"Aldicarb sulfoxide",7,"",{"$error":"#N/A"},7,7,"-",4.2,4.2,70,"Neurological ","1646-87-3",null,"Minimum Criteria","Toxicity Criteria","Toxicity Criteria",null,"Systemic Toxicant"]
[null,null,16,"Aldrin",2E-3,"",{"$error":"#N/A"},2E-3,2E-3,"-",1.3999999999999999E-4,1.3999999999999999E-4,0.02,"Liver ","309-00-2","Yes ","Minimum Criteria","62-302","62-302",null,"Carcinogen","annual avg; 3.0 max","annual avg; 1.3 max"]
[null,null,17,"Ally  [or Metsulfuron, methyl]",1800,"",{"$error":"#N/A"},1800,1800,"-",null,null,18000,"Body Weight ","74223-64-6",null,"Minimum Criteria","NA","NA",null,"Systemic Toxicant"]
[null,null,18,"Allyl alcohol",35,"",{"$error":"#N/A"},35,35,"-",5,5,350,"Kidney, Liver ","107-18-6",null,"Minimum Criteria","Toxicity Criteria","Toxicity Criteria",null,"Systemic Toxicant"]
[null,null,19,"Allyl chloride",35,"**",{"$error":"#N/A"},35,35,"-",null,null,350,"Neurological ",-654758,null,"Minimum Criteria","NA","NA",null,"Systemic Toxicant"]
[null,null,21,"Aluminum phosphide",2.8,"",{"$error":"#N/A"},2.8,2.8,"-",6.5,6.5,28,"Body Weight ","20859-73-8",null,"Minimum Criteria","Toxicity Criteria","Toxicity Criteria",null,"Systemic Toxicant"]
[null,null,22,"Ametryn",63,"",{"$error":"#N/A"},63,63,"-",6.2,6.2,630,"Liver ",-389005,null,"Minimum Criteria","Toxicity Criteria","Toxicity Criteria",null,"Systemic Toxicant"]
[null,null,23,"Ammonia",2800,"",{"$error":"#N/A"},2800,2800,"-",20,null,28000,"Body Weight","7664-41-7",null,"Minimum Criteria","62-302","NA","(a)","Systemic Toxicant"]
[null,null,24,"Ammonium sulfamate",1400,"",{"$error":"#N/A"},1400,1400,"-",10000,10000,14000,"Body Weight ","7773-06-0",null,"Minimum Criteria","Toxicity Criteria","Toxicity Criteria",null,"Systemic Toxicant"]
[null,null,25,"Anilazine  [or Dyrene]",2.8,"",{"$error":"#N/A"},2.8,2.8,"-",null,null,28,"None Specified ",-656947,null,"Minimum Criteria","NA","NA",null,"Systemic Toxicant"]
[null,null,26,"Aniline",6.1,"",{"$error":"#N/A"},6.1,6.1,"-",4,4,61,"Blood, Spleen ","62-53-3","Yes ","Minimum Criteria","Toxicity Criteria","Toxicity Criteria",null,"Carcinogen"]
[null,null,27,"Anthracene",2100,"",{"$error":"#N/A"},2100,2100,"-",0.3,0.3,21000,"None Specified ",-649789,null,"Minimum Criteria","Toxicity Criteria","Toxicity Criteria",null,"Systemic Toxicant"]
[null,null,28,"Antimony",6,"",{"$error":"#N/A"},6,6,"-",4300,4300,60,"Blood ","7440-36-0",null,"Primary Standard","62-302","62-302",null,"Systemic Toxicant"]
[null,null,29,"Aramite",1.4,"",{"$error":"#N/A"},1.4,1.4,"-",3,3,14,null,"140-57-8","Yes ","Minimum Criteria","Toxicity Criteria","Toxicity Criteria",null,"Carcinogen"]
[null,null,30,"Aroclor mixture  [see PCBs]",null,"",{"$error":"#N/A"},"","","-"]
[null,null,32,"Atrazine",3,"",{"$error":"#N/A"},3,3,"-",1.9,1.9,30,"Cardiovascular ","1912-24-9","Yes ","Primary Standard","Human Health","Human Health",null,"Carcinogen"]
[null,null,33,"Azinphos, methyl  [see Guthion]",null,"",{"$error":"#N/A"},"","","-"]
[null,null,34,"Azobenzene",0.3,"",{"$error":"#N/A"},0.3,0.3,"-",3.6,3.6,3,null,"103-33-3","Yes ","Minimum Criteria","Human Health","Human Health",null,"Carcinogen"]
[null,null,36,"Baygon  [or Propoxur]",28,"",{"$error":"#N/A"},28,28,"-",0.4,0.4,280,"Blood, Neurological ","114-26-1",null,"Minimum Criteria","Toxicity Criteria","Toxicity Criteria",null,"Systemic Toxicant"]
[null,null,37,"Bayleton",210,"",{"$error":"#N/A"},210,210,"-",500,500,2100,"Blood ","43121-43-3",null,"Minimum Criteria","Toxicity Criteria","Toxicity Criteria",null,"Systemic Toxicant"]
[null,null,38,"Benomyl",35,"**",{"$error":"#N/A"},35,35,"-",0.3,0.3,350,"Developmental ","17804-35-2",null,"Minimum Criteria","Toxicity Criteria","Toxicity Criteria",null,"Systemic Toxicant"]
[null,null,39,"Bensulide",46,"",{"$error":"#N/A"},{"$f":"IF(ISBLANK(E69),\"\",IF(ISNA(G69),E69,G69))","v":46},46,"-",null,null,460,"None Specified ","741-58-2",null,"Minimum Criteria","NA","NA",null,"Systemic Toxicant"]
[null,null,40,"Bentazon",210,"",{"$error":"#N/A"},210,210,"-",null,null,2100,"Blood ","25057-89-0",null,"Minimum Criteria","NA","NA",null,"Systemic Toxicant"]
[null,1,42,"Benzene",1,"",{"$error":"#N/A"},1,1,"-",71.28,71.28,10,"Blood ","71-43-2","Yes ","Primary Standard","62-302","62-302",null,"Carcinogen","annual average","annual average"]
[null,null,43,"Benzenethiol",7.0000000000000007E-2,"",{"$error":"#N/A"},7.0000000000000007E-2,7.0000000000000007E-2,"-",null,null,0.7,"Liver ","108-98-5",null,"Minimum Criteria","NA","NA",null,"Systemic Toxicant"]
[null,null,44,"Benzidine",2.0000000000000001E-4,"",{"$error":"#N/A"},2.0000000000000001E-4,2.0000000000000001E-4,"-",2.0000000000000001E-4,2.0000000000000001E-4,2E-3,"Liver, Neurological ","92-87-5","Yes ","Minimum Criteria","Human Health","Human Health",null,"Carcinogen"]
[null,11,45,"Benzo(a)anthracene",0.05,"",{"$error":"#N/A"},0.05,0.05,"-","*","*",0.5,null,"56-55-3","Yes ","Minimum Criteria","62-302","62-302",null,"Carcinogen","annual average","annual average"]
[null,12,47,"Benzo(b)fluoranthene",0.05,"",{"$error":"#N/A"},0.05,0.05,"-","*","*",0.5,null,"205-99-2","Yes ","Minimum Criteria","62-302","62-302",null,"Carcinogen","annual average","annual average"]
[null,13,48,"Benzo(g,h,i)perylene",210,"",{"$error":"#N/A"},210,210,"-","*","*",2100,"Neurological ","191-24-2",null,"Minimum Criteria","62-302","62-302",null,"Systemic Toxicant","annual average","annual average"]
[null,14,49,"Benzo(k)fluoranthene",0.5,"",{"$error":"#N/A"},0.5,0.5,"-","*","*",5,null,-618134,"Yes ","Minimum Criteria","62-302","62-302",null,"Carcinogen","annual average","annual average"]
[null,null,50,"Benzoic acid",28000,"",{"$error":"#N/A"},28000,28000,"-",9000,9000,280000,"None Specified ","65-85-0",null,"Minimum Criteria","Toxicity Criteria","Toxicity Criteria",null,"Systemic Toxicant"]
[null,null,51,"Benzotrichloride",3.0000000000000001E-3,"",{"$error":"#N/A"},3.0000000000000001E-3,3.0000000000000001E-3,"-",2E-3,2E-3,0.03,null,35983,"Yes ","Minimum Criteria","Human Health","Human Health",null,"Carcinogen"]
[null,null,52,"Benzyl alcohol",2100,"",{"$error":"#N/A"},2100,2100,"-",500,500,21000,"Gastrointestinal ","100-51-6",null,"Minimum Criteria","Toxicity Criteria","Toxicity Criteria",null,"Systemic Toxicant"]
[null,null,53,"Benzyl chloride",0.2,"",{"$error":"#N/A"},0.2,0.2,"-",2,2,2,null,"100-44-7","Yes ","Minimum Criteria","Human Health","Human Health",null,"Carcinogen"]
[null,null,54,"Beryllium",4,"",{"$error":"#N/A"},4,4,"-",0.13,0.13,40,"Gastrointestinal, Respiratory ","7440-41-7","Yes ","Primary Standard","62-302","62-302",null,"Carcinogen","annual average","annual average"]
[null,null,55,"Beta radiation",4,"",{"$error":"#N/A"},4,4,"-",null,null,40,null,"NOCAS","Yes ","Primary Standard","NA","NA",null,"Carcinogen"]
[null,null,56,"BHC, alpha-  [see Hexachlorocyclohexane, alpha-]",null,"",{"$error":"#N/A"},"","","-",null,null,null,null,null,null,null,null,null,"(b)"]
[null,null,57,"BHC, beta-  [see Hexachlorocyclohexane, beta-]",null,"",{"$error":"#N/A"},"","","-",null,null,null,null,null,null,null,null,null,"(b)"]
[null,null,58,"BHC, delta-  [see Hexachlorocyclohexane, delta-]",null,"",{"$error":"#N/A"},"","","-",null,null,null,null,null,null,null,null,null,"(b)"]
[null,null,59,"BHC, gamma-  [see Hexachlorocyclohexane, gamma-]",null,"",{"$error":"#N/A"},"","","-",null,null,null,null,null,null,null,null,null,"(b)"]
[null,null,60,"BHC, technical  [see Hexachlorocyclohexane, technical]",null,"",{"$error":"#N/A"},"","","-",null,null,null,null,null,null,null,null,null,"(b)"]
[null,null,61,"Bidrin  [or Dicrotophos]",0.7,"",{"$error":"#N/A"},0.7,0.7,"-",22,22,7,"Developmental ","141-66-2",null,"Minimum Criteria","Toxicity Criteria","Toxicity Criteria",null,"Systemic Toxicant"]
[null,null,62,"Bioallethrin",35,"",{"$error":"#N/A"},35,35,"-",null,null,350,"Liver ","28057-48-9",null,"Minimum Criteria","NA","NA",null,"Systemic Toxicant"]
[null,null,63,"Biphenyl, 1,1-  [or Diphenyl]",0.5,"",350,350,350,0.5,18,18,5,"Kidney ","92-52-4",null,"Minimum Criteria","Toxicity Criteria","Toxicity Criteria",null,"Organoleptic"]
[null,null,64,"Bis(2-chloro-1-metylethyl)ether  [see Bis(2-chloroisopropyl)ether]",null,"",{"$error":"#N/A"},"","","-"]
[null,null,65,"Bis(2-chloroethyl)ether",0.03,"",{"$error":"#N/A"},0.03,0.03,"-",0.5,0.5,0.3,null,"111-44-4","Yes ","Minimum Criteria","Human Health","Human Health",null,"Carcinogen"]
[null,null,66,"Bis(2-chloroisopropyl)ether  [or Bis(2-chloro-1-metylethyl)ether]",0.5,"",{"$error":"#N/A"},0.5,0.5,"-",23,23,5,"Blood ","39638-32-9","Yes ","Minimum Criteria","Human Health","Human Health",null,"Carcinogen"]
[null,null,67,"Bis(2-ethylhexyl)adipate",400,"",{"$error":"#N/A"},400,400,"-",33,33,4000,"Body Weight ","103-23-1","Yes ","Primary Standard","Toxicity Criteria","Toxicity Criteria",null,"Carcinogen"]
[null,null,68,"Bis(2-ethylhexyl)phthalate  [or DEHP]",6,"",{"$error":"#N/A"},6,6,"-",2.2000000000000002,2.2000000000000002,60,"Liver ","117-81-7","Yes ","Primary Standard","Human Health","Human Health",null,"Carcinogen"]
[null,null,69,"Bisphenol A",350,"",{"$error":"#N/A"},350,350,"-",55,55,3500,"Body Weight ",29348,null,"Minimum Criteria","Toxicity Criteria","Toxicity Criteria",null,"Systemic Toxicant"]
[null,null,70,"Blazer  [see Acifluorfen, sodium]",null,"",{"$error":"#N/A"},"","","-"]
[null,null,71,"Boron",1400,"",{"$error":"#N/A"},1400,1400,"-",null,null,14000,"Reproductive, Respiratory ","7440-42-8",null,"Minimum Criteria","NA","NA",null,"Systemic Toxicant"]
[null,null,72,"Bravo  [see Chlorothalonil]",null,"",{"$error":"#N/A"},"","","-"]
[null,null,73,"Bromacil",70,"**",{"$error":"#N/A"},70,70,"-",97,97,700,"Body Weight ","314-40-9",null,"Minimum Criteria","Toxicity Criteria","Toxicity Criteria",null,"Systemic Toxicant"]
[null,null,74,"Bromate",0.05,"",{"$error":"#N/A"},0.05,0.05,"-",null,100000,0.5,"Kidney ","15541-45-4","Yes ","Minimum Criteria","NA","62-302",null,"Carcinogen"]
[null,null,75,"Bromochloromethane",91,"",{"$error":"#N/A"},91,91,"-",null,null,910,"None Specified ","74-97-5",null,"Minimum Criteria","NA","NA",null,"Systemic Toxicant"]
[null,null,76,"Bromodichloromethane",0.6,"",{"$error":"#N/A"},0.6,0.6,"-",22,22,6,"Kidney ","75-27-4","Yes ","Minimum Criteria","62-302","62-302",null,"Carcinogen","annual average","annual average"]
[null,null,77,"Bromoform",4.4000000000000004,"",{"$error":"#N/A"},4.4000000000000004,4.4000000000000004,"-",360,360,44,"Liver ","75-25-2","Yes ","Minimum Criteria","62-302","62-302",null,"Carcinogen","annual average","annual average"]
[null,null,78,"Bromomethane  [or Methyl bromide]",9.8000000000000007,"",{"$error":"#N/A"},9.8000000000000007,9.8000000000000007,"-",35,35,98,"Gastrointestinal, Respiratory ","74-83-9",null,"Minimum Criteria","Toxicity Criteria","Toxicity Criteria",null,"Systemic Toxicant"]
[null,null,79,"Bromoxynil",140,"",{"$error":"#N/A"},140,140,"-",null,null,1400,"None Specified ","1689-84-5",null,"Minimum Criteria","NA","NA",null,"Systemic Toxicant"]
[null,null,80,"Bromoxynil octanoate",140,"",{"$error":"#N/A"},140,140,"-",null,null,1400,"Neurological ","1689-99-2",null,"Minimum Criteria","NA","NA",null,"Systemic Toxicant"]
[null,null,81,"Butane",9100,"",{"$error":"#N/A"},9100,9100,"-",null,null,91000,"Neurological, Respiratory ","106-97-8",null,"Minimum Criteria","NA","NA",null,"Systemic Toxicant"]
[null,null,82,"Butanol, n-",700,"",{"$error":"#N/A"},700,700,"-",25000,25000,7000,"Neurological ","71-36-3",null,"Minimum Criteria","Toxicity Criteria","Toxicity Criteria",null,"Systemic Toxicant"]
[null,null,83,"Butanol, tert-  [see Butyl alcohol, tert-]",null,"",{"$error":"#N/A"},"","","-"]
[null,null,84,"Butanone, 2-  [see Methyl ethyl ketone]",null,"",{"$error":"#N/A"},"","","-"]
[null,null,85,"Butyl acetate, n-",43,"","NA","NA","NA",43,1000,1000,430,"None Specified ","123-86-4",null,"Minimum Criteria","Toxicity Criteria","Toxicity Criteria",null,"Organoleptic"]
[null,null,86,"Butyl alcohol, tert-  [or Butanol, tert-]",1400,"",{"$error":"#N/A"},1400,1400,"-",null,null,14000,"Kidney, Neurological ","75-65-0",null,"Minimum Criteria","NA","NA",null,"Systemic Toxicant"]
[null,null,87,"Butyl benzyl phthalate",140,"**",{"$error":"#N/A"},140,140,"-",26,26,1400,"Liver ","85-68-7",null,"Minimum Criteria","Toxicity Criteria","Toxicity Criteria",null,"Systemic Toxicant"]
[null,null,88,"Butylate",350,"",{"$error":"#N/A"},350,350,"-",11,11,3500,"Liver ","2008-41-5",null,"Minimum Criteria","Toxicity Criteria","Toxicity Criteria",null,"Systemic Toxicant"]
[null,null,89,"Butylphthalyl butylglycolate",7000,"",{"$error":"#N/A"},7000,7000,"-",null,null,70000,"None Specified ","85-70-1",null,"Minimum Criteria","NA","NA",null,"Systemic Toxicant"]
[null,null,91,"Calcium cyanide",280,"",{"$error":"#N/A"},280,280,"-",null,null,2800,"Neurological, Thyroid ",-477728,null,"Minimum Criteria","NA","NA",null,"Systemic Toxicant"]
[null,null,92,"Captafol",4.0999999999999996,"",{"$error":"#N/A"},4.0999999999999996,4.0999999999999996,"-",0.9,0.9,41,"Kidney ",191906,"Yes ","Minimum Criteria","Toxicity Criteria","Toxicity Criteria",null,"Carcinogen"]
[null,null,93,"Captan",10,"",{"$error":"#N/A"},10,10,"-",1.9,1.9,100,"Body Weight ",-645229,"Yes ","Minimum Criteria","Toxicity Criteria","Toxicity Criteria",null,"Carcinogen"]
[null,null,94,"Carbaryl [or Sevin]",700,"",{"$error":"#N/A"},700,700,"-",0.06,0.06,7000,"Kidney, Liver ","63-25-2",null,"Minimum Criteria","Toxicity Criteria","Toxicity Criteria",null,"Systemic Toxicant"]
[null,null,95,"Carbazole",1.8,"",{"$error":"#N/A"},1.8,1.8,"-",47,47,18,null,"86-74-8","Yes ","Minimum Criteria","Toxicity Criteria","Toxicity Criteria",null,"Carcinogen"]
[null,null,96,"Carbofuran",40,"",{"$error":"#N/A"},40,40,"-",0.1,0.1,400,"Neurological, Reproductive ","1563-66-2",null,"Primary Standard","Toxicity Criteria","Toxicity Criteria",null,"Systemic Toxicant"]
[null,null,98,"Carbon tetrachloride",3,"",{"$error":"#N/A"},3,3,"-",4.42,4.42,30,"Liver ","56-23-5","Yes ","Primary Standard","62-302","62-302",null,"Carcinogen","annual average","annual average"]
[null,null,99,"Carbophenothion  [or Trithion]",0.9,"",{"$error":"#N/A"},0.9,0.9,"-",0.1,0.1,9,"Neurological ","786-19-6",null,"Minimum Criteria","Toxicity Criteria","Toxicity Criteria",null,"Systemic Toxicant"]
[null,null,100,"Carboxin",700,"",{"$error":"#N/A"},700,700,"-",60,60,7000,"Body Weight ","5234-68-4",null,"Minimum Criteria","Toxicity Criteria","Toxicity Criteria",null,"Systemic Toxicant"]
[null,null,101,"CFC 113  [see Trichloro-1,2,2-trifluoroethane, 1,1,2-]",null,"",{"$error":"#N/A"},"","","-",null,null,null,"Adrenals "]
[null,null,102,"Chloral hydrate",70,"**",{"$error":"#N/A"},70,70,"-",null,null,700,"Gastrointestinal, Neurological ","302-17-0",null,"Minimum Criteria","NA","NA",null,"Systemic Toxicant"]
[null,null,103,"Chloramben",110,"",{"$error":"#N/A"},110,110,"-",null,null,1100,"Liver ","133-90-4",null,"Minimum Criteria","NA","NA",null,"Systemic Toxicant"]
[null,null,104,"Chlordane (total)",2,"",{"$error":"#N/A"},2,2,"-",5.9000000000000003E-4,5.9000000000000003E-4,20,"Liver ","(i)","Yes ","Primary Standard","62-302","62-302",null,"Carcinogen","annual avg; 0.0043 max","annual avg; 0.0043 max"]
[null,null,105,"Chloride",250000,"","NA","NA","NA",250000,null,null,2500000,"None Specified ","16887-00-6",null,"Secondary Standard","NA","62-302",null,"Organoleptic",null,"e"]
[null,null,106,"Chlorine",700,"",{"$error":"#N/A"},700,700,"-",10,10,7000,"Respiratory ","7782-50-5",null,"Minimum Criteria","62-302","62-302",null,"Systemic Toxicant"]
[null,null,107,"Chlorine cyanide  [or Cyanogen chloride]",350,"",{"$error":"#N/A"},{"$f":"IF(ISBLANK(E133),\"\",IF(ISNA(G133),E133,G133))","v":350},350,"-",1.4,1.4,3500,"Neurological, Thyroid ","506-77-4",null,"Minimum Criteria","Toxicity Criteria","Toxicity Criteria",null,"Systemic Toxicant"]
[null,null,108,"Chlorite (sodium salt)  [or Sodium chlorite]",210,"",{"$error":"#N/A"},210,210,"-",29,29,2100,"Developmental, Neurological ","7758-19-2",null,"Minimum Criteria","Toxicity Criteria","Toxicity Criteria",null,"Systemic Toxicant"]
[null,null,109,"Chloro-1,3-butadiene  [or Chloroprene]",140,"",{"$error":"#N/A"},140,140,"-",null,null,1400,"Hair Loss, Nasal ","126-99-8",null,"Minimum Criteria","NA","NA",null,"Systemic Toxicant"]
[null,null,110,"Chloro-3-methylphenol, 4-  [see Chloro-m-cresol, p-]",null,"",{"$error":"#N/A"},"","","-"]
[null,null,111,"Chloroacetic acid",14,"",{"$error":"#N/A"},14,14,"-",2500,2500,140,"Cardiovascular ",29167,null,"Minimum Criteria","Human Health","Human Health",null,"Systemic Toxicant"]
[null,null,112,"Chloroaniline, p-",28,"",{"$error":"#N/A"},28,28,"-",2.5,2.5,280,"Spleen ","106-47-8",null,"Minimum Criteria","Toxicity Criteria","Toxicity Criteria",null,"Systemic Toxicant"]
[null,null,113,"Chlorobenzene",100,"",{"$error":"#N/A"},100,100,"-",17,17,1000,"Liver ","108-90-7",null,"Primary Standard","Toxicity Criteria","Toxicity Criteria",null,"Systemic Toxicant"]
[null,null,114,"Chlorobenzilate",0.1,"",{"$error":"#N/A"},0.1,0.1,"-",0.02,0.02,1,"Body Weight ","510-15-6","Yes ","Minimum Criteria","Human Health","Human Health",null,"Carcinogen"]
[null,null,115,"Chloroethane  [see Ethyl chloride]",null,"",{"$error":"#N/A"},"","","-"]
[null,null,116,"Chloroform",70,"",{"$error":"#N/A"},70,70,"-",470.8,470.8,700,"Liver ","67-66-3","Yes ","Minimum Criteria","62-302","62-302",null,"Systemic Toxicant","annual average","annual average"]
[null,null,117,"Chloro-m-cresol, p-  [or Chloro-3-methylphenol, 4-]",63,"",{"$error":"#N/A"},63,63,"-",100,100,630,"Body Weight ","59-50-7",null,"Minimum Criteria","Toxicity Criteria","Toxicity Criteria",null,"Systemic Toxicant"]
[null,null,118,"Chloromethane  [see Methyl chloride]",null,"",{"$error":"#N/A"},"","","-"]
[null,null,119,"Chloronaphthalene, beta-",560,"",{"$error":"#N/A"},560,560,"-",1600,1600,5600,"Liver, Respiratory ","91-58-7",null,"Minimum Criteria","Human Health","Human Health",null,"Systemic Toxicant"]
[null,null,120,"Chloronitrobenzene, p-",1.9,"",{"$error":"#N/A"},1.9,1.9,"-",110,110,19,null,"100-00-5","Yes ","Minimum Criteria","Toxicity Criteria","Toxicity Criteria",null,"Carcinogen"]
[null,null,121,"Chlorophenol, 2-",35,"",{"$error":"#N/A"},35,35,"-",130,130,350,"Reproductive ","95-57-8",null,"Minimum Criteria","Toxicity Criteria","Toxicity Criteria",null,"Systemic Toxicant"]
[null,null,122,"Chlorophenol, 3-",0.1,"",35,35,35,0.1,170,170,1,"Reproductive ","108-43-0",null,"Minimum Criteria","Toxicity Criteria","Toxicity Criteria",null,"Organoleptic"]
[null,null,123,"Chlorophenol, 4-",0.1,"",35,35,35,0.1,180,180,1,"Reproductive ","106-48-9",null,"Minimum Criteria","Toxicity Criteria","Toxicity Criteria",null,"Organoleptic"]
[null,null,124,"Chloropicrin",7.3,"","NA","NA","NA",7.3,null,null,73,"None Specified ",27913,null,"Minimum Criteria","NA","NA",null,"Organoleptic"]
[null,null,125,"Chloroprene  [see Chloro-1,3-butadiene]",null,"",{"$error":"#N/A"},"","","-"]
[null,null,126,"Chlorothalonil  [or Bravo]",3.2,"",{"$error":"#N/A"},3.2,3.2,"-",0.8,0.8,32,"Kidney ","1897-45-6","Yes ","Minimum Criteria","Toxicity Criteria","Toxicity Criteria",null,"Carcinogen"]
[null,null,127,"Chlorotoluene, o-",140,"",{"$error":"#N/A"},140,140,"-",390,390,1400,"Body Weight ","95-49-8",null,"Minimum Criteria","Toxicity Criteria","Toxicity Criteria",null,"Systemic Toxicant"]
[null,null,128,"Chlorotoluene, p-",140,"",{"$error":"#N/A"},140,140,"-",null,null,1400,"None Specified ","106-43-4",null,"Minimum Criteria","NA","NA",null,"Systemic Toxicant"]
[null,null,129,"Chlorpropham",1400,"",{"$error":"#N/A"},1400,1400,"-",190,190,14000,"Bone Marrow, Kidney, Liver, Spleen ","101-21-3",null,"Minimum Criteria","Toxicity Criteria","Toxicity Criteria",null,"Systemic Toxicant"]
[null,null,130,"Chlorpyrifos",21,"",{"$error":"#N/A"},21,21,"-",2E-3,2E-3,210,"Neurological ","2921-88-2",null,"Minimum Criteria","Toxicity Criteria","Toxicity Criteria",null,"Systemic Toxicant"]
[null,null,131,"Chlorpyrifos, methyl",70,"",{"$error":"#N/A"},70,70,"-",0.04,0.04,700,"Reproductive ","5598-13-0",null,"Minimum Criteria","Toxicity Criteria","Toxicity Criteria",null,"Systemic Toxicant"]
[null,null,132,"Chlorsulfuron",350,"",{"$error":"#N/A"},350,350,"-",16,16,3500,"Body Weight ","64902-72-3",null,"Minimum Criteria","Toxicity Criteria","Toxicity Criteria",null,"Systemic Toxicant"]
[null,null,133,"Chromium (hexavalent)",null,"",{"$error":"#N/A"},"","","-",11,50,null,"Respiratory ","18540-29-9","Yes ",null,"62-302","62-302",null,null,"g","g"]
[null,null,135,"Chromium (trivalent)",null,"",{"$error":"#N/A"},"","","-",null,520,null,"None Specified ","16065-83-1",null,null,"62-302","Toxicity Criteria",null,null,"f, g","g"]
[null,null,136,"Chrysene",4.8,"",{"$error":"#N/A"},4.8,4.8,"-","*","*",48,null,-614328,"Yes ","Minimum Criteria","62-302","62-302",null,"Carcinogen","annual average","annual average"]
[null,null,137,"Cobalt",140,"",{"$error":"#N/A"},140,140,"-",null,null,1400,"Cardiovascular, Immunological, Neurological, Reproductive ","7440-48-4",null,"Minimum Criteria","NA","NA",null,"Systemic Toxicant"]
[null,null,138,"Copper",1000,"","280(a)","280(a)","Secondary",1000,null,2.9,10000,"Gastrointestinal ","7440-50-8",null,"Secondary Standard","62-302","62-302",null,"Organoleptic & GI irritant","f, g","g"]
[null,null,139,"Copper cyanide",35,"",{"$error":"#N/A"},35,35,"-",null,null,350,"Kidney ","544-92-3",null,"Minimum Criteria","NA","NA",null,"Systemic Toxicant"]
[null,null,140,"Coumaphos",1.8,"",{"$error":"#N/A"},1.8,1.8,"-",4.0000000000000001E-3,4.0000000000000001E-3,18,"Neurological ","56-72-4",null,"Minimum Criteria","Toxicity Criteria","Toxicity Criteria",null,"Systemic Toxicant"]
[null,null,141,"Cresol, m-  [see Methylphenol, 3-]",null,"",{"$error":"#N/A"},"","","-"]
[null,null,142,"Cresol, o-  [see Methylphenol, 2-]",null,"",{"$error":"#N/A"},"","","-"]
[null,null,143,"Cresol, p-  [see Methylphenol, 4-]",null,"",{"$error":"#N/A"},"","","-"]
[null,null,144,"Crotonaldehyde",0.02,"",{"$error":"#N/A"},0.02,0.02,"-",null,null,0.2,null,"123-73-9","Yes ","Minimum Criteria","NA","NA",null,"Carcinogen"]
[null,null,145,"Cumene  [or Isopropyl benzene]",0.8,"",700,700,700,0.8,260,260,8,"Adrenals, Kidney ","98-82-8",null,"Minimum Criteria","Toxicity Criteria","Toxicity Criteria",null,"Organoleptic"]
[null,null,146,"Cyanazine",0.04,"",{"$error":"#N/A"},0.04,0.04,"-",5.5,5.5,0.4,null,"21725-46-2","Yes ","Minimum Criteria","Toxicity Criteria","Toxicity Criteria",null,"Carcinogen"]
[null,null,147,"Cyanide, free",200,"",{"$error":"#N/A"},200,200,"-",5.2,1,2000,"Neurological, Thyroid ",21159,null,"Primary Standard","62-302","62-302",null,"Systemic Toxicant"]
[null,null,148,"Cyanogen",280,"",{"$error":"#N/A"},280,280,"-",null,null,2800,"Neurological, Thyroid ","460-19-5",null,"Minimum Criteria","NA","NA",null,"Systemic Toxicant"]
[null,null,149,"Cyanogen chloride  [see Chlorine cyanide]",null,"",{"$error":"#N/A"},"","","-"]
[null,null,150,"Cycloate",35,"",{"$error":"#N/A"},35,35,"-",130,130,350,"Neurological ","1134-23-2",null,"Minimum Criteria","Toxicity Criteria","Toxicity Criteria",null,"Systemic Toxicant"]
[null,null,151,"Cyclohexanone",35000,"",{"$error":"#N/A"},35000,35000,"-",26000,26000,350000,null,"108-94-1",null,"Minimum Criteria","Toxicity Criteria","Toxicity Criteria",null,"Systemic Toxicant"]
[null,null,152,"Cyclohexylamine",1400,"",{"$error":"#N/A"},1400,1400,"-",4000,4000,14000,"Reproductive ","108-91-8",null,"Minimum Criteria","Toxicity Criteria","Toxicity Criteria",null,"Systemic Toxicant"]
[null,null,153,"Cyhalothrin [or Karate]",35,"",{"$error":"#N/A"},35,35,"-",18,18,350,"Developmental ","68085-85-8",null,"Minimum Criteria","Human Health","Human Health",null,"Systemic Toxicant"]
[null,null,154,"Cypermethrin",7,"**",{"$error":"#N/A"},7,7,"-",5.0000000000000001E-4,5.0000000000000001E-4,70,"Gastrointestinal ","52315-07-8",null,"Minimum Criteria","Toxicity Criteria","Toxicity Criteria",null,"Systemic Toxicant"]
[null,null,155,"Dacthal  [or DCPA]",70,"",{"$error":"#N/A"},70,70,"-",310,310,700,"Eye, Kidney, Liver, Respiratory, Thyroid ","1861-32-1",null,"Minimum Criteria","Toxicity Criteria","Toxicity Criteria",null,"Systemic Toxicant"]
[null,null,156,"Dalapon",200,"",{"$error":"#N/A"},200,200,"-",5000,5000,2000,"Kidney ","75-99-0",null,"Primary Standard","Toxicity Criteria","Toxicity Criteria",null,"Systemic Toxicant"]
[null,null,157,"DB, 2,4-  [see Dichlorophenoxy butyric acid, 2,4-]",null,"",{"$error":"#N/A"},"","","-"]
[null,null,158,"DBCP, 1,2- [see Dibromo-3-chloropropane, 1,2-]",null,"",{"$error":"#N/A"},"","","-"]
[null,null,159,"DCPA  [see Dacthal]",null,"",{"$error":"#N/A"},"","","-"]
[null,null,160,"DDD, 4,4'-  [see Dichlorodiphenyldichloroethane, p,p']",null,"",{"$error":"#N/A"},"","","-"]
[null,null,161,"DDE, 4,4'-  [see Dichlorodiphenyldichloroethylene, p,p'-]",null,"",{"$error":"#N/A"},"","","-"]
[null,null,162,"DDT, 4,4'-  [see Dichlorodiphenyltrichloroethane, p,p'-]",null,"",{"$error":"#N/A"},"","","-"]
[null,null,163,"Decabromodiphenyl ether",7,"**",{"$error":"#N/A"},7,7,"-",null,null,70,"None Specified ","1163-19-5",null,"Minimum Criteria","NA","NA",null,"Systemic Toxicant"]
[null,null,164,"DEET",6300,"",{"$error":"#N/A"},6300,6300,"-",null,null,63000,"Body Weight ","134-62-3",null,"Minimum Criteria","NA","NA",null,"Systemic Toxicant"]
[null,null,165,"DEHP  [see Bis(2-ethylhexyl)phthalate]",null,"",{"$error":"#N/A"},"","","-"]
[null,null,166,"Demeton",0.3,"",{"$error":"#N/A"},0.3,0.3,"-",0.1,0.1,3,"Eye, Neurological ","8065-48-3",null,"Minimum Criteria","62-302","62-302",null,"Systemic Toxicant"]
[null,null,167,"Diallate",0.6,"",{"$error":"#N/A"},0.6,0.6,"-",null,null,6,"None Specified ","2303-16-4","Yes ","Minimum Criteria","NA","NA",null,"Carcinogen"]
[null,null,168,"Diazinon",6.3,"",{"$error":"#N/A"},6.3,6.3,"-",2E-3,2E-3,63,"Neurological ","333-41-5",null,"Minimum Criteria","Toxicity Criteria","Toxicity Criteria",null,"Systemic Toxicant"]
[null,null,169,"Dibenz(a,h)anthracene",5.0000000000000001E-3,"",{"$error":"#N/A"},5.0000000000000001E-3,5.0000000000000001E-3,"-","*","*",0.05,null,"53-70-3","Yes ","Minimum Criteria","62-302","62-302",null,"Carcinogen","annual average","annual average"]
[null,null,170,"Dibenzofuran",28,"",{"$error":"#N/A"},28,28,"-",67,67,280,"None Specified ","132-64-9",null,"Minimum Criteria","Toxicity Criteria","Toxicity Criteria",null,"Systemic Toxicant"]
[null,null,171,"Dibromo-3-chloropropane, 1,2-  [or DBCP, 1,2-]",0.2,"",{"$error":"#N/A"},0.2,0.2,"-",null,null,2,"Reproductive ",35407,"Yes ","Primary Standard","NA","NA",null,"Carcinogen"]
[null,null,172,"Dibromobenzene, 1,4-",70,"",{"$error":"#N/A"},{"$f":"IF(ISBLANK(E197),\"\",IF(ISNA(G197),E197,G197))","v":70},70,"-",240,240,700,"Liver ","106-37-6",null,"Minimum Criteria","Human Health","Human Health",null,"Systemic Toxicant"]
[null,null,173,"Dibromochloromethane",0.4,"",{"$error":"#N/A"},0.4,0.4,"-",34,34,4,"Liver ","124-48-1","Yes ","Minimum Criteria","62-302","62-302",null,"Carcinogen","annual average","annual average"]
[null,null,174,"Dibromoethane, 1,2-  [or EDB]",0.02,"",{"$error":"#N/A"},0.02,0.02,"-",13,13,0.2,"Reproductive ","106-93-4","Yes ","Primary Standard","Toxicity Criteria","Toxicity Criteria",null,"Carcinogen"]
[null,null,175,"Dibutyl phthalate",700,"",{"$error":"#N/A"},700,700,"-",23,23,7000,"Mortality ","84-74-2",null,"Minimum Criteria","Toxicity Criteria","Toxicity Criteria",null,"Systemic Toxicant"]
[null,null,176,"Dicamba",210,"",{"$error":"#N/A"},210,210,"-",200,200,2100,"Developmental ","1918-00-9",null,"Minimum Criteria","Toxicity Criteria","Toxicity Criteria",null,"Systemic Toxicant"]
[null,null,177,"Dichloroacetic acid",0.7,"",{"$error":"#N/A"},0.7,0.7,"-",1200,1200,7,"Liver, Neurological, Reproductive ","79-43-6","Yes ","Minimum Criteria","Toxicity Criteria","Toxicity Criteria",null,"Carcinogen"]
[null,null,178,"Dichloroacetonitrile",5.6,"**",{"$error":"#N/A"},5.6,5.6,"-",null,null,56,"None Specified ","3018-12-0",null,"Minimum Criteria","NA","NA",null,"Systemic Toxicant"]
[null,null,179,"Dichlorobenzene, 1,2-",600,"",{"$error":"#N/A"},600,600,"-",99,99,6000,"Body Weight ","95-50-1",null,"Primary Standard","Toxicity Criteria","Toxicity Criteria",null,"Systemic Toxicant"]
[null,null,180,"Dichlorobenzene, 1,3-",210,"",{"$error":"#N/A"},210,210,"-",85,85,2100,"None Specified ","541-73-1",null,"Minimum Criteria","Toxicity Criteria","Toxicity Criteria",null,"Systemic Toxicant"]
[null,null,181,"Dichlorobenzene, 1,4-",75,"",{"$error":"#N/A"},75,75,"-",3,3,750,"Liver ","106-46-7","Yes ","Primary Standard","Human Health","Human Health",null,"Carcinogen"]
[null,null,182,"Dichlorobenzidine, 3,3'-",0.08,"",{"$error":"#N/A"},0.08,0.08,"-",0.03,0.03,0.8,null,"91-94-1","Yes ","Minimum Criteria","Human Health","Human Health",null,"Carcinogen"]
[null,null,183,"Dichlorobenzophenone, 4,4'-",210,"",{"$error":"#N/A"},210,210,"-",1600,1600,2100,"None Specified ","90-98-2",null,"Minimum Criteria","Human Health","Human Health",null,"Systemic Toxicant"]
[null,null,184,"Dichlorodifluoromethane",1400,"",{"$error":"#N/A"},1400,1400,"-",null,null,14000,"Liver ","75-71-8",null,"Minimum Criteria","NA","NA",null,"Systemic Toxicant"]
[null,null,185,"Dichlorodiphenyldichloroethane, p,p'-  [or DDD, 4,4'-]",0.1,"",{"$error":"#N/A"},0.1,0.1,"-",2.9999999999999997E-4,2.9999999999999997E-4,1,null,"72-54-8","Yes ","Minimum Criteria","Human Health","Human Health",null,"Carcinogen"]
[null,null,186,"Dichlorodiphenyldichloroethylene, p,p'-  [or DDE, 4,4'-]",0.1,"",{"$error":"#N/A"},0.1,0.1,"-",2.0000000000000001E-4,2.0000000000000001E-4,1,null,"72-55-9","Yes ","Minimum Criteria","Human Health","Human Health",null,"Carcinogen"]
[null,null,187,"Dichlorodiphenyltrichloroethane, p,p'-  [or DDT, 4,4'-]",0.1,"",{"$error":"#N/A"},0.1,0.1,"-",5.9000000000000003E-4,5.9000000000000003E-4,1,"Liver ","50-29-3","Yes ","Minimum Criteria","62-302","62-302",null,"Carcinogen","annual avg; 0.001 max","annual avg; 0.001 max"]
[null,null,189,"Dichloroethane, 1,2-  [or EDC]",3,"",{"$error":"#N/A"},3,3,"-",37,37,30,"None Specified ",-654726,"Yes ","Primary Standard","Human Health","Human Health",null,"Carcinogen"]
[null,null,191,"Dichloroethene, 1,2- (mixture)","NA","",{"$error":"#N/A"},"NA","NA","-",7000,7000,"NA","Blood, Liver ","540-59-0",null,null,"Toxicity Criteria","Toxicity Criteria"]
[null,null,194,"Dichlorophenol, 2,3-",0.04,"",21,21,21,0.04,56,56,0.4,"Immunological ","576-24-9",null,"Minimum Criteria","Toxicity Criteria","Toxicity Criteria",null,"Organoleptic"]
[null,null,195,"Dichlorophenol, 2,4-",0.3,"",21,21,21,0.3,13,13,3,"Immunological ","120-83-2",null,"Minimum Criteria","Toxicity Criteria","Toxicity Criteria",null,"Organoleptic"]
[null,null,196,"Dichlorophenol, 2,5-",0.5,"",21,21,21,0.5,90,90,5,"Immunological ","583-78-8",null,"Minimum Criteria","Toxicity Criteria","Toxicity Criteria",null,"Organoleptic"]
[null,null,197,"Dichlorophenol, 2,6-",0.2,"",21,21,21,0.2,73,73,2,"Immunological ","87-65-0",null,"Minimum Criteria","Toxicity Criteria","Toxicity Criteria",null,"Organoleptic"]
[null,null,198,"Dichlorophenol, 3,4-",0.3,"",21,21,21,0.3,61,61,3,"Immunological ","95-77-2",null,"Minimum Criteria","Toxicity Criteria","Toxicity Criteria",null,"Organoleptic"]
[null,null,199,"Dichlorophenoxy acetic acid, 2,4-",70,"",{"$error":"#N/A"},70,70,"-",80,80,700,"Blood, Kidney, Liver ","94-75-7",null,"Primary Standard","Toxicity Criteria","Toxicity Criteria",null,"Systemic Toxicant"]
[null,null,200,"Dichlorophenoxy butyric acid, 2,4-  [or DB, 2,4-]",56,"",{"$error":"#N/A"},56,56,"-",null,null,560,"Blood, Cardiovascular ","94-82-6",null,"Minimum Criteria","NA","NA",null,"Systemic Toxicant"]
[null,null,201,"Dichloropropane, 1,2-",5,"",{"$error":"#N/A"},5,5,"-",14,14,50,"Nasal ","78-87-5","Yes ","Primary Standard","Human Health","Human Health",null,"Carcinogen"]
[null,null,202,"Dichloropropene, 1,3-",0.4,"",{"$error":"#N/A"},0.4,0.4,"-",12,12,4,"Gastrointestinal, Nasal ","542-75-6","Yes ","Minimum Criteria","Toxicity Criteria","Toxicity Criteria",null,"Carcinogen"]
[null,null,203,"Dichlorprop",35,"",{"$error":"#N/A"},35,35,"-",42,42,350,"None Specified ","120-36-5",null,"Minimum Criteria","Toxicity Criteria","Toxicity Criteria",null,"Systemic Toxicant"]
[null,null,204,"Dichlorvos",0.1,"",{"$error":"#N/A"},0.1,0.1,"-",5.0000000000000001E-3,5.0000000000000001E-3,1,"Neurological ","62-73-7","Yes ","Minimum Criteria","Toxicity Criteria","Toxicity Criteria",null,"Carcinogen"]
[null,null,205,"Dicofol  [or Kelthane]",0.08,"",{"$error":"#N/A"},0.08,0.08,"-",6.0000000000000001E-3,6.0000000000000001E-3,0.8,"Adrenals ","115-32-2","Yes ","Minimum Criteria","Human Health","Human Health",null,"Carcinogen"]
[null,null,206,"Dicrotophos  [see Bidrin]",null,"",{"$error":"#N/A"},"","","-"]
[null,null,208,"Diethyl phthalate",5600,"",{"$error":"#N/A"},5600,5600,"-",380,380,56000,"Body Weight ","84-66-2",null,"Minimum Criteria","Toxicity Criteria","Toxicity Criteria",null,"Systemic Toxicant"]
[null,null,209,"Diethylene glycol, monoethyl ether",14000,"",{"$error":"#N/A"},14000,14000,"-",170000,170000,140000,"Kidney ","111-90-0",null,"Minimum Criteria","Toxicity Criteria","Toxicity Criteria",null,"Systemic Toxicant"]
[null,null,210,"Diethylstilbestrol",6.9999999999999999E-6,"",{"$error":"#N/A"},6.9999999999999999E-6,6.9999999999999999E-6,"-",null,null,6.9999999999999994E-5,null,"56-53-1","Yes ","Minimum Criteria","NA","NA",null,"Carcinogen"]
[null,null,211,"Diisopropyl methylphosphonate",560,"",{"$error":"#N/A"},560,560,"-",13000,13000,5600,"None Specified ","1445-75-6",null,"Minimum Criteria","Toxicity Criteria","Toxicity Criteria",null,"Systemic Toxicant"]
[null,null,212,"Dimethoate",1.4,"",{"$error":"#N/A"},1.4,1.4,"-",0.1,0.1,14,"Neurological ","60-51-5",null,"Minimum Criteria","Toxicity Criteria","Toxicity Criteria",null,"Systemic Toxicant"]
[null,null,213,"Dimethoxybenzidine, 3,3'-",2.5,"",{"$error":"#N/A"},2.5,2.5,"-",null,null,25,null,"119-90-4","Yes ","Minimum Criteria","NA","NA",null,"Carcinogen"]
[null,null,214,"Dimethrin",2100,"",{"$error":"#N/A"},2100,2100,"-",1.1000000000000001,1.1000000000000001,21000,"Liver ","70-38-2",null,"Minimum Criteria","Toxicity Criteria","Toxicity Criteria",null,"Systemic Toxicant"]
[null,null,215,"Dimethylaniline, 2,4-",0.05,"",{"$error":"#N/A"},0.05,0.05,"-",1700,1700,0.5,"Blood, Spleen ","95-68-1","Yes ","Minimum Criteria","Toxicity Criteria","Toxicity Criteria",null,"Carcinogen"]
[null,null,216,"Dimethylaniline, N,N-",14,"",{"$error":"#N/A"},14,14,"-",1700,1700,140,"Spleen ","121-69-7",null,"Minimum Criteria","Toxicity Criteria","Toxicity Criteria",null,"Systemic Toxicant"]
[null,null,217,"Dimethylbenzidine, 3,3'-",4.0000000000000001E-3,"",{"$error":"#N/A"},4.0000000000000001E-3,4.0000000000000001E-3,"-",null,null,0.04,null,"119-93-7","Yes ","Minimum Criteria","NA","NA",null,"Carcinogen"]
[null,null,218,"Dimethylformamide, N,N-",700,"",{"$error":"#N/A"},700,700,"-",50000,50000,7000,"Gastrointestinal, Liver ",25174,null,"Minimum Criteria","Toxicity Criteria","Toxicity Criteria",null,"Systemic Toxicant"]
[null,null,219,"Dimethylphenol, 2,4-",140,"",{"$error":"#N/A"},140,140,"-",160,160,1400,"Blood, Neurological ","105-67-9",null,"Minimum Criteria","Toxicity Criteria","Toxicity Criteria",null,"Systemic Toxicant"]
[null,null,220,"Dimethylphenol, 2,6-",4.2,"",{"$error":"#N/A"},4.2,4.2,"-",560,560,42,"Kidney, Liver, Spleen ","576-26-1",null,"Minimum Criteria","Toxicity Criteria","Toxicity Criteria",null,"Systemic Toxicant"]
[null,null,221,"Dimethylphenol, 3,4-",7,"",{"$error":"#N/A"},7,7,"-",380,380,70,"Kidney, Liver, Spleen ","95-65-8",null,"Minimum Criteria","Human Health","Human Health",null,"Systemic Toxicant"]
[null,null,222,"Dimethylphthalate",70000,"",{"$error":"#N/A"},70000,70000,"-",1400,1400,700000,"Kidney ",-645806,null,"Minimum Criteria","Toxicity Criteria","Toxicity Criteria",null,"Systemic Toxicant"]
[null,null,223,"Dinitrobenzene, 1,2- (o)",2.8,"",{"$error":"#N/A"},2.8,2.8,"-",30,30,28,"Spleen ","528-29-0",null,"Minimum Criteria","Toxicity Criteria","Toxicity Criteria",null,"Systemic Toxicant"]
[null,null,224,"Dinitrobenzene, 1,3- (m)",0.7,"",{"$error":"#N/A"},0.7,0.7,"-",72,72,7,"Spleen ","99-65-0",null,"Minimum Criteria","Toxicity Criteria","Toxicity Criteria",null,"Systemic Toxicant"]
[null,null,225,"Dinitrobenzene, 1,4- (p)",2.8,"",{"$error":"#N/A"},2.8,2.8,"-",30,30,28,"Spleen ","100-25-4",null,"Minimum Criteria","Toxicity Criteria","Toxicity Criteria",null,"Systemic Toxicant"]
[null,null,226,"Dinitro-o-cyclohexylphenol",14,"",{"$error":"#N/A"},14,14,"-",null,null,140,"Eye ","131-89-5",null,"Minimum Criteria","NA","NA",null,"Systemic Toxicant"]
[null,null,227,"Dinitrophenol, 2,4-",14,"",{"$error":"#N/A"},14,14,"-",3,3,140,"Eye ","51-28-5",null,"Minimum Criteria","Toxicity Criteria","Toxicity Criteria",null,"Systemic Toxicant"]
[null,null,228,"Dinitrotoluene, 2,4-",0.05,"",{"$error":"#N/A"},0.05,0.05,"-",9.1,9.1,0.5,"Liver, Neurological ","121-14-2","Yes ","Minimum Criteria","62-302","62-302",null,"Carcinogen","annual average","annual average"]
[null,null,229,"Dinitrotoluene, 2,6-",0.05,"",{"$error":"#N/A"},0.05,0.05,"-",0.7,0.7,0.5,"Blood, Kidney, Neurological ","606-20-2","Yes ","Minimum Criteria","Human Health","Human Health",null,"Carcinogen"]
[null,null,230,"Di-n-octylphthalate",140,"",{"$error":"#N/A"},140,140,"-",null,null,1400,"Kidney, Liver ","117-84-0",null,"Minimum Criteria","NA","NA",null,"Systemic Toxicant"]
[null,null,231,"Dinoseb",7,"",{"$error":"#N/A"},7,7,"-",5.9,5.9,70,"Developmental ","88-85-7",null,"Primary Standard","Toxicity Criteria","Toxicity Criteria",null,"Systemic Toxicant"]
[null,null,233,"Dioxins, as total 2,3,7,8-TCDD equivalents",3.0000000000000001E-5,"",{"$error":"#N/A"},3.0000000000000001E-5,3.0000000000000001E-5,"-",5.0000000000000001E-9,5.0000000000000001E-9,2.9999999999999997E-4,null,-56240,"Yes ","Primary Standard","Human Health","Human Health","(c)","Carcinogen"]
[null,null,234,"Diphenamid",210,"",{"$error":"#N/A"},210,210,"-",1600,1600,2100,"Liver ","957-51-7",null,"Minimum Criteria","Toxicity Criteria","Toxicity Criteria",null,"Systemic Toxicant"]
[null,null,235,"Diphenyl  [see Biphenyl, 1,1-]",null,"",{"$error":"#N/A"},"","","-"]
[null,null,236,"Diphenylamine, N,N-",180,"",{"$error":"#N/A"},180,180,"-",null,null,1800,"Kidney, Liver ","122-39-4",null,"Minimum Criteria","NA","NA",null,"Systemic Toxicant"]
[null,null,237,"Diphenylhydrazine, 1,2-",0.04,"",{"$error":"#N/A"},0.04,0.04,"-",0.2,0.2,0.4,null,"122-66-7","Yes ","Minimum Criteria","Human Health","Human Health",null,"Carcinogen"]
[null,null,238,"Diquat",20,"",{"$error":"#N/A"},20,20,"-",1.5,1.5,200,"Eye ","85-00-7",null,"Primary Standard","Toxicity Criteria","Toxicity Criteria",null,"Systemic Toxicant"]
[null,null,239,"Disulfoton",0.3,"",{"$error":"#N/A"},0.3,0.3,"-",0.3,0.3,3,"Neurological ",-585023,null,"Minimum Criteria","Toxicity Criteria","Toxicity Criteria",null,"Systemic Toxicant"]
[null,null,240,"Diuron",14,"",{"$error":"#N/A"},14,14,"-",8,8,140,"Blood ","330-54-1",null,"Minimum Criteria","Toxicity Criteria","Toxicity Criteria",null,"Systemic Toxicant"]
[null,null,241,"Dyrene  [see Anilazine]",null,"",{"$error":"#N/A"},"","","-"]
[null,null,242,"EDB  [see Dibromoethane, 1,2-]",null,"",{"$error":"#N/A"},{"$f":"IF(ISBLANK(E261),\"\",IF(ISNA(G261),E261,G261))","v":""},"","-"]
[null,null,243,"EDC  [see Dichloroethane, 1,2-]",null,"",{"$error":"#N/A"},"","","-"]
[null,null,244,"Endosulfan (alpha+beta+sulfate)",42,"",{"$error":"#N/A"},42,42,"-",5.6000000000000001E-2,8.6999999999999994E-3,420,"Cardiovascular, Kidney ","115-29-7",null,"Minimum Criteria","62-302","62-302",null,"Systemic Toxicant"]
[null,null,245,"Endothall",100,"",{"$error":"#N/A"},100,100,"-",110,110,1000,"Gastrointestinal ","145-73-3",null,"Primary Standard","Toxicity Criteria","Toxicity Criteria",null,"Systemic Toxicant"]
[null,null,246,"Endrin",2,"",{"$error":"#N/A"},2,2,"-",2.3E-3,2.3E-3,20,"Liver ","72-20-8",null,"Primary Standard","62-302","62-302",null,"Systemic Toxicant"]
[null,null,247,"EPEG  [see Ethylphthalyl ethylglycolate]",null,"",{"$error":"#N/A"},"","","-"]
[null,null,248,"Epichlorohydrin",3.5,"",{"$error":"#N/A"},3.5,3.5,"-",130,130,35,"Kidney, Nasal ","106-89-8","Yes ","Minimum Criteria","Human Health","Human Health",null,"Carcinogen"]
[null,null,249,"EPN  [see Ethyl p-nitrophenyl phenylphosphorothioate]",null,"",{"$error":"#N/A"},"","","-"]
[null,null,250,"EPTC  [see Ethyl dipropylthiocarbamate, S-]",null,"",{"$error":"#N/A"},"","","-"]
[null,null,251,"Ethanol",10000,"",400000,400000,400000,10000,null,null,100000,"Developmental ","64-17-5",null,"Minimum Criteria","NA","NA",null,"Organoleptic"]
[null,null,252,"Ethion",3.5,"",{"$error":"#N/A"},3.5,3.5,"-",7.0000000000000001E-3,7.0000000000000001E-3,35,"Neurological ",-487992,null,"Minimum Criteria","Toxicity Criteria","Toxicity Criteria",null,"Systemic Toxicant"]
[null,null,253,"Ethoprop",0.7,"",{"$error":"#N/A"},0.7,0.7,"-",0.3,0.3,7,"Neurological ","13194-48-4",null,"Minimum Criteria","Toxicity Criteria","Toxicity Criteria",null,"Systemic Toxicant"]
[null,null,254,"Ethoxyethanol acetate, 2-",2100,"",{"$error":"#N/A"},2100,2100,"-",2000,2000,21000,"Developmental ","111-15-9",null,"Minimum Criteria","Toxicity Criteria","Toxicity Criteria",null,"Systemic Toxicant"]
[null,null,255,"Ethoxyethanol, 2-",2800,"",{"$error":"#N/A"},2800,2800,"-",null,null,28000,"Reproductive ","110-80-5",null,"Minimum Criteria","NA","NA",null,"Systemic Toxicant"]
[null,null,256,"Ethyl acetate",6300,"",{"$error":"#N/A"},6300,6300,"-",6300,6300,63000,"Body Weight ","141-78-6",null,"Minimum Criteria","Toxicity Criteria","Toxicity Criteria",null,"Systemic Toxicant"]
[null,null,257,"Ethyl acrylate",0.4,"",0.7,0.7,0.7,0.4,130,130,4,null,"140-88-5","Yes ","Minimum Criteria","Toxicity Criteria","Toxicity Criteria",null,"Organoleptic"]
[null,null,258,"Ethyl chloride  [or Chloroethane]",12,"",{"$error":"#N/A"},12,12,"-",null,null,120,"Developmental ","75-00-3","Yes ","Minimum Criteria","NA","NA",null,"Carcinogen"]
[null,null,259,"Ethyl dipropylthiocarbamate, S-  [or EPTC]",180,"",{"$error":"#N/A"},180,180,"-",240,240,1800,"Cardiovascular ","759-94-4",null,"Minimum Criteria","Toxicity Criteria","Toxicity Criteria",null,"Systemic Toxicant"]
[null,null,260,"Ethyl ether",750,"",1400,1400,1400,750,130000,130000,7500,"Body Weight ","60-29-7",null,"Minimum Criteria","Toxicity Criteria","Toxicity Criteria",null,"Organoleptic"]
[null,null,261,"Ethyl methacrylate",630,"",{"$error":"#N/A"},630,630,"-",null,null,6300,"Kidney ","97-63-2",null,"Minimum Criteria","NA","NA",null,"Systemic Toxicant"]
[null,null,262,"Ethyl p-nitrophenyl phenylphosphorothioate  [or EPN]",7.0000000000000007E-2,"",{"$error":"#N/A"},7.0000000000000007E-2,7.0000000000000007E-2,"-",0.02,0.02,0.7,"Neurological ","2104-64-5",null,"Minimum Criteria","Toxicity Criteria","Toxicity Criteria",null,"Systemic Toxicant"]
[null,null,264,"Ethylene diamine",140,"",{"$error":"#N/A"},140,140,"-",800,800,1400,"Blood, Cardiovascular ","107-15-3",null,"Minimum Criteria","Toxicity Criteria","Toxicity Criteria",null,"Systemic Toxicant"]
[null,null,265,"Ethylene glycol",14000,"",{"$error":"#N/A"},14000,14000,"-",16000,16000,140000,"Kidney ","107-21-1",null,"Minimum Criteria","Toxicity Criteria","Toxicity Criteria",null,"Systemic Toxicant"]
[null,null,266,"Ethylene oxide",0.03,"",{"$error":"#N/A"},0.03,0.03,"-",4200,4200,0.3,null,"75-21-8","Yes ","Minimum Criteria","Toxicity Criteria","Toxicity Criteria",null,"Carcinogen"]
[null,null,267,"Ethylene thiourea  [or ETU]",0.3,"",{"$error":"#N/A"},0.3,0.3,"-",1300,1300,3,"Thyroid ","96-45-7","Yes ","Minimum Criteria","Toxicity Criteria","Toxicity Criteria",null,"Carcinogen"]
[null,null,268,"Ethylphthalyl ethylglycolate  [or EPEG]",21000,"",{"$error":"#N/A"},21000,21000,"-",null,null,210000,"Kidney ","84-72-0",null,"Minimum Criteria","NA","NA",null,"Systemic Toxicant"]
[null,null,269,"ETU  [see Ethylene thiourea]",null,"",{"$error":"#N/A"},"","","-"]
[null,null,270,"Famphur",3.5,"",{"$error":"#N/A"},3.5,3.5,"-",null,null,35,"Blood ","52-85-7",null,"Minimum Criteria","NA","NA",null,"Systemic Toxicant"]
[null,null,271,"Fenamiphos",1.8,"",{"$error":"#N/A"},1.8,1.8,"-",0.2,0.2,18,"Neurological ","22224-92-6",null,"Minimum Criteria","Toxicity Criteria","Toxicity Criteria",null,"Systemic Toxicant"]
[null,null,272,"Fensulfothion",1.8,"",{"$error":"#N/A"},1.8,1.8,"-",0.5,0.5,18,"Neurological ","115-90-2",null,"Minimum Criteria","Toxicity Criteria","Toxicity Criteria",null,"Systemic Toxicant"]
[null,null,273,"Fenvalerate  [see Pydrin]",null,"",{"$error":"#N/A"},"","","-"]
[null,null,274,"Fluometuron",91,"",{"$error":"#N/A"},91,91,"-",190,190,910,"None Specified ","2164-17-2",null,"Minimum Criteria","Toxicity Criteria","Toxicity Criteria",null,"Systemic Toxicant"]
[null,null,275,"Fluoranthene",280,"",{"$error":"#N/A"},280,280,"-",0.3,0.3,2800,"Blood, Kidney, Liver ","206-44-0",null,"Minimum Criteria","Toxicity Criteria","Toxicity Criteria",null,"Systemic Toxicant"]
[null,null,276,"Fluorene",280,"",{"$error":"#N/A"},280,280,"-",30,30,2800,"Blood ","86-73-7",null,"Minimum Criteria","Toxicity Criteria","Toxicity Criteria",null,"Systemic Toxicant"]
[null,null,277,"Fluoride",2000,"","420(a)","420(a)","Secondary",2000,10000,5000,20000,"Teeth mottling","7782-41-4",null,"Secondary Standard","62-302","62-302",null,"Nuisance"]
[null,null,278,"Fluoridone",560,"",{"$error":"#N/A"},560,560,"-",110,110,5600,"Kidney, Reproductive ","59756-60-4",null,"Minimum Criteria","Toxicity Criteria","Toxicity Criteria",null,"Systemic Toxicant"]
[null,null,279,"Fonofos",14,"",{"$error":"#N/A"},14,14,"-",0.1,0.1,140,"Liver, Neurological ","944-22-9",null,"Minimum Criteria","Toxicity Criteria","Toxicity Criteria",null,"Systemic Toxicant"]
[null,null,280,"Formaldehyde",600,"",1400,1400,1400,600,110,110,6000,"Gastrointestinal ","50-00-0","Yes ","Minimum Criteria","Toxicity Criteria","Toxicity Criteria",null,"Organoleptic"]
[null,null,281,"Formic acid",14000,"",{"$error":"#N/A"},14000,14000,"-",4500,4500,140000,"Body Weight ","64-18-6",null,"Minimum Criteria","Toxicity Criteria","Toxicity Criteria",null,"Systemic Toxicant"]
[null,null,282,"Furan",7,"",{"$error":"#N/A"},7,7,"-",null,null,70,"Liver ","110-00-9",null,"Minimum Criteria","NA","NA",null,"Systemic Toxicant"]
[null,null,283,"Furfural",21,"",{"$error":"#N/A"},21,21,"-",650,650,210,"Liver, Nasal ",35796,null,"Minimum Criteria","Toxicity Criteria","Toxicity Criteria",null,"Systemic Toxicant"]
[null,null,284,"Glycidaldehyde",2.8,"",{"$error":"#N/A"},2.8,2.8,"-",null,null,28,"Adrenals, Blood, Kidney ","765-34-4",null,"Minimum Criteria","NA","NA",null,"Systemic Toxicant"]
[null,null,285,"Glyphosate  [or Roundup]",700,"",{"$error":"#N/A"},700,700,"-",120,120,7000,"Kidney ","1071-83-6",null,"Primary Standard","Toxicity Criteria","Toxicity Criteria",null,"Systemic Toxicant"]
[null,null,286,"Gross alpha radiation",15,"",{"$error":"#N/A"},15,15,"-",15,15,150,null,"14127-62-9","Yes ","Primary Standard","62-302","62-302",null,"pCi/L","pCi/L","pCi/L"]
[null,null,287,"Guthion  [or Methyl azinphos]",11,"",{"$error":"#N/A"},11,11,"-",0.01,0.01,110,"Neurological ","86-50-0",null,"Minimum Criteria","62-302","62-302",null,"Systemic Toxicant"]
[null,null,288,"Heptachlor",0.4,"",{"$error":"#N/A"},0.4,0.4,"-",2.1000000000000001E-4,2.1000000000000001E-4,4,"Liver ","76-44-8","Yes ","Primary Standard","62-302","62-302",null,"Carcinogen","annual avg; 0.0038 max.","annual avg; 0.0036 max."]
[null,null,290,"Hexachloro-1,3-butadiene",0.4,"",{"$error":"#N/A"},0.4,0.4,"-",49.7,49.7,4,"Kidney ","87-68-3","Yes ","Minimum Criteria","62-302","62-302",null,"Carcinogen","annual average","annual average"]
[null,null,291,"Hexachlorobenzene",1,"",{"$error":"#N/A"},1,1,"-",2.9999999999999997E-4,2.9999999999999997E-4,10,"Liver ","118-74-1","Yes ","Primary Standard","Human Health","Human Health",null,"Carcinogen"]
[null,null,294,"Hexachlorocyclohexane, delta-  [or BHC, delta-]",2.1,"",{"$error":"#N/A"},2.1,2.1,"-",null,null,21,"Kidney, Liver ","319-86-8",null,"Minimum Criteria","NA","NA",null,"Systemic Toxicant"]
[null,null,295,"Hexachlorocyclohexane, gamma-  [or Lindane or BHC, gamma-]",0.2,"",{"$error":"#N/A"},0.2,0.2,"-",6.3E-2,6.3E-2,2,"Kidney, Liver ","58-89-9","Yes ","Primary Standard","62-302","62-302",null,"Carcinogen","annual avg; 0.08 max.","annual avg; 0.16 max."]
[null,null,296,"Hexachlorocyclohexane, technical  [ or BHC, technical]",0.02,"",{"$error":"#N/A"},0.02,0.02,"-",0.02,0.02,0.2,null,"608-73-1","Yes ","Minimum Criteria","Toxicity Criteria","Toxicity Criteria",null,"Carcinogen"]
[null,null,297,"Hexachlorocyclopentadiene",50,"",{"$error":"#N/A"},50,50,"-",3,3,500,"Gastrointestinal ","77-47-4",null,"Primary Standard","Toxicity Criteria","Toxicity Criteria",null,"Systemic Toxicant"]
[null,null,298,"Hexachlorodibenzo-p-dioxin (mixture)",6.0000000000000002E-6,"",{"$error":"#N/A"},6.0000000000000002E-6,6.0000000000000002E-6,"-",null,null,6.0000000000000002E-5,null,"19408-74-3","Yes ","Minimum Criteria","NA","NA",null,"Carcinogen"]
[null,null,299,"Hexachloroethane",2.5,"",{"$error":"#N/A"},2.5,2.5,"-",3.3,3.3,25,"Kidney ","67-72-1","Yes ","Minimum Criteria","Human Health","Human Health",null,"Carcinogen"]
[null,null,300,"Hexachlorophene",2.1,"",{"$error":"#N/A"},2.1,2.1,"-",1.1000000000000001,1.1000000000000001,21,"Neurological ","70-30-4",null,"Minimum Criteria","Toxicity Criteria","Toxicity Criteria",null,"Systemic Toxicant"]
[null,null,301,"Hexahydro-1,3,5-trinitro-1,3,5-triazine  [or RDX]",0.3,"",{"$error":"#N/A"},0.3,0.3,"-",180,180,3,"Reproductive ","121-82-4","Yes ","Minimum Criteria","Toxicity Criteria","Toxicity Criteria",null,"Carcinogen"]
[null,null,302,"Hexane, n-",6,"",420,420,420,6,3400,3400,60,"Neurological ","110-54-3",null,"Minimum Criteria","Toxicity Criteria","Toxicity Criteria",null,"Organoleptic"]
[null,null,303,"Hexanone, 2-  [or Methyl butyl ketone]",280,"",{"$error":"#N/A"},280,280,"-",null,null,2800,"None Specified ","591-78-6",null,"Minimum Criteria","NA","NA",null,"Systemic Toxicant"]
[null,null,304,"Hexazinone",230,"",{"$error":"#N/A"},230,230,"-",25000,25000,2300,"Body Weight ","51235-04-2",null,"Minimum Criteria","Human Health","Human Health",null,"Systemic Toxicant"]
[null,null,305,"HMX  [see Octahydro-1,3,5,7-tetranitro-tetrazocine]",null,"",{"$error":"#N/A"},"","","-"]
[null,null,306,"Hydrogen cyanide (as Cyanide)",140,"",{"$error":"#N/A"},140,140,"-",3.5,3.5,1400,"Neurological, Thyroid ","74-90-8",null,"Minimum Criteria","Toxicity Criteria","Toxicity Criteria",null,"Systemic Toxicant"]
[null,null,307,"Hydrogen sulfide",21,"",{"$error":"#N/A"},21,21,"-",0.1,0.1,210,"Gastrointestinal, Nasal ",2148878,null,"Minimum Criteria","Toxicity Criteria","Toxicity Criteria",null,"Systemic Toxicant"]
[null,null,308,"Hydroquinone",280,"",{"$error":"#N/A"},280,280,"-",4.5,4.5,2800,"Blood ","123-31-9",null,"Minimum Criteria","Toxicity Criteria","Toxicity Criteria",null,"Systemic Toxicant"]
[null,null,309,"Indeno(1,2,3-cd)pyrene",0.05,"",{"$error":"#N/A"},0.05,0.05,"-","*","*",0.5,null,"193-39-5","Yes ","Minimum Criteria","62-302","62-302",null,"Carcinogen","annual average","annual average"]
[null,null,310,"Iprodione",280,"",{"$error":"#N/A"},{"$f":"IF(ISBLANK(E325),\"\",IF(ISNA(G325),E325,G325))","v":280},280,"-",150,150,2800,"Blood ","36734-19-7",null,"Minimum Criteria","Toxicity Criteria","Toxicity Criteria",null,"Systemic Toxicant"]
[null,null,312,"Isobutyl alcohol",2100,"",{"$error":"#N/A"},2100,2100,"-",47000,47000,21000,"Neurological ","78-83-1",null,"Minimum Criteria","Toxicity Criteria","Toxicity Criteria",null,"Systemic Toxicant"]
[null,null,313,"Isophorone",37,"",{"$error":"#N/A"},37,37,"-",650,650,370,"None Specified ","78-59-1","Yes ","Minimum Criteria","Toxicity Criteria","Toxicity Criteria",null,"Carcinogen"]
[null,null,314,"Isopropyl benzene  [see Cumene]",null,"",{"$error":"#N/A"},"","","-"]
[null,null,315,"Kelthane  [see Dicofol]",null,"",{"$error":"#N/A"},"","","-"]
[null,null,316,"Kepone",4.0000000000000001E-3,"",{"$error":"#N/A"},4.0000000000000001E-3,4.0000000000000001E-3,"-",null,null,0.04,null,"143-50-0","Yes ","Minimum Criteria","NA","NA",null,"Carcinogen"]
[null,null,318,"Limonene",700,"",{"$error":"#N/A"},700,700,"-",null,null,7000,"Kidney, Liver ","138-86-3",null,"Minimum Criteria","NA","NA",null,"Systemic Toxicant"]
[null,null,319,"Lindane  [see Hexachlorocyclohexane, gamma-]",null,"",{"$error":"#N/A"},"","","-"]
[null,null,320,"Linuron",1.4,"**",{"$error":"#N/A"},1.4,1.4,"-",45,45,14,"Blood ","330-55-2",null,"Minimum Criteria","Toxicity Criteria","Toxicity Criteria",null,"Systemic Toxicant"]
[null,null,321,"Lithium",140,"",{"$error":"#N/A"},140,140,"-",null,null,1400,"None Specified ","7439-93-2",null,"Minimum Criteria","NA","NA",null,"Systemic Toxicant"]
[null,null,322,"Malathion",140,"",{"$error":"#N/A"},140,140,"-",0.1,0.1,1400,"Neurological ","121-75-5",null,"Minimum Criteria","62-302","62-302",null,"Systemic Toxicant"]
[null,null,323,"Maleic anhydride",700,"",{"$error":"#N/A"},700,700,"-",null,null,7000,"Kidney ","108-31-6",null,"Minimum Criteria","NA","NA",null,"Systemic Toxicant"]
[null,null,324,"Maleic hydrazide",3500,"",{"$error":"#N/A"},3500,3500,"-",750,750,35000,"Kidney ","123-33-1",null,"Minimum Criteria","Toxicity Criteria","Toxicity Criteria",null,"Systemic Toxicant"]
[null,null,325,"Mancozeb",210,"",{"$error":"#N/A"},210,210,"-",3.5,3.5,2100,"Thyroid ",2234562,null,"Minimum Criteria","Toxicity Criteria","Toxicity Criteria",null,"Systemic Toxicant"]
[null,null,326,"Maneb",35,"",{"$error":"#N/A"},35,35,"-",5.5,5.5,350,"Thyroid ","12427-38-2",null,"Minimum Criteria","Toxicity Criteria","Toxicity Criteria",null,"Systemic Toxicant"]
[null,null,328,"MCPA  [see Methyl-4-chlorophenoxy acetic acid, 2- ]",null,"",{"$error":"#N/A"},"","","-"]
[null,null,329,"MCPP  [see Propionic acid, 2-(2-methyl-4-chlorophenoxy)]",null,"",{"$error":"#N/A"},"","","-"]
[null,null,330,"Mercuric chloride (as Mercury)",0.2,"**",{"$error":"#N/A"},0.2,0.2,"-",0.05,0.05,2,"Immunological, Kidney ","7487-94-7",null,"Minimum Criteria","Toxicity Criteria","Toxicity Criteria",null,"Systemic Toxicant"]
[null,null,332,"Mercury, methyl-  [see Methylmercury]",null,"",{"$error":"#N/A"},"","","-"]
[null,null,333,"Merphos",0.2,"",{"$error":"#N/A"},0.2,0.2,"-",null,null,2,"Neurological ","150-50-5",null,"Minimum Criteria","NA","NA",null,"Systemic Toxicant"]
[null,null,334,"Merphos oxide",0.2,"",{"$error":"#N/A"},0.2,0.2,"-",0.2,0.2,2,"Neurological ","78-48-8",null,"Minimum Criteria","Toxicity Criteria","Toxicity Criteria",null,"Systemic Toxicant"]
[null,null,335,"Metalaxyl",420,"",{"$error":"#N/A"},420,420,"-",37,37,4200,"Blood, Liver, Neurological ","57837-19-1",null,"Minimum Criteria","Toxicity Criteria","Toxicity Criteria",null,"Systemic Toxicant"]
[null,null,336,"Methacrylonitrile",0.7,"",{"$error":"#N/A"},0.7,0.7,"-",null,null,7,"Liver ","126-98-7",null,"Minimum Criteria","NA","NA",null,"Systemic Toxicant"]
[null,null,337,"Methamidophos",0.4,"",{"$error":"#N/A"},0.4,0.4,"-",1.0000000000000001E-5,1.0000000000000001E-5,4,"Neurological ","10265-92-6",null,"Minimum Criteria","Toxicity Criteria","Toxicity Criteria",null,"Systemic Toxicant"]
[null,null,338,"Methanol",3500,"",{"$error":"#N/A"},3500,3500,"-",45000,45000,35000,"Developmental, Eye, Neurological ","67-56-1",null,"Minimum Criteria","Toxicity Criteria","Toxicity Criteria",null,"Systemic Toxicant"]
[null,null,339,"Methidathion",0.7,"**",{"$error":"#N/A"},0.7,0.7,"-",0.03,0.03,7,"Liver ","950-37-8",null,"Minimum Criteria","Toxicity Criteria","Toxicity Criteria",null,"Systemic Toxicant"]
[null,null,340,"Methomyl",180,"",{"$error":"#N/A"},180,180,"-",1,1,1800,"Kidney, Spleen ","16752-77-5",null,"Minimum Criteria","Toxicity Criteria","Toxicity Criteria",null,"Systemic Toxicant"]
[null,null,341,"Methoxy-5-nitroaniline, 2-",0.8,"",{"$error":"#N/A"},0.8,0.8,"-",null,null,8,null,"99-59-2","Yes ","Minimum Criteria","NA","NA",null,"Carcinogen"]
[null,null,342,"Methoxychlor",40,"",{"$error":"#N/A"},40,40,"-",0.03,0.03,400,"Developmental, Reproductive ","72-43-5",null,"Primary Standard","62-302","62-302",null,"Systemic Toxicant"]
[null,null,343,"Methoxyethanol, 2-",7,"",{"$error":"#N/A"},7,7,"-",null,null,70,"Reproductive ","109-86-4",null,"Minimum Criteria","NA","NA",null,"Systemic Toxicant"]
[null,null,344,"Methyl acetate",3000,"",7000,7000,7000,3000,null,null,30000,"Liver ","79-20-9",null,"Minimum Criteria","NA","NA",null,"Organoleptic"]
[null,null,345,"Methyl acrylate",210,"",{"$error":"#N/A"},210,210,"-",null,null,2100,"None Specified ","96-33-3",null,"Minimum Criteria","NA","NA",null,"Systemic Toxicant"]
[null,null,346,"Methyl azinphos  [see Guthion]",null,"",{"$error":"#N/A"},"","","-"]
[null,null,347,"Methyl bromide  [see Bromomethane]",null,"",{"$error":"#N/A"},"","","-"]
[null,null,348,"Methyl butyl ketone  [see Hexanone, 2-]",null,"",{"$error":"#N/A"},"","","-"]
[null,null,349,"Methyl chloride  [or Chloromethane]",2.7,"",{"$error":"#N/A"},2.7,2.7,"-",470.8,470.8,27,"Neurological ","74-87-3","Yes ","Minimum Criteria","62-302","62-302",null,"Carcinogen","annual average","annual average"]
[null,null,350,"Methyl chloroform  [see Trichloroethane, 1,1,1-]",null,"",{"$error":"#N/A"},"","","-"]
[null,null,351,"Methyl ethyl ketone  [or Butanone, 2-]",4200,"",{"$error":"#N/A"},4200,4200,"-",120000,120000,42000,"Developmental ","78-93-3",null,"Minimum Criteria","Toxicity Criteria","Toxicity Criteria",null,"Systemic Toxicant"]
[null,null,352,"Methyl isobutyl ketone  [or MIBK]",560,"",{"$error":"#N/A"},560,560,"-",23000,23000,5600,"Kidney, Liver ",-654239,null,"Minimum Criteria","Toxicity Criteria","Toxicity Criteria",null,"Systemic Toxicant"]
[null,null,353,"Methyl methacrylate",25,"",9800,9800,9800,25,6500,6500,250,"Nasal ","80-62-6",null,"Minimum Criteria","Toxicity Criteria","Toxicity Criteria",null,"Organoleptic"]
[null,null,354,"Methyl parathion  [or Parathion, methyl]",1.8,"",{"$error":"#N/A"},1.8,1.8,"-",0.01,0.01,18,"Blood, Neurological ","298-00-0",null,"Minimum Criteria","Toxicity Criteria","Toxicity Criteria",null,"Systemic Toxicant"]
[null,5,355,"Methyl tert-butyl ether  [or MTBE]",20,"","NA","NA","NA",20,34000,34000,200,"Eye, Kidney, Liver ",-97059,null,"Minimum Criteria","Toxicity Criteria","Toxicity Criteria",null,"Organoleptic"]
[null,null,356,"Methyl-4-chlorophenoxy acetic acid, 2-  [or MCPA]",3.5,"",{"$error":"#N/A"},3.5,3.5,"-",72,72,35,"Kidney, Liver ","94-74-6",null,"Minimum Criteria","Toxicity Criteria","Toxicity Criteria",null,"Systemic Toxicant"]
[null,null,357,"Methyl-5-nitroaniline, 2-",1.1000000000000001,"",{"$error":"#N/A"},1.1000000000000001,1.1000000000000001,"-",null,null,11,null,"99-55-8","Yes ","Minimum Criteria","NA","NA",null,"Carcinogen"]
[null,null,358,"Methylaniline, 2-",0.1,"",{"$error":"#N/A"},0.1,0.1,"-",26,26,1,null,"95-53-4","Yes ","Minimum Criteria","Toxicity Criteria","Toxicity Criteria",null,"Carcinogen"]
[null,null,359,"Methylene bis(2-chloroaniline), 4,4-",0.3,"",{"$error":"#N/A"},0.3,0.3,"-",null,null,3,"Liver, Bladder","101-14-4","Yes ","Minimum Criteria","NA","NA",null,"Carcinogen"]
[null,null,360,"Methylene bromide",70,"",{"$error":"#N/A"},70,70,"-",null,null,700,"Blood ","74-95-3",null,"Minimum Criteria","NA","NA",null,"Systemic Toxicant"]
[null,null,361,"Methylene chloride",5,"",{"$error":"#N/A"},5,5,"-",1580,1580,50,"Liver ",27639,"Yes ","Primary Standard","62-302","62-302",null,"Carcinogen","annual average","annual average"]
[null,null,362,"Methylmercury  [or Mercury, methyl]",7.0000000000000007E-2,"**",{"$error":"#N/A"},7.0000000000000007E-2,7.0000000000000007E-2,"-",null,null,0.7,"Neurological ","22967-92-6",null,"Minimum Criteria","NA","NA",null,"Systemic Toxicant"]
[null,7,363,"Methylnaphthalene, 1-",28,"",{"$error":"#N/A"},28,28,"-",95,95,280,"Nasal ","90-12-0",null,"Minimum Criteria","Toxicity Criteria","Toxicity Criteria",null,"Systemic Toxicant"]
[null,8,364,"Methylnaphthalene, 2-",28,"",{"$error":"#N/A"},28,28,"-",30,30,280,"Nasal ","91-57-6",null,"Minimum Criteria","Toxicity Criteria","Toxicity Criteria",null,"Systemic Toxicant"]
[null,null,365,"Methylphenol, 2-  [or Cresol, o-]",35,"**",{"$error":"#N/A"},35,35,"-",250,250,350,"Neurological ","95-48-7",null,"Minimum Criteria","Toxicity Criteria","Toxicity Criteria",null,"Systemic Toxicant"]
[null,null,366,"Methylphenol, 3-  [or Cresol, m-]",35,"**",{"$error":"#N/A"},35,35,"-",450,450,350,"Neurological ","108-39-4",null,"Minimum Criteria","Toxicity Criteria","Toxicity Criteria",null,"Systemic Toxicant"]
[null,null,367,"Methylphenol, 4-  [or Cresol, p-]",3.5,"**",{"$error":"#N/A"},3.5,3.5,"-",70,70,35,"Neurological, Respiratory ","106-44-5",null,"Minimum Criteria","Toxicity Criteria","Toxicity Criteria",null,"Systemic Toxicant"]
[null,null,368,"Metolachlor",110,"**",{"$error":"#N/A"},110,110,"-",1.1000000000000001,1.1000000000000001,1100,"Body Weight ","51218-45-2",null,"Minimum Criteria","Toxicity Criteria","Toxicity Criteria",null,"Systemic Toxicant"]
[null,null,369,"Metribuzin",180,"",{"$error":"#N/A"},180,180,"-",64,64,1800,"Kidney, Liver ","21087-64-9",null,"Minimum Criteria","Toxicity Criteria","Toxicity Criteria",null,"Systemic Toxicant"]
[null,null,370,"Metsulfuron, methyl  [see Ally]",null,"",{"$error":"#N/A"},"","","-"]
[null,null,371,"Mevinphos",1.8,"",{"$error":"#N/A"},1.8,1.8,"-",0.05,0.05,18,"Neurological ","7786-34-7",null,"Minimum Criteria","Toxicity Criteria","Toxicity Criteria",null,"Systemic Toxicant"]
[null,null,372,"MIBK  [see Methyl isobutyl ketone]",null,"",{"$error":"#N/A"},"","","-"]
[null,null,373,"Mirex",1.4,"",{"$error":"#N/A"},1.4,1.4,"-",1E-3,1E-3,14,"Liver, Thyroid ","2385-85-5",null,"Minimum Criteria","62-302","62-302",null,"Systemic Toxicant"]
[null,null,374,"Molinate",14,"",{"$error":"#N/A"},14,14,"-",17,17,140,"Reproductive ","2212-67-1",null,"Minimum Criteria","Toxicity Criteria","Toxicity Criteria",null,"Systemic Toxicant"]
[null,null,375,"Molybdenum",35,"",{"$error":"#N/A"},35,35,"-",null,null,350,"Gout","7439-98-7",null,"Minimum Criteria","NA","NA",null,"Systemic Toxicant"]
[null,null,376,"MTBE  [see Methyl tert-butyl ether]",null,"",{"$error":"#N/A"},"","","-"]
[null,null,377,"Naled",14,"",{"$error":"#N/A"},14,14,"-",0.02,0.02,140,"Neurological ","300-76-5",null,"Minimum Criteria","Toxicity Criteria","Toxicity Criteria",null,"Systemic Toxicant"]
[null,null,379,"Naphthylamine, 2-",2.9999999999999997E-4,"",{"$error":"#N/A"},{"$f":"IF(ISBLANK(E389),\"\",IF(ISNA(G389),E389,G389))","v":2.9999999999999997E-4},2.9999999999999997E-4,"-",null,null,3.0000000000000001E-3,null,"91-59-8","Yes ","Minimum Criteria","NA","NA",null,"Carcinogen"]
[null,null,380,"Napropamide",700,"",{"$error":"#N/A"},700,700,"-",210,210,7000,"Body Weight ","15299-99-7",null,"Minimum Criteria","Toxicity Criteria","Toxicity Criteria",null,"Systemic Toxicant"]
[null,null,381,"Nickel",100,"",{"$error":"#N/A"},100,100,"-",null,8.3000000000000007,1000,"Body Weight ","7440-02-0",null,"Primary Standard","62-302","62-302",null,"Systemic Toxicant","f, g","g"]
[null,null,382,"Nickel subsulfide",100,"",{"$error":"#N/A"},100,100,"-",null,8.3000000000000007,1000,null,"12035-72-2","Yes ","Primary Standard","62-302","62-302",null,"Carcinogen","f, g","g"]
[null,null,384,"Nitrate+Nitrite",10000,"",{"$error":"#N/A"},10000,10000,"-",null,null,100000,"Blood ","NOCAS",null,"Primary Standard","NA","NA",null,"Systemic Toxicant"]
[null,null,385,"Nitrite",1000,"",{"$error":"#N/A"},1000,1000,"-",null,null,10000,"Blood ","14797-65-0",null,"Primary Standard","NA","NA",null,"Systemic Toxicant"]
[null,null,386,"Nitroaniline, m-",1.7,"",{"$error":"#N/A"},1.7,1.7,"-",null,null,17,"Blood ",36405,"Yes ","Minimum Criteria","NA","NA",null,"Carcinogen"]
[null,null,387,"Nitroaniline, o-",21,"",{"$error":"#N/A"},21,21,"-",null,null,210,"Blood ","88-74-4",null,"Minimum Criteria","NA","NA",null,"Systemic Toxicant"]
[null,null,388,"Nitroaniline, p-",1.7,"",{"$error":"#N/A"},1.7,1.7,"-",1200,1200,17,"Blood ",-657429,"Yes ","Minimum Criteria","Toxicity Criteria","Toxicity Criteria",null,"Carcinogen"]
[null,null,389,"Nitrobenzene",3.5,"",{"$error":"#N/A"},3.5,3.5,"-",90,90,35,"Adrenals, Blood, Kidney, Liver ","98-95-3",null,"Minimum Criteria","Toxicity Criteria","Toxicity Criteria",null,"Systemic Toxicant"]
[null,null,390,"Nitrophenol, 4-",56,"",{"$error":"#N/A"},56,56,"-",55,55,560,"None Specified ",-657397,null,"Minimum Criteria","Toxicity Criteria","Toxicity Criteria",null,"Systemic Toxicant"]
[null,null,391,"Nitroso-di-ethylamine, N-",2.0000000000000001E-4,"",{"$error":"#N/A"},2.0000000000000001E-4,2.0000000000000001E-4,"-",8.0000000000000002E-3,8.0000000000000002E-3,2E-3,null,"55-18-5","Yes ","Minimum Criteria","Human Health","Human Health",null,"Carcinogen"]
[null,null,392,"Nitroso-dimethylamine, N-",6.9999999999999999E-4,"",{"$error":"#N/A"},6.9999999999999999E-4,6.9999999999999999E-4,"-",3,3,7.0000000000000001E-3,null,"62-75-9","Yes ","Minimum Criteria","Human Health","Human Health",null,"Carcinogen"]
[null,null,393,"Nitroso-di-n-butylamine, N-",6.0000000000000001E-3,"",{"$error":"#N/A"},6.0000000000000001E-3,6.0000000000000001E-3,"-",0.04,0.04,0.06,null,"924-16-3","Yes ","Minimum Criteria","Human Health","Human Health",null,"Carcinogen"]
[null,null,394,"Nitroso-di-n-propylamine, N-",5.0000000000000001E-3,"",{"$error":"#N/A"},5.0000000000000001E-3,5.0000000000000001E-3,"-",0.5,0.5,0.05,null,"621-64-7","Yes ","Minimum Criteria","Human Health","Human Health",null,"Carcinogen"]
[null,null,395,"Nitroso-diphenylamine, N-",7.1,"",{"$error":"#N/A"},7.1,7.1,"-",6,6,71,null,"86-30-6","Yes ","Minimum Criteria","Human Health","Human Health",null,"Carcinogen"]
[null,null,396,"Nitroso-N-methylethylamine, N-",2E-3,"",{"$error":"#N/A"},2E-3,2E-3,"-",0.06,0.06,0.02,null,"10595-95-6","Yes ","Minimum Criteria","Human Health","Human Health",null,"Carcinogen"]
[null,null,397,"Nitrosopyrrolidine, N-",0.02,"",{"$error":"#N/A"},0.02,0.02,"-",null,null,0.2,null,"930-55-2","Yes ","Minimum Criteria","NA","NA",null,"Carcinogen"]
[null,null,398,"Nitrotoluene, m-",140,"",{"$error":"#N/A"},140,140,"-",380,380,1400,"Spleen ",36373,null,"Minimum Criteria","Toxicity Criteria","Toxicity Criteria",null,"Systemic Toxicant"]
[null,null,399,"Nitrotoluene, o-",70,"",{"$error":"#N/A"},70,70,"-",550,550,700,"Spleen ","88-72-2",null,"Minimum Criteria","Toxicity Criteria","Toxicity Criteria",null,"Systemic Toxicant"]
[null,null,400,"Nitrotoluene, p-",70,"",{"$error":"#N/A"},70,70,"-",550,550,700,"Spleen ","99-99-0",null,"Minimum Criteria","Toxicity Criteria","Toxicity Criteria",null,"Systemic Toxicant"]
[null,null,401,"Nonylphenol",8.4,"",{"$error":"#N/A"},8.4,8.4,"-",5.9,1.4,84,"Kidney ","25154-52-3",null,"Minimum Criteria","Toxicity Criteria","Toxicity Criteria",null,"Systemic Toxicant"]
[null,null,402,"Norflurazon",280,"",{"$error":"#N/A"},280,280,"-",null,null,2800,"Kidney, Liver, Thyroid ","27314-13-2",null,"Minimum Criteria","NA","NA",null,"Systemic Toxicant"]
[null,null,403,"Octahydro-1,3,5,7-tetranitro-tetrazocine  [or HMX]",350,"",{"$error":"#N/A"},350,350,"-",1300,1300,3500,"Blood, Liver ","2691-41-0",null,"Minimum Criteria","Toxicity Criteria","Toxicity Criteria",null,"Systemic Toxicant"]
[null,null,404,"Octamethylpyrophosphoramide",14,"",{"$error":"#N/A"},14,14,"-",null,null,140,"Neurological ","152-16-9",null,"Minimum Criteria","NA","NA",null,"Systemic Toxicant"]
[null,null,405,"Oryzalin",35,"**",{"$error":"#N/A"},35,35,"-",null,null,350,"Adrenals, Blood, Kidney, Liver ","19044-88-3",null,"Minimum Criteria","NA","NA",null,"Systemic Toxicant"]
[null,null,406,"Oxadiazon",35,"",{"$error":"#N/A"},35,35,"-",44,44,350,"Liver ","19666-30-9",null,"Minimum Criteria","Toxicity Criteria","Toxicity Criteria",null,"Systemic Toxicant"]
[null,null,407,"Oxamyl",200,"",{"$error":"#N/A"},200,200,"-",8.5,8.5,2000,"Body Weight ","23135-22-0",null,"Primary Standard","Toxicity Criteria","Toxicity Criteria",null,"Systemic Toxicant"]
[null,null,408,"Paraquat",3.2,"**",{"$error":"#N/A"},3.2,3.2,"-",47,47,32,"Respiratory ","1910-42-5",null,"Minimum Criteria","Toxicity Criteria","Toxicity Criteria",null,"Systemic Toxicant"]
[null,null,409,"Parathion",4.2,"**",{"$error":"#N/A"},4.2,4.2,"-",0.04,0.04,42,"Neurological ","56-38-2",null,"Minimum Criteria","62-302","62-302",null,"Systemic Toxicant"]
[null,null,410,"Parathion, methyl  [see Methyl parathion]",null,"",{"$error":"#N/A"},"","","-"]
[null,null,411,"PCBs  [or Aroclor mixture]",0.5,"",{"$error":"#N/A"},0.5,0.5,"-",4.5000000000000003E-5,4.5000000000000003E-5,5,"Immunological ","1336-36-3","Yes ","Primary Standard","62-302","62-302",null,"Carcinogen","annual avg; 0.014 max","annual avg; 0.03 max"]
[null,null,412,"PCE  [see Tetrachloroethene]",null,"",{"$error":"#N/A"},"","","-"]
[null,null,413,"Pebulate",350,"",{"$error":"#N/A"},350,350,"-",310,310,3500,"Blood ","1114-71-2",null,"Minimum Criteria","Toxicity Criteria","Toxicity Criteria",null,"Systemic Toxicant"]
[null,null,414,"Pendimethalin",280,"",{"$error":"#N/A"},280,280,"-",10,10,2800,"Liver ","40487-42-1",null,"Minimum Criteria","Toxicity Criteria","Toxicity Criteria",null,"Systemic Toxicant"]
[null,null,415,"Pentachlorobenzene",5.6,"",{"$error":"#N/A"},5.6,5.6,"-",1.7,1.7,56,"Kidney, Liver ","608-93-5",null,"Minimum Criteria","Human Health","Human Health",null,"Systemic Toxicant"]
[null,null,416,"Pentachloronitrobenzene",0.1,"",{"$error":"#N/A"},0.1,0.1,"-",0.02,0.02,1,"Liver ","82-68-8","Yes ","Minimum Criteria","Human Health","Human Health",null,"Carcinogen"]
[null,null,417,"Pentachlorophenol",1,"",{"$error":"#N/A"},1,1,"-",8.1999999999999993,7.9,10,"Kidney, Liver ","87-86-5","Yes ","Primary Standard","62-302","62-302",null,"Carcinogen","annual avg; 30 max."]
[null,null,418,"Perchlorate",4,"",{"$error":"#N/A"},4,4,"-",null,null,40,"Thyroid ","7601-90-3",null,"Minimum Criteria","NA","NA",null,"Systemic Toxicant"]
[null,null,419,"Permethrin",350,"",{"$error":"#N/A"},350,350,"-",1E-3,1E-3,3500,"Liver ","52645-53-1",null,"Minimum Criteria","Toxicity Criteria","Toxicity Criteria",null,"Systemic Toxicant"]
[null,null,420,"Phenanthrene",210,"",{"$error":"#N/A"},210,210,"-","*","*",2100,"Kidney ",31055,null,"Minimum Criteria","62-302","62-302",null,"Systemic Toxicant","annual average","annual average"]
[null,null,421,"Phenmedipham  [or Betanal]",1800,"",{"$error":"#N/A"},1800,1800,"-",200,200,18000,"None Specified ","13684-63-4",null,"Minimum Criteria","Toxicity Criteria","Toxicity Criteria",null,"Systemic Toxicant"]
[null,null,422,"Phenol",10,"",2100,2100,2100,10,6.5,6.5,100,"Developmental ","108-95-2",null,"Minimum Criteria","Toxicity Criteria","Toxicity Criteria",null,"Organoleptic"]
[null,null,423,"Phenylenediamine, m-",42,"",{"$error":"#N/A"},42,42,"-",null,null,420,"Liver ","108-45-2",null,"Minimum Criteria","NA","NA",null,"Systemic Toxicant"]
[null,null,424,"Phenylenediamine, p-",1300,"",{"$error":"#N/A"},1300,1300,"-",null,null,13000,"Whole Body","106-50-3",null,"Minimum Criteria","NA","NA",null,"Systemic Toxicant"]
[null,null,425,"Phenylphenol, 2-",18,"",{"$error":"#N/A"},18,18,"-",36,36,180,null,"90-43-7","Yes ","Minimum Criteria","Toxicity Criteria","Toxicity Criteria",null,"Carcinogen"]
[null,null,426,"Phorate",1.4,"",{"$error":"#N/A"},1.4,1.4,"-",5.0000000000000001E-3,5.0000000000000001E-3,14,"Neurological ",-585084,null,"Minimum Criteria","Toxicity Criteria","Toxicity Criteria",null,"Systemic Toxicant"]
[null,null,427,"Phosmet",140,"",{"$error":"#N/A"},140,140,"-",0.1,0.1,1400,"Liver, Neurological ",-426292,null,"Minimum Criteria","Toxicity Criteria","Toxicity Criteria",null,"Systemic Toxicant"]
[null,null,428,"Phosphine",2.1,"",{"$error":"#N/A"},2.1,2.1,"-",null,null,21,"Body Weight ","7803-51-2",null,"Minimum Criteria","NA","NA",null,"Systemic Toxicant"]
[null,null,429,"Phthalic anhydride",14000,"",{"$error":"#N/A"},14000,14000,"-",null,null,140000,"Kidney, Nasal, Respiratory ","85-44-9",null,"Minimum Criteria","NA","NA",null,"Systemic Toxicant"]
[null,null,430,"Picloram",500,"",{"$error":"#N/A"},500,500,"-",70,70,5000,"Liver ",6607,null,"Primary Standard","Toxicity Criteria","Toxicity Criteria",null,"Systemic Toxicant"]
[null,null,431,"Polychlorinated dibenzo-p-dioxins  [see Dioxins]",null,"",{"$error":"#N/A"},"","","-"]
[null,null,432,"Polycyclic Aromatic Hydrocarbons (PAHs)",null,"",{"$error":"#N/A"},"","","-",3.1E-2,3.1E-2,null,"Various Endpoints",null,null,null,"62-302","62-302",null,null,"annual average","annual average"]
[null,null,433,"Potassium cyanide",350,"",{"$error":"#N/A"},350,350,"-",5.5,5.5,3500,"Neurological, Thyroid ","151-50-8",null,"Minimum Criteria","Toxicity Criteria","Toxicity Criteria",null,"Systemic Toxicant"]
[null,null,434,"Profluralin",42,"",{"$error":"#N/A"},42,42,"-",null,null,420,"None Specified ","26399-36-0",null,"Minimum Criteria","NA","NA",null,"Systemic Toxicant"]
[null,null,435,"Prometon",110,"",{"$error":"#N/A"},110,110,"-",600,600,1100,"None Specified ","1610-18-0",null,"Minimum Criteria","Toxicity Criteria","Toxicity Criteria",null,"Systemic Toxicant"]
[null,null,436,"Prometryn",28,"",{"$error":"#N/A"},28,28,"-",21,21,280,"Bone Marrow, Kidney, Liver ","7287-19-6",null,"Minimum Criteria","Toxicity Criteria","Toxicity Criteria",null,"Systemic Toxicant"]
[null,null,437,"Pronamide",53,"**",{"$error":"#N/A"},53,53,"-",null,null,530,"None Specified ","23950-58-5",null,"Minimum Criteria","NA","NA",null,"Systemic Toxicant"]
[null,null,438,"Propachlor",91,"",{"$error":"#N/A"},91,91,"-",12,12,910,"Liver ","1918-16-7",null,"Minimum Criteria","Toxicity Criteria","Toxicity Criteria",null,"Systemic Toxicant"]
[null,null,439,"Propanil",35,"",{"$error":"#N/A"},35,35,"-",20,20,350,"Spleen ","709-98-8",null,"Minimum Criteria","Toxicity Criteria","Toxicity Criteria",null,"Systemic Toxicant"]
[null,null,440,"Propargite",140,"",{"$error":"#N/A"},140,140,"-",1.6,1.6,1400,"None Specified ","2312-35-8",null,"Minimum Criteria","Toxicity Criteria","Toxicity Criteria",null,"Systemic Toxicant"]
[null,null,441,"Propazine",14,"**",{"$error":"#N/A"},14,14,"-",190,190,140,"Body Weight ","139-40-2",null,"Minimum Criteria","Toxicity Criteria","Toxicity Criteria",null,"Systemic Toxicant"]
[null,null,442,"Propham",140,"",{"$error":"#N/A"},140,140,"-",500,500,1400,"Neurological ","122-42-9",null,"Minimum Criteria","Toxicity Criteria","Toxicity Criteria",null,"Systemic Toxicant"]
[null,null,443,"Propiconazole",91,"",{"$error":"#N/A"},91,91,"-",26,26,910,"Gastrointestinal ","60207-90-1",null,"Minimum Criteria","Toxicity Criteria","Toxicity Criteria",null,"Systemic Toxicant"]
[null,null,444,"Propionic acid, 2-(2-methyl-4-chlorophenoxy)  [or MCPP]",7,"",{"$error":"#N/A"},{"$f":"IF(ISBLANK(E453),\"\",IF(ISNA(G453),E453,G453))","v":7},7,"-",null,null,70,"Kidney ","93-65-2",null,"Minimum Criteria","NA","NA",null,"Systemic Toxicant"]
[null,null,445,"Propoxur  [see Baygon]",null,"",{"$error":"#N/A"},"","","-"]
[null,null,446,"Propylene glycol",140000,"",{"$error":"#N/A"},140000,140000,"-",36000,36000,1400000,"Blood, Bone Marrow ","57-55-6",null,"Minimum Criteria","Toxicity Criteria","Toxicity Criteria",null,"Systemic Toxicant"]
[null,null,447,"Propylene glycol monomethyl ether",4900,"",{"$error":"#N/A"},4900,4900,"-",null,null,49000,"Kidney, Liver, Neurological ","107-98-2",null,"Minimum Criteria","NA","NA",null,"Systemic Toxicant"]
[null,null,448,"Propylene oxide",0.1,"",{"$error":"#N/A"},0.1,0.1,"-",null,null,1,"Nasal, Respiratory ","75-56-9","Yes ","Minimum Criteria","NA","NA",null,"Carcinogen"]
[null,null,449,"Pydrin [or Fenvalerate]",180,"",{"$error":"#N/A"},180,180,"-",4.0000000000000002E-4,4.0000000000000002E-4,1800,"Neurological ","51630-58-1",null,"Minimum Criteria","Toxicity Criteria","Toxicity Criteria",null,"Systemic Toxicant"]
[null,null,450,"Pyrene",210,"",{"$error":"#N/A"},210,210,"-",0.3,0.3,2100,"Kidney ","129-00-0",null,"Minimum Criteria","Toxicity Criteria","Toxicity Criteria",null,"Systemic Toxicant"]
[null,null,451,"Pyridine",7,"",{"$error":"#N/A"},7,7,"-",1300,1300,70,"Liver ","110-86-1",null,"Minimum Criteria","Toxicity Criteria","Toxicity Criteria",null,"Systemic Toxicant"]
[null,null,452,"Quinoline",0.01,"",{"$error":"#N/A"},0.01,0.01,"-",null,null,0.1,null,"91-22-5","Yes ","Minimum Criteria","NA","NA",null,"Carcinogen"]
[null,null,453,"Radium, 226 and 228 (combined)",5,"",{"$error":"#N/A"},5,5,"-",5,5,50,null,"7440-14-4","Yes ","Primary Standard","62-302","62-302",null,"pCi/L","pCi/L","pCi/L"]
[null,null,454,"RDX  [see Hexahydro-1,3,5-trinitro-1,3,5-triazine]",null,"",{"$error":"#N/A"},"","","-"]
[null,null,455,"Resmethrin",210,"",{"$error":"#N/A"},210,210,"-",3.0000000000000001E-3,3.0000000000000001E-3,2100,"Reproductive ","10453-86-8",null,"Minimum Criteria","Toxicity Criteria","Toxicity Criteria",null,"Systemic Toxicant"]
[null,null,456,"Ronnel",350,"",{"$error":"#N/A"},350,350,"-",0.06,0.06,3500,"Liver ","299-84-3",null,"Minimum Criteria","Toxicity Criteria","Toxicity Criteria",null,"Systemic Toxicant"]
[null,null,457,"Rotenone",28,"",{"$error":"#N/A"},28,28,"-",0.1,0.1,280,"Developmental ","83-79-4",null,"Minimum Criteria","Toxicity Criteria","Toxicity Criteria",null,"Systemic Toxicant"]
[null,null,458,"Roundup  [see Glyphosate]",null,"",{"$error":"#N/A"},"","","-"]
[null,null,459,"Selenious acid (as Selenium)",35,"",{"$error":"#N/A"},35,35,"-",40,40,350,"Hair Loss, Neurological, Skin ","7783-00-8",null,"Minimum Criteria","Toxicity Criteria","Toxicity Criteria",null,"Systemic Toxicant"]
[null,null,460,"Selenium",50,"",{"$error":"#N/A"},50,50,"-",5,71,500,"Hair Loss, Neurological, Skin ","7782-49-2",null,"Primary Standard","62-302","62-302",null,"Systemic Toxicant"]
[null,null,461,"Sevin  [see Carbaryl]",null,"",{"$error":"#N/A"},"","","-"]
[null,null,462,"Silver",100,"","35(a)","35(a)","Secondary",100,7.0000000000000007E-2,0.4,1000,"Skin ","7440-22-4",null,"Secondary Standard","62-302","Toxicity Criteria",null,"Aesthetic","g","g"]
[null,null,463,"Silvex  [see Trichlorophenoxy propionic acid]",null,"",{"$error":"#N/A"},"","","-"]
[null,null,464,"Simazine",4,"",{"$error":"#N/A"},4,4,"-",7.3,7.3,40,"Blood ","122-34-9","Yes ","Primary Standard","Human Health","Human Health",null,"Carcinogen"]
[null,null,465,"Sodium",160000,"",{"$error":"#N/A"},160000,160000,"-",null,null,1600000,"None Specified ","7440-23-5",null,"Primary Standard","NA","NA",null,"Systemic Toxicant"]
[null,null,466,"Sodium chlorite  [see Chlorite (sodium salt)]",null,"",{"$error":"#N/A"},"","","-"]
[null,null,467,"Sodium cyanide (as Cyanide)",280,"",{"$error":"#N/A"},280,280,"-",3.8,3.8,2800,"Neurological ","143-33-9",null,"Minimum Criteria","Toxicity Criteria","Toxicity Criteria",null,"Systemic Toxicant"]
[null,null,468,"Strontium",4200,"",{"$error":"#N/A"},4200,4200,"-",null,null,42000,"Bone","7440-24-6",null,"Minimum Criteria","NA","NA",null,"Systemic Toxicant"]
[null,null,469,"Strychnine",2.1,"",{"$error":"#N/A"},2.1,2.1,"-",38,38,21,"Mortality ","57-24-9",null,"Minimum Criteria","Toxicity Criteria","Toxicity Criteria",null,"Systemic Toxicant"]
[null,null,470,"Styrene",100,"",{"$error":"#N/A"},100,100,"-",460,460,1000,"Blood, Liver, Neurological ","100-42-5",null,"Primary Standard","Toxicity Criteria","Toxicity Criteria",null,"Systemic Toxicant"]
[null,null,472,"TCDD, 2,3,7,8-  [see Dioxins, as total 2,3,7,8-TCDD equivalents]",null,"",{"$error":"#N/A"},"","","-"]
[null,null,473,"TCE  [see Trichloroethene]",null,"",{"$error":"#N/A"},"","","-"]
[null,null,474,"TCMTB [see Thiocyanomethylthio-benzothiazole, 2-]",null,"",{"$error":"#N/A"},"","","-"]
[null,null,475,"TDS  [see Total dissolved solids]",null,"",{"$error":"#N/A"},"","","-"]
[null,null,476,"Tebuthiuron",490,"",{"$error":"#N/A"},490,490,"-",310,310,4900,"Body Weight ","34014-18-1",null,"Minimum Criteria","Toxicity Criteria","Toxicity Criteria",null,"Systemic Toxicant"]
[null,null,477,"Temephos",140,"",{"$error":"#N/A"},140,140,"-",2E-3,2E-3,1400,"None Specified ","3383-96-8",null,"Minimum Criteria","Toxicity Criteria","Toxicity Criteria",null,"Systemic Toxicant"]
[null,null,478,"Temik  [see Aldicarb]",null,"",{"$error":"#N/A"},"","","-"]
[null,null,479,"Terbacil",91,"",{"$error":"#N/A"},91,91,"-",2500,2500,910,"Liver, Thyroid ","5902-51-2",null,"Minimum Criteria","Toxicity Criteria","Toxicity Criteria",null,"Systemic Toxicant"]
[null,null,480,"Terbufos",0.2,"",{"$error":"#N/A"},0.2,0.2,"-",0.01,0.01,2,"Neurological ","13071-79-9",null,"Minimum Criteria","Toxicity Criteria","Toxicity Criteria",null,"Systemic Toxicant"]
[null,null,481,"Terbutryn",7,"",{"$error":"#N/A"},7,7,"-",3.1,3.1,70,"Blood ","886-50-0",null,"Minimum Criteria","Toxicity Criteria","Toxicity Criteria",null,"Systemic Toxicant"]
[null,null,482,"Tetrachlorobenzene, 1,2,4,5-",2.1,"",{"$error":"#N/A"},2.1,2.1,"-",1.6,1.6,21,"Kidney ","95-94-3",null,"Minimum Criteria","Human Health","Human Health",null,"Systemic Toxicant"]
[null,null,483,"Tetrachloroethane, 1,1,1,2-",1.3,"",{"$error":"#N/A"},1.3,1.3,"-",null,null,13,"Kidney, Liver ","630-20-6","Yes ","Minimum Criteria","NA","NA",null,"Carcinogen"]
[null,null,484,"Tetrachloroethane, 1,1,2,2-",0.2,"",{"$error":"#N/A"},0.2,0.2,"-",10.8,10.8,2,"Liver ","79-34-5","Yes ","Minimum Criteria","62-302","62-302",null,"Carcinogen","annual average","annual average"]
[null,null,486,"Tetrachlorophenol, 2,3,4,6-",210,"",{"$error":"#N/A"},210,210,"-",4.5,4.5,2100,"Liver ","58-90-2",null,"Minimum Criteria","Toxicity Criteria","Toxicity Criteria",null,"Systemic Toxicant"]
[null,null,487,"Tetraethyl dithiopyrophosphate",3.5,"",{"$error":"#N/A"},3.5,3.5,"-",0.01,0.01,35,"Bone Marrow, Neurological ","3689-24-5",null,"Minimum Criteria","Toxicity Criteria","Toxicity Criteria",null,"Systemic Toxicant"]
[null,null,488,"Thallium",2,"",{"$error":"#N/A"},2,2,"-",6.3,6.3,20,"Hair Loss, Liver ","7440-28-0",null,"Primary Standard","62-302","62-302",null,"Systemic Toxicant"]
[null,null,489,"Thallium sulfate (as Thallium)",0.6,"",{"$error":"#N/A"},0.6,0.6,"-",26,26,6,"Blood, Hair Loss, Liver ","7446-18-6",null,"Minimum Criteria","Toxicity Criteria","Toxicity Criteria",null,"Systemic Toxicant"]
[null,null,490,"Thiobencarb",70,"",{"$error":"#N/A"},70,70,"-",null,null,700,"Kidney ","28249-77-6",null,"Minimum Criteria","NA","NA",null,"Systemic Toxicant"]
[null,null,491,"Thiocyanomethylthio-benzothiazole, 2- [or TCMTB]",2.8,"**",{"$error":"#N/A"},2.8,2.8,"-",0.4,0.4,28,"Gastrointestinal ","21564-17-0",null,"Minimum Criteria","Toxicity Criteria","Toxicity Criteria",null,"Systemic Toxicant"]
[null,null,492,"Thiram",35,"",{"$error":"#N/A"},35,35,"-",0.2,0.2,350,"Neurological ","137-26-8",null,"Minimum Criteria","Toxicity Criteria","Toxicity Criteria",null,"Systemic Toxicant"]
[null,null,493,"Tin",4200,"",{"$error":"#N/A"},4200,4200,"-",null,null,42000,"Kidney, Liver ","7440-31-5",null,"Minimum Criteria","NA","NA",null,"Systemic Toxicant"]
[null,null,494,"Titanium Dioxide",28000,"",{"$error":"#N/A"},28000,28000,"-",null,null,280000,null,"13463-67-7",null,"Minimum Criteria","NA","NA",null,"Systemic Toxicant"]
[null,2,495,"Toluene",40,"","1400(1000) (b)","1400(1000) (b)",1400,40,480,480,400,"Kidney, Liver, Neurological ","108-88-3",null,"Secondary Standard","Toxicity Criteria","Toxicity Criteria",null,"Organoleptic"]
[null,null,496,"Toluene-2,4-diamine",0.01,"",{"$error":"#N/A"},0.01,0.01,"-",null,null,0.1,null,"95-80-7","Yes ","Minimum Criteria","NA","NA",null,"Carcinogen"]
[null,null,497,"Toluidine, p-",0.2,"",{"$error":"#N/A"},0.2,0.2,"-",null,null,2,null,"106-49-0","Yes ","Minimum Criteria","NA","NA",null,"Carcinogen"]
[null,null,499,"Toxaphene",3,"",{"$error":"#N/A"},3,3,"-",2.0000000000000001E-4,2.0000000000000001E-4,30,"Developmental ","8001-35-2","Yes ","Primary Standard","62-302","62-302",null,"Carcinogen"]
[null,null,500,"Triallate",91,"",{"$error":"#N/A"},91,91,"-",65,65,910,"Liver, Spleen ","2303-17-5",null,"Minimum Criteria","Toxicity Criteria","Toxicity Criteria",null,"Systemic Toxicant"]
[null,null,501,"Tributyltin oxide",2.1,"",{"$error":"#N/A"},2.1,2.1,"-",0.05,0.05,21,"Immunological ","56-35-9",null,"Minimum Criteria","Toxicity Criteria","Toxicity Criteria",null,"Systemic Toxicant"]
[null,null,502,"Trichloro-1,2,2-trifluoroethane, 1,1,2-  [or CFC 113]",210000,"",{"$error":"#N/A"},210000,210000,"-",null,null,2100000,"Neurological ","76-13-1",null,"Minimum Criteria","NA","NA",null,"Systemic Toxicant"]
[null,null,503,"Trichloroacetic acid",9.1,"",{"$error":"#N/A"},9.1,9.1,"-",100000,100000,91,"None Specified ",27828,null,"Minimum Criteria","Toxicity Criteria","Toxicity Criteria",null,"Systemic Toxicant"]
[null,null,504,"Trichlorobenzene, 1,2,3-",70,"",{"$error":"#N/A"},70,70,"-",85,85,700,"Adrenals ","87-61-6",null,"Minimum Criteria","Toxicity Criteria","Toxicity Criteria",null,"Systemic Toxicant"]
[null,null,505,"Trichlorobenzene, 1,2,4-",70,"",{"$error":"#N/A"},70,70,"-",23,23,700,"Adrenals ","120-82-1",null,"Primary Standard","Toxicity Criteria","Toxicity Criteria",null,"Systemic Toxicant"]
[null,null,506,"Trichlorobenzene, 1,3,5-",40,"",{"$error":"#N/A"},40,40,"-",null,null,400,"None Specified ","108-70-3",null,"Minimum Criteria","NA","NA",null,"Systemic Toxicant"]
[null,null,507,"Trichloroethane, 1,1,1-  [or Methyl chloroform]",200,"",{"$error":"#N/A"},200,200,"-",270,270,2000,"None Specified ","71-55-6",null,"Primary Standard","Toxicity Criteria","Toxicity Criteria",null,"Systemic Toxicant"]
[null,null,508,"Trichloroethane, 1,1,2-",5,"",{"$error":"#N/A"},5,5,"-",16,16,50,"Liver ","79-00-5","Yes ","Primary Standard","Human Health","Human Health",null,"Carcinogen"]
[null,null,510,"Trichlorofluoromethane",2100,"",{"$error":"#N/A"},2100,2100,"-",null,null,21000,"Cardiovascular, Kidney, Respiratory ","75-69-4",null,"Minimum Criteria","NA","NA",null,"Systemic Toxicant"]
[null,null,511,"Trichlorophenol, 2,4,5-",1,"",700,700,700,1,23,23,10,"Kidney, Liver ","95-95-4",null,"Minimum Criteria","Toxicity Criteria","Toxicity Criteria",null,"Organoleptic"]
[null,null,512,"Trichlorophenol, 2,4,6-",3.2,"",{"$error":"#N/A"},{"$f":"IF(ISBLANK(E517),\"\",IF(ISNA(G517),E517,G517))","v":3.2},3.2,"-",6.5,6.5,32,null,32296,"Yes ","Minimum Criteria","62-302","62-302",null,"Carcinogen","annual average","annual average"]
[null,null,513,"Trichlorophenoxy acetic acid, 2,4,5-",70,"",{"$error":"#N/A"},70,70,"-",140,140,700,"Kidney ","93-76-5",null,"Minimum Criteria","Toxicity Criteria","Toxicity Criteria",null,"Systemic Toxicant"]
[null,null,514,"Trichlorophenoxy propionic acid, 2, (2, 4, 5-)  [or Silvex]",50,"",{"$error":"#N/A"},50,50,"-",null,null,500,"Liver ","93-72-1",null,"Primary Standard","NA","NA",null,"Systemic Toxicant"]
[null,null,515,"Trichloropropane, 1,1,2-",35,"",{"$error":"#N/A"},35,35,"-",null,null,350,"Kidney, Liver, Thyroid ","598-77-6",null,"Minimum Criteria","NA","NA",null,"Systemic Toxicant"]
[null,null,516,"Trichloropropane, 1,2,3-",0.02,"",{"$error":"#N/A"},0.02,0.02,"-",0.2,0.2,0.2,"Kidney, Liver ","96-18-4","Yes ","Minimum Criteria","Human Health","Human Health",null,"Carcinogen"]
[null,null,517,"Trichloropropene, 1,2,3-",35,"",{"$error":"#N/A"},35,35,"-",null,null,350,"Eye ","96-19-5",null,"Minimum Criteria","NA","NA",null,"Systemic Toxicant"]
[null,null,518,"Trifluralin",4.5,"",{"$error":"#N/A"},4.5,4.5,"-",0.2,0.2,45,"Blood, Liver ",-115895,"Yes ","Minimum Criteria","Human Health","Human Health",null,"Carcinogen"]
[null,null,519,"Trimethyl phosphate",0.9,"",{"$error":"#N/A"},0.9,0.9,"-",null,null,9,null,"512-56-1","Yes ","Minimum Criteria","NA","NA",null,"Carcinogen"]
[null,null,520,"Trimethylbenzene, 1,2,3-",10,"",350,350,350,10,null,null,100,"None Specified ","526-73-8",null,"Minimum Criteria","NA","NA",null,"Organoleptic"]
[null,null,521,"Trimethylbenzene, 1,2,4-",10,"",350,350,350,10,220,220,100,"None Specified ","95-63-6",null,"Minimum Criteria","Toxicity Criteria","Toxicity Criteria",null,"Organoleptic"]
[null,null,522,"Trimethylbenzene, 1,3,5-",10,"",350,350,350,10,220,220,100,"None Specified ","108-67-8",null,"Minimum Criteria","Toxicity Criteria","Toxicity Criteria",null,"Organoleptic"]
[null,null,523,"Trinitrobenzene, 1,3,5-",210,"",{"$error":"#N/A"},210,210,"-",19,19,2100,"Blood, Spleen ","99-35-4",null,"Minimum Criteria","Toxicity Criteria","Toxicity Criteria",null,"Systemic Toxicant"]
[null,null,524,"Trinitrophenylmethylnitramine",70,"",{"$error":"#N/A"},70,70,"-",null,null,700,"Kidney, Liver, Spleen ","479-45-8",null,"Minimum Criteria","NA","NA",null,"Systemic Toxicant"]
[null,null,525,"Trinitrotoluene, 2,4,6-",1.2,"",{"$error":"#N/A"},1.2,1.2,"-",49,49,12,"Liver ","118-96-7","Yes ","Minimum Criteria","Toxicity Criteria","Toxicity Criteria",null,"Carcinogen"]
[null,null,526,"Trithion  [see Carbophenothion]",null,"",{"$error":"#N/A"},"","","-"]
[null,9,527,"TRPH",5000,"",{"$error":"#N/A"},5000,5000,"-",5000,5000,50000,"Multiple Endpoints Mixed Contaminants","NOCAS",null,"Minimum Criteria","NA","NA"]
[null,null,528,"Uranium, soluble salts",21,"",{"$error":"#N/A"},21,21,"-",null,null,210,"Kidney ","7440-61-1",null,"Minimum Criteria","NA","NA",null,"Systemic Toxicant"]
[null,null,529,"Vanadium",49,"",{"$error":"#N/A"},49,49,"-",null,null,490,"Hair Loss ","7440-62-2",null,"Minimum Criteria","NA","NA",null,"Systemic Toxicant"]
[null,null,530,"Vanadium pentoxide (as Vanadium)",63,"",{"$error":"#N/A"},63,63,"-",13,13,630,"Hair Loss ","1314-62-1",null,"Minimum Criteria","Toxicity Criteria","Toxicity Criteria",null,"Systemic Toxicant"]
[null,null,531,"Vernam",7,"",{"$error":"#N/A"},7,7,"-",12,12,70,"Body Weight ","1929-77-7",null,"Minimum Criteria","Toxicity Criteria","Toxicity Criteria",null,"Systemic Toxicant"]
[null,null,532,"Vinyl acetate",88,"",7000,7000,7000,88,700,700,880,"Kidney, Nasal ",-654389,null,"Minimum Criteria","Toxicity Criteria","Toxicity Criteria",null,"Organoleptic"]
[null,null,534,"White phosphorus",0.1,"",{"$error":"#N/A"},0.1,0.1,"-",null,0.1,1,"Maternal Death, Reproductive ","7723-14-0",null,"Minimum Criteria","NA","62-302",null,"Systemic Toxicant"]
[null,null,536,"Zinc",5000,"","2100(a)","2100(a)","Secondary",5000,null,86,50000,"Blood ","7440-66-6",null,"Secondary Standard","62-302","62-302",null,"Organoleptic & color","f, g","g"]
[null,null,537,"Zinc chloride",2100,"",{"$error":"#N/A"},2100,2100,"-",1.5,1.5,21000,"Blood ","7646-85-7",null,"Minimum Criteria","Toxicity Criteria","Toxicity Criteria",null,"Systemic Toxicant"]
[null,null,538,"Zinc phosphide",2.1,"",{"$error":"#N/A"},2.1,2.1,"-",null,null,21,"Body Weight ","1314-84-7",null,"Minimum Criteria","NA","NA",null,"Systemic Toxicant"]
[null,null,539,"Zineb",350,"",{"$error":"#N/A"},350,350,"-",14,14,3500,"Thyroid ","12122-67-7",null,"Minimum Criteria","Toxicity Criteria","Toxicity Criteria",null,"Systemic Toxicant"]
[null,null,null,null,null,"-","-","-","-","-","-"]
[null,null,null,"Notes:"]
[null,null,null,"† = These default Target Organ(s)/Systems or Effects are those reported to occur at the doses used to derive the reference dose.  Non-default Target Organ(s)/Systems or Effects may be justified through a detailed toxicological analysis of the chemicals present at a specific site."]
[null,null,null,"# = The GCTL for Arsenic will change from 50 ug/L to 10 ug/L on January 1, 2005"]
[null,null,null,"* = There are no surface water standards for these individual polycyclic aromatic hydrocarbons.  Per Chapter 62-302, F.A.C., the surface water criterion for Polycyclic Aromatic Hydrocarbons (PAHs) shall apply to the total concentration of Acenaphthylene, Benzo(a)anthracene, Benzo(a)pyrene, Benzo(fluoranthene, Benzo(g,i,h)perylene, Benzo(k)fluoranthene, Chrysene, Dibenzo(a,h,)anthracene, Indeno(1,2,3-cd)pyrene, and Phenanthrene."]
[null,null,null,"** = Groundwater CTLs for class C carcinogens with no cancer slope factor were developed using the reference dose divided by a factor of 10, as described in the February 2005 'Final Technical Report: Development of Cleanup Target Levels (CTLs) for Chapter 62-777, F.A.C.'"]
[null,null,null,"(a) = Freshwater surface water criterion for Ammonia based on unionized ammonia only.  All other water criteria for ammonia are  based on total ammonia."]
[null,null,null,"(b) = The common name BHC is a misnomer for Hexachlorocyclohexane."]
[null,null,null,"(c) = Criteria for Dioxins, as total 2,3,7,8-TCDD equivalents should be compared to the total dioxin equivalents for chlorinated dioxin and dibenzofuran congeners using the approach described in the February 2005 'Final Technical Report: Development of Cleanup Target Levels (CTLs) for Chapter 62-777, F.A.C.'"]
[null,null,null,"(d) = Surface water values protective of human health for Vinyl chloride calculated assuming continuous lifetime exposure from birth as described in the February 2005 'Final Technical Report: Development of Cleanup Target Levels (CTLs) for Chapter 62-777, F.A.C.'"]
[null,null,null,"e = Not greater than 10% above background."]
[null,null,null,"f = Hardness-dependent per Chapter 62-302, F.A.C."]
[null,null,null,"g = Criteria for these metals are measured as total recoverable metal.  However, they may be applied as dissolved metals when, as part of a permit application, a dissolved metals translator has been established according to the procedures described in the document, “Guidance for Establishing a Metals Translator”, Florida Department of Environmental Protection, December 17, 2001."]
[null,null,null,"h = In the absence of concentration data specific for  the III and VI valence states of chromium, total chromium concentrations in surface water should be compared to the criteria for Chromium (hexavalent).   "]
[null,null,null,"(i) = 12789-03-6 or 57-74-9"]
[null,null,null,"62-302 = As provided in Chapter 62-302, F.A.C. "]
[null,null,null,"Toxicity Criteria = 1/20 of applicable LC50 data."]
[null,null,null,"Organoleptic =  Pertaining to or perceived by a sensory organ (i.e., color, taste or odor)."]
[null,null,null,"NA = Not available at time of Rule adoption."]
[null,null,null,"None Specified = Target organ(s) not available at time of Rule adoption."]
[null,null,null,"Note: Freshwater and marine surface waters, and groundwater at the point of discharge into surface water shall pass acute and chronic toxicity bioassay tests:   The user should consult the standard definitions for acute and chronic toxicity given in FAC 62-302.200(1) and FAC 62-302.200(4), respectively."]
[null,null,null,"Note: If more than one contaminant is present at a site, CTLs are to be modified, if necessary, such that the sum of the hazard quotients for non-carcinogenic contaminants affecting the same organ(s) is 1 or less.  For carcinogens, the direct exposure values shall be modified such that the cumulative lifetime risk level posed by the contaminants is 1.0E-06, as presented in Figure 10 of the February 2005 'Final Technical Report: Development of Cleanup Target Levels (CTLs) for Chapter 62-777, F.A.C.'  However, GCTLs for primary and secondary standards shall not be modified. "]

{"sheet":"777 Soil","index":6,"n_rows":499,"n_cols":14,"rows_kept":499,"cut":false,"hidden":false,"merged":[]}
[]
["HW Sort","Petroleum Sort","Seq. Num.","Chemical","Target Organ/Systems or Effects","CAS#","Direct Exposure - Residential","Direct Exposure - Industrial","Leachability Based on Groundwater","Leachability Based on Freshwater SW","Leachability Based on Marine SW","Leachability based on GW of Low Yield/Poor Quality","Carcinogen","Additional Notes"]
[]
[1,null,26,"Arsenic","-Cardiovascular -Skin ","NOCAS",2.1,12,"***","***","***","***","-yes "]
[2,null,14,"Aldrin","-Liver ","309-00-2",0.06,0.3,0.2,0.01,0.01,2,"-yes "]
[3,null,94,"Chlordane (total)","-Liver ","(j)",2.8,14,9.6,3.0000000000000001E-3,3.0000000000000001E-3,96,"-yes "]
[4,null,189,"Dieldrin","-Liver ","60-57-1",0.06,0.3,2E-3,1E-4,1E-4,0.02,"-yes "]
[5,null,266,"Heptachlor epoxide","-Liver ","1024-57-3",0.1,0.5,0.6,1E-4,1E-4,6,"-yes "]
[6,10,40,"Benzo(a)pyrene",null,"50-32-8",0.1,0.7,8,"NA","NA",80,"-yes "]
[7,null,171,"Dichlorodiphenyltrichloroethane, p,p'-  [or DDT, 4,4'-]","-Liver ","50-29-3",2.9,15,11,0.06,0.06,110,"-yes "]
[8,11,39,"Benzo(a)anthracene",null,"56-55-3","#","#",0.8,"NA","NA",8,"-yes "]
[9,12,41,"Benzo(b)fluoranthene",null,"205-99-2","#","#",2.4,"NA","NA",24,"-yes "]
[10,null,270,"Hexachlorocyclohexane, beta-  [BHC, beta-]",null,"319-85-7",0.5,2.4,1E-3,3.0000000000000001E-3,3.0000000000000001E-3,0.01,"-yes "]
[11,null,125,"Chromium (total)",null,"NOCAS",210,470,38,4.2,19,380,"-yes ","(b,g)"]
[12,null,129,"Copper","-Gastrointestinal ","7440-50-8","150**",89000,"***","NA","***","***"]
[13,null,271,"Hexachlorocyclohexane, delta-  [or BHC, delta-]","-Kidney -Liver ","319-86-8",24,490,0.2,"NA","NA",2]
[14,null,153,"Dibenz(a,h)anthracene",null,"53-70-3","#","#",0.7,"NA","NA",7,"-yes "]
[15,null,281,"Indeno(1,2,3-cd)pyrene",null,"193-39-5","#","#",6.6,"NA","NA",66,"-yes "]
[16,null,282,"Iron","-Gastrointestinal ","7439-89-6",53000,"*","***","***","***","***"]
[17,null,288,"Lead","-Neurological ","7439-92-1",400,1400,"***","NA","***","***",null,"(d)"]
[18,null,301,"Mercury","-Neurological ","7439-97-6",3,17,2.1,0.01,0.03,21,null,"(c)"]
[19,null,447,"Trichloroethene  [or TCE]","-None Specified ",28861,6.4,9.3000000000000007,0.03,0.9,0.9,0.3,"-yes "]
[20,null,437,"Toxaphene","-Developmental ","8001-35-2",0.9,4.5,31,2E-3,2E-3,310,"-yes "]
[null,null,1,"Acenaphthene","-Liver ","83-32-9",2400,20000,2.1,0.3,0.3,21]
[null,null,2,"Acenaphthylene","-Liver ","208-96-8",1800,20000,27,"NA","NA",270]
[null,null,3,"Acephate","-Neurological ","30560-19-1",120,720,0.02,0.8,0.8,0.2,"-yes "]
[null,null,4,"Acetaldehyde","-Nasal ","75-07-0",15,20,"NA","NA","NA","NA"]
[null,null,5,"Acetone","-Kidney -Liver -Neurological ","67-64-1",11000,68000,25,6.8,6.8,250]
[null,null,6,"Acetophenone","-None Specified ","98-86-2",3900,32000,3.9,44,44,39]
[null,null,7,"Acifluorfen, sodium  [or Blazer]","-Kidney ","62476-59-9",28,140,0.1,25,25,1]
[null,null,8,"Acrolein","-Nasal ",-654840,0.05,0.3,0.01,2E-3,2E-3,0.1]
[null,null,9,"Acrylamide","-Neurological ",29007,0.1,0.4,3.0000000000000001E-5,1E-3,1E-3,2.9999999999999997E-4,"-yes "]
[null,null,10,"Acrylic acid","-Developmental ",29135,48,250,14,"NA","NA",140]
[null,null,11,"Acrylonitrile","-Nasal -Reproductive ","107-13-1",0.3,0.6,2.9999999999999997E-4,1E-3,1E-3,3.0000000000000001E-3,"-yes "]
[null,null,12,"Alachlor","-Blood ","15972-60-8",11,44,0.02,5.0000000000000001E-3,5.0000000000000001E-3,0.2,"-yes "]
[null,null,13,"Aldicarb  [or Temik]","-Neurological ",-651437,68,920,0.03,4.0000000000000001E-3,4.0000000000000001E-3,0.3]
[null,null,15,"Ally  [or Metsulfuron, methyl]","-Body Weight ","74223-64-6",19000,300000,12,"NA","NA",120]
[null,null,16,"Allyl alcohol","-Kidney -Liver ","107-18-6",140,970,0.1,0.02,0.02,1]
[null,null,17,"Allyl chloride","-Neurological ",-654758,0.5,2.7,0.2,"NA","NA",2]
[null,null,18,"Aluminum","-Body Weight ","7429-90-5",80000,"*","***","***","***","***"]
[null,null,19,"Aluminum phosphide","-Body Weight ","20859-73-8",35,880,"***","***","***","***"]
[null,null,20,"Ametryn","-Liver ",-389005,670,11000,0.8,0.08,0.08,8]
[null,null,21,"Ammonia","-Respiratory ","7664-41-7",35000,880000,"***","***","NA","***",null,"(a)"]
[null,null,22,"Aniline","-Blood -Spleen ","62-53-3",27,150,0.03,0.02,0.02,0.3,"-yes "]
[null,null,23,"Anthracene","-None Specified ",-649789,21000,300000,2500,0.4,0.4,25000]
[null,null,24,"Antimony","-Blood ","7440-36-0",27,370,5.4,3900,3900,54,null,"(b)"]
[null,null,25,"Aroclor mixture  [see PCBs]"]
[null,null,27,"Atrazine","-Cardiovascular ","1912-24-9",4.3,19,0.06,0.04,0.04,0.6,"-yes "]
[null,null,28,"Azinphos, methyl  [see Guthion]"]
[null,null,29,"Azobenzene",null,"103-33-3",7.9,31,0.03,0.4,0.4,0.3,"-yes "]
[null,null,30,"Barium (soluble salts)","-Cardiovascular ","7440-39-3","120**",130000,1600,"NA","NA",16000,null,"(b)"]
[null,null,31,"Baygon  [or Propoxur]","-Blood -Neurological ","114-26-1",280,4100,0.2,2E-3,2E-3,2]
[null,null,32,"Bayleton","-Blood ","43121-43-3",2400,46000,4.8,11,11,48]
[null,null,33,"Benomyl","-Developmental ","17804-35-2",4000,77000,3.1,0.03,0.03,31]
[null,null,34,"Bentazon","-Blood ","25057-89-0",2100,32000,1.2,"NA","NA",12]
[null,null,35,"Benzaldehyde","-Gastrointestinal -Kidney ","100-52-7",3300,24000,4.8,0.4,0.4,48]
[null,1,36,"Benzene","-Blood ","71-43-2",1.2,1.7,7.0000000000000001E-3,0.5,0.5,7.0000000000000007E-2,"-yes "]
[null,null,37,"Benzenethiol","-Liver ","108-98-5",0.2,1.3,1E-3,"NA","NA",0.01]
[null,null,38,"Benzidine","-Liver -Neurological ","92-87-5",4.0000000000000001E-3,0.02,2.0000000000000002E-5,2.0000000000000002E-5,2.0000000000000002E-5,2.0000000000000001E-4,"-yes "]
[null,13,42,"Benzo(g,h,i)perylene","-Neurological ","191-24-2",2500,52000,32000,"NA","NA",320000]
[null,14,43,"Benzo(k)fluoranthene",null,-618134,"#","#",24,"NA","NA",240,"-yes "]
[null,null,44,"Benzoic acid","-None Specified ","65-85-0",180000,"*",110,36,36,1100]
[null,null,45,"Benzotrichloride",null,35983,0.04,0.09,1E-4,8.0000000000000007E-5,8.0000000000000007E-5,1E-3,"-yes "]
[null,null,46,"Benzyl alcohol","-Gastrointestinal ","100-51-6",26000,670000,9.5,2.2999999999999998,2.2999999999999998,95]
[null,null,47,"Benzyl chloride",null,"100-44-7",1,1.6,2E-3,0.02,0.02,0.02,"-yes "]
[null,null,48,"Beryllium","-Gastrointestinal -Respiratory ","7440-41-7",120,1400,63,2.1,2.1,630,"-yes ","(b)"]
[null,null,49,"Betanal  [see Phenmedipham]"]
[null,null,50,"BHC, alpha-  [see Hexachlorocyclohexane, alpha-]",null,null,null,null,null,null,null,null,null,"(f)"]
[null,null,51,"BHC, beta-  [see Hexachlorocyclohexane, beta-]",null,null,null,null,null,null,null,null,null,"(f)"]
[null,null,52,"BHC, delta-  [see Hexachlorocyclohexane, delta-]",null,null,null,null,null,null,null,null,null,"(f)"]
[null,null,53,"BHC, gamma-  [see Hexachlorocyclohexane, gamma-]",null,null,null,null,null,null,null,null,null,"(f)"]
[null,null,54,"Bidrin  [or Dicrotophos]","-Developmental ","141-66-2",7.4,120,5.0000000000000001E-3,0.1,0.1,0.05]
[null,null,55,"Biphenyl, 1,1-  [or Diphenyl]","-Kidney ","92-52-4",3000,34000,0.2,5.8,5.8,2]
[null,null,56,"Bis(2-chloro-1-metylethyl)ether  [see Bis(2-chloroisopropyl)ether]"]
[null,null,57,"Bis(2-chloroethoxy)methane","-Liver ","111-91-1",250,5700,63,"NA","NA",630]
[null,null,58,"Bis(2-chloroethyl)ether",null,"111-44-4",0.3,0.5,1E-4,2E-3,2E-3,1E-3,"-yes "]
[null,null,59,"Bis(2-chloroisopropyl)ether  [or Bis(2-chloro-1-metylethyl)ether]","-Blood ","39638-32-9",6,12,8.9999999999999993E-3,0.4,0.4,0.09,"-yes "]
[null,null,60,"Bis(2-ethylhexyl)adipate","-Body Weight ","103-23-1",620,1900,780,64,64,7800,"-yes "]
[null,null,61,"Bis(2-ethylhexyl)phthalate  [or DEHP]","-Liver ","117-81-7",72,390,3600,1300,1300,36000,"-yes "]
[null,null,62,"Bisphenol A","-Body Weight ",29348,4000,79000,11,1.7,1.7,110]
[null,null,63,"Blazer  [see Acifluorfen, sodium]"]
[null,null,64,"Boron","-Reproductive -Respiratory ","7440-42-8",17000,430000,"***","NA","NA","***"]
[null,null,65,"Bravo  [see Chlorothalonil]"]
[null,null,66,"Bromacil","-Body Weight ","314-40-9",7500,120000,0.5,0.6,0.6,5]
[null,null,67,"Bromate","-Kidney ","15541-45-4",1,2.8,2.0000000000000001E-4,"NA",460,2E-3,"-yes "]
[null,null,68,"Bromochloromethane","-None Specified ","74-97-5",95,530,0.6,"NA","NA",6]
[null,null,69,"Bromodichloromethane","-Kidney ","75-27-4",1.5,2.2000000000000002,4.0000000000000001E-3,0.1,0.1,0.04,"-yes "]
[null,null,70,"Bromoform","-Liver ","75-25-2",48,93,0.03,2.7,2.7,0.3,"-yes "]
[null,null,71,"Bromomethane  [or Methyl bromide]","-Gastrointestinal -Respiratory ","74-83-9",3.1,16,0.05,0.2,0.2,0.5]
[null,null,72,"Bromoxynil","-None Specified ","1689-84-5",1600,29000,3,"NA","NA",30]
[null,null,73,"Butanol, n-","-Neurological ","71-36-3",2900,21000,3,110,110,30]
[null,null,74,"Butanol, tert-  [see Butyl alcohol, tert-]"]
[null,null,75,"Butanone, 2-  [see Methyl ethyl ketone]"]
[null,null,76,"Butyl alcohol, tert-  [or Butanol, tert-]","-Kidney -Neurological ","75-65-0",3200,19000,5.7,"NA","NA",57]
[null,null,77,"Butyl benzyl phthalate","-Liver ","85-68-7",17000,380000,310,56,56,3100]
[null,null,78,"Butylate","-Liver ","2008-41-5",3200,40000,5.2,0.2,0.2,52]
[null,null,79,"Butylphthalyl butylglycolate","-None Specified ","85-70-1",84000,"*",4200,"NA","NA",42000]
[null,null,80,"Cadmium","-Kidney ","7440-43-9",82,1700,7.5,"NA",14,75,"-yes ","(b,c,h)"]
[null,null,81,"Calcium cyanide","-Neurological -Thyroid ",-477728,3500,88000,"***","NA","NA","***"]
[null,null,82,"Captafol","-Kidney ",191906,110,570,0.5,0.1,0.1,5,"-yes "]
[null,null,83,"Captan","-Body Weight ",-645229,230,750,0.1,0.03,0.03,1,"-yes "]
[null,null,84,"Carbaryl [or Sevin]","-Kidney -Liver ","63-25-2",7700,130000,8.6999999999999993,6.9999999999999999E-4,6.9999999999999999E-4,87]
[null,null,85,"Carbazole",null,"86-74-8",49,240,0.2,6.5,6.5,2,"-yes "]
[null,null,86,"Carbofuran","-Neurological -Reproductive ","1563-66-2",130,910,0.2,5.9999999999999995E-4,5.9999999999999995E-4,2]
[null,null,87,"Carbon disulfide","-Developmental -Neurological ","75-15-0",270,1500,5.6,0.8,0.8,56]
[null,null,88,"Carbon tetrachloride","-Liver ","56-23-5",0.5,0.7,0.04,0.06,0.06,0.4,"-yes "]
[null,null,89,"Carbophenothion  [or Trithion]","-Neurological ","786-19-6",11,250,13,1.5,1.5,130]
[null,null,90,"Carboxin","-Body Weight ","5234-68-4",7400,120000,5,0.4,0.4,50]
[null,null,91,"CFC 113  [see Trichloro-1,2,2-trifluoroethane, 1,1,2-]","-Adrenals "]
[null,null,92,"Chloral hydrate","-Gastrointestinal -Neurological ","302-17-0",5700,62000,0.3,"NA","NA",3]
[null,null,93,"Chloramben","-Liver ","133-90-4",960,12000,0.5,"NA","NA",5]
[null,null,95,"Chlorine cyanide  [or Cyanogen chloride]","-Neurological -Thyroid ","506-77-4",3100,37000,71,0.3,0.3,710]
[null,null,96,"Chloro-1,1-difluoroethane, 1-","-None Specified ","75-68-3",16000,84000,"NA","NA","NA","NA"]
[null,null,97,"Chloro-1,3-butadiene  [or Chloroprene]","-Hair Loss -Nasal ","126-99-8",3.5,19,1.5,"NA","NA",15]
[null,null,98,"Chloro-3-methylphenol, 4-  [see Chloro-m-cresol, p-]"]
[null,null,99,"Chloroacetic acid","-Cardiovascular ",29167,130,1700,7.0000000000000007E-2,13,13,0.7]
[null,null,100,"Chloroaniline, p-","-Spleen ","106-47-8",270,3700,0.2,0.02,0.02,2]
[null,null,101,"Chlorobenzene","-Liver ","108-90-7",120,650,1.3,0.2,0.2,13]
[null,null,102,"Chlorobenzilate","-Body Weight ","510-15-6",3.6,18,0.1,0.01,0.01,1,"-yes "]
[null,null,103,"Chlorobenzoic acid, p-","-None Specified ",27336,16000,290000,28,"NA","NA",280]
[null,null,104,"Chlorobenzotrifluoride, 4-","-Kidney ","98-56-6",130,710,5.2,"NA","NA",52]
[null,null,105,"Chlorobutane, 1-","-Blood -Neurological ","109-69-3",780,4200,26,"NA","NA",260]
[null,null,106,"Chlorodifluoromethane","-Adrenals -Kidney -Pituitary","75-45-6",16000,82000,"NA","NA","NA","NA"]
[null,null,107,"Chloroethane  [see Ethyl chloride]"]
[null,null,108,"Chloroform","-Liver ","67-66-3",0.4,0.6,0.4,2.8,2.8,4,"-yes "]
[null,null,109,"Chloro-m-cresol, p-  [or Chloro-3-methylphenol, 4-]","-Body Weight ","59-50-7",600,8000,0.4,0.6,0.6,4]
[null,null,110,"Chloromethane  [see Methyl chloride]"]
[null,null,111,"Chloronaphthalene, beta-","-Liver -Respiratory ","91-58-7",5000,61000,260,740,740,2600]
[null,null,112,"Chloronitrobenzene, o-",null,"88-73-3",22,51,0.02,"NA","NA",0.2,"-yes "]
[null,null,113,"Chloronitrobenzene, p-",null,"100-00-5",31,73,0.03,1.6,1.6,0.3,"-yes "]
[null,null,114,"Chlorophenol, 2-","-Reproductive ","95-57-8",130,860,0.7,2.5,2.5,7]
[null,null,115,"Chlorophenol, 3-","-Reproductive ","108-43-0",370,5900,2E-3,3.1,3.1,0.02]
[null,null,116,"Chlorophenol, 4-","-Reproductive ","106-48-9",330,4400,6.9999999999999999E-4,1.2,1.2,7.0000000000000001E-3]
[null,null,117,"Chloroprene  [see Chloro-1,3-butadiene]"]
[null,null,118,"Chloropropane, 2-","-Liver ","75-29-6",47,250,"NA","NA","NA","NA"]
[null,null,119,"Chlorothalonil  [or Bravo]","-Kidney ","1897-45-6",88,420,0.2,0.06,0.06,2,"-yes "]
[null,null,120,"Chlorotoluene, o-","-Body Weight ","95-49-8",200,1200,2.8,7.7,7.7,28]
[null,null,121,"Chlorotoluene, p-","-None Specified ","106-43-4",170,990,2.5,"NA","NA",25]
[null,null,122,"Chlorpropham","-Bone Marrow -Kidney -Liver -Spleen ","101-21-3",16000,310000,51,7,7,510]
[null,null,123,"Chlorpyrifos","-Neurological ","2921-88-2",250,5000,15,1E-3,1E-3,150]
[null,null,124,"Chromium (hexavalent)","-Respiratory ","18540-29-9",210,470,"NA",4.2,19,"NA","-yes ","(b)"]
[null,null,126,"Chromium (trivalent)","-None Specified ","16065-83-1",110000,"*","NA","NA","*","NA",null,"(b)"]
[null,null,127,"Chrysene",null,-614328,"#","#",77,"NA","NA",770,"-yes "]
[null,null,128,"Cobalt","-Cardiovascular -Immunological -Neurological -Reproductive ","7440-48-4",1700,42000,"***","NA","NA","***"]
[null,null,130,"Coumaphos","-Neurological ","56-72-4",21,450,0.3,6.9999999999999999E-4,6.9999999999999999E-4,3]
[null,null,131,"Cresol, m-  [see Methylphenol, 3-]"]
[null,null,132,"Cresol, o-  [see Methylphenol, 2-]"]
[null,null,133,"Cresol, p-  [see Methylphenol, 4-]"]
[null,null,134,"Crotonaldehyde",null,"123-73-9",0.6,3.3,8.0000000000000007E-5,"NA","NA",8.0000000000000004E-4,"-yes "]
[null,null,135,"Cumene  [or Isopropyl benzene]","-Adrenals -Kidney ","98-82-8",220,1200,0.2,56,56,2]
[null,null,136,"Cyanide, free","-Neurological -Thyroid ",21159,"34**",11000,0.8,0.02,4.0000000000000001E-3,8,null,"(b)"]
[null,null,137,"Cyanogen","-Neurological -Thyroid ","460-19-5",560,3400,57,"NA","NA",570]
[null,null,138,"Cyanogen chloride  [see Chlorine cyanide]"]
[null,null,139,"Cycloate","-Neurological ","1134-23-2",340,4700,0.7,2.5,2.5,7]
[null,null,140,"Cyclohexanone",null,"108-94-1",150000,"*",150,110,110,1500]
[null,null,141,"Cyclohexylamine","-Reproductive ","108-91-8",18000,440000,7.9,22,22,79]
[null,null,142,"Cyhalothrin [or Karate]","-Developmental ","68085-85-8",420,9600,290,150,150,2900]
[null,null,143,"Cymene, p-","-Gastrointestinal -Skin ","99-87-6",960,5600,"NA","NA","NA","NA"]
[null,null,144,"Cypermethrin","-Gastrointestinal ","52315-07-8",840,19000,30,2E-3,2E-3,300]
[null,null,145,"DBCP, 1,2- [see Dibromo-3-chloropropane, 1,2-]"]
[null,null,146,"DDD, 4,4'-  [see Dichlorodiphenyldichloroethane, p,p']"]
[null,null,147,"DDE, 4,4'-  [see Dichlorodiphenyldichloroethylene, p,p'-]"]
[null,null,148,"DDT, 4,4'-  [see Dichlorodiphenyltrichloroethane, p,p'-]"]
[null,null,149,"Decabromodiphenyl ether","-None Specified ","1163-19-5",840,19000,9.3000000000000007,"NA","NA",93]
[null,null,150,"DEHP  [see Bis(2-ethylhexyl)phthalate]"]
[null,null,151,"Diallate","-None Specified ","2303-16-4",16,82,0.6,"NA","NA",6,"-yes "]
[null,null,152,"Diazinon","-Neurological ","333-41-5",70,1200,0.2,5.0000000000000002E-5,5.0000000000000002E-5,2]
[null,null,154,"Dibenzofuran","-None Specified ","132-64-9",320,6300,15,36,36,150]
[null,null,155,"Dibromo-3-chloropropane, 1,2-  [or DBCP, 1,2-]","-Reproductive ",35407,0.7,3.8,1E-3,"NA","NA",0.01,"-yes "]
[null,null,156,"Dibromobenzene, 1,4-","-Liver ","106-37-6",430,3600,7.8,27,27,78]
[null,null,157,"Dibromochloromethane","-Liver ","124-48-1",1.5,2.2999999999999998,3.0000000000000001E-3,0.2,0.2,0.03,"-yes "]
[null,null,158,"Dibromoethane, 1,2-  [or EDB]","-Reproductive ","106-93-4",0.1,0.2,1E-4,7.0000000000000007E-2,7.0000000000000007E-2,1E-3,"-yes "]
[null,null,159,"Dibutyl phthalate","-Mortality ","84-74-2",8200,170000,47,1.5,1.5,470]
[null,null,160,"Dicamba","-Developmental ","1918-00-9",2300,40000,2.6,2.4,2.4,26]
[null,null,161,"Dichloroacetic acid","-Liver -Neurological -Reproductive ","79-43-6",21,120,5.0000000000000001E-3,8.1,8.1,0.05,"-yes "]
[null,null,162,"Dichloroacetonitrile","-None Specified ","3018-12-0",340,2900,0.03,"NA","NA",0.3]
[null,null,163,"Dichlorobenzene, 1,2-","-Body Weight ","95-50-1",880,5000,17,2.8,2.8,170]
[null,null,164,"Dichlorobenzene, 1,3-","-None Specified ","541-73-1",380,2200,7,2.8,2.8,70]
[null,null,165,"Dichlorobenzene, 1,4-","-Liver ","106-46-7",6.4,9.9,2.2000000000000002,0.09,0.09,22,"-yes "]
[null,null,166,"Dichlorobenzidine, 3,3'-",null,"91-94-1",2.1,9.9,3.0000000000000001E-3,8.9999999999999998E-4,8.9999999999999998E-4,0.03,"-yes "]
[null,null,167,"Dichlorobenzophenone, 4,4'-","-None Specified ","90-98-2",2500,51000,25,190,190,250]
[null,null,168,"Dichlorodifluoromethane","-Liver ","75-71-8",77,410,44,"NA","NA",440]
[null,null,169,"Dichlorodiphenyldichloroethane, p,p'-  [or DDD, 4,4'-]",null,"72-54-8",4.2,22,5.8,0.01,0.01,58,"-yes "]
[null,null,170,"Dichlorodiphenyldichloroethylene, p,p'-  [or DDE, 4,4'-]",null,"72-55-9",2.9,15,18,0.04,0.04,180,"-yes "]
[null,null,172,"Dichloroethane, 1,1-","-Kidney ","75-34-3",390,2100,0.4,"NA","NA",4]
[null,null,173,"Dichloroethane, 1,2-  [or EDC]","-None Specified ",-654726,0.5,0.7,0.01,0.2,0.2,0.1,"-yes "]
[null,null,174,"Dichloroethene, 1,1-","-Liver ","75-35-4",95,510,0.06,0.03,0.03,0.6]
[null,null,175,"Dichloroethene, cis-1,2-","-Blood ","156-59-2",33,180,0.4,"NA","NA",4]
[null,null,176,"Dichloroethene, trans-1,2-","-Blood -Liver ","156-60-5",53,290,0.7,75,75,7]
[null,null,177,"Dichlorophenol, 2,3-","-Immunological ","576-24-9",230,4100,8.0000000000000004E-4,1.2,1.2,8.0000000000000002E-3]
[null,null,178,"Dichlorophenol, 2,4-","-Immunological ","120-83-2",190,2400,3.0000000000000001E-3,0.1,0.1,0.03]
[null,null,179,"Dichlorophenol, 2,5-","-Immunological ","583-78-8",240,4600,0.02,4.3,4.3,0.2]
[null,null,180,"Dichlorophenol, 2,6-","-Immunological ","87-65-0",220,3600,7.0000000000000001E-3,2.5,2.5,7.0000000000000007E-2]
[null,null,181,"Dichlorophenol, 3,4-","-Immunological ","95-77-2",230,3700,0.01,2,2,0.1]
[null,null,182,"Dichlorophenoxy acetic acid, 2,4-","-Blood -Kidney -Liver ","94-75-7",770,13000,0.7,0.9,0.9,7]
[null,null,183,"Dichloropropane, 1,2-","-Nasal ","78-87-5",0.6,0.9,0.03,0.09,0.09,0.3,"-yes "]
[null,null,184,"Dichloropropene, 1,3-","-Gastrointestinal -Nasal ","542-75-6",1.4,2.2000000000000002,2E-3,0.09,0.09,0.02,"-yes "]
[null,null,185,"Dichlorprop","-None Specified ","120-36-5",370,5800,0.3,0.3,0.3,3]
[null,null,186,"Dichlorvos","-Neurological ","62-73-7",0.3,0.4,5.9999999999999995E-4,2.0000000000000002E-5,2.0000000000000002E-5,6.0000000000000001E-3,"-yes "]
[null,null,187,"Dicofol  [or Kelthane]","-Adrenals ","115-32-2",2.2000000000000002,11,0.01,8.0000000000000004E-4,8.0000000000000004E-4,0.1,"-yes "]
[null,null,188,"Dicrotophos  [see Bidrin]"]
[null,null,190,"Diethyl phthalate","-Body Weight ","84-66-2",61000,"*",86,5.9,5.9,860]
[null,null,191,"Diethylene glycol, monoethyl ether","-Kidney ","111-90-0",130000,"*",63,750,750,630]
[null,null,192,"Diisopropyl methylphosphonate","-None Specified ","1445-75-6",4500,49000,3.6,85,85,36]
[null,null,193,"Dimethoate","-Neurological ","60-51-5",13,170,6.0000000000000001E-3,4.0000000000000002E-4,4.0000000000000002E-4,0.06]
[null,null,194,"Dimethoxybenzidine, 3,3'-",null,"119-90-4",69,330,0.2,"NA","NA",2,"-yes "]
[null,null,195,"Dimethrin","-Liver ","70-38-2",24000,440000,2500,1.3,1.3,25000]
[null,null,196,"Dimethylaniline, 2,4-","-Blood -Spleen ","95-68-1",0.5,1,5.0000000000000001E-4,19,19,5.0000000000000001E-3,"-yes "]
[null,null,197,"Dimethylaniline, N,N-","-Spleen ","121-69-7",55,380,0.1,12,12,1]
[null,null,198,"Dimethylbenzidine, 3,3'-",null,"119-93-7",0.1,0.6,1E-3,"NA","NA",0.01,"-yes "]
[null,null,199,"Dimethylformamide, N,N-","-Gastrointestinal -Liver ",25174,1400,8600,3,210,210,30]
[null,null,200,"Dimethylphenol, 2,4-","-Blood -Neurological ","105-67-9",1300,18000,1.7,1.9,1.9,17]
[null,null,201,"Dimethylphenol, 2,6-","-Kidney -Liver -Spleen ","576-26-1",34,370,0.04,5.2,5.2,0.4]
[null,null,202,"Dimethylphenol, 3,4-","-Kidney -Liver -Spleen ","95-65-8",71,1000,0.06,3.4,3.4,0.6]
[null,null,203,"Dimethylphthalate","-Kidney ",-645806,690000,"*",380,7.8,7.8,3800]
[null,null,204,"Dinitrobenzene, 1,2- (o)","-Spleen ","528-29-0",23,240,0.01,0.2,0.2,0.1]
[null,null,205,"Dinitrobenzene, 1,3- (m)","-Spleen ","99-65-0",5.8,64,4.0000000000000001E-3,0.4,0.4,0.04]
[null,null,206,"Dinitrobenzene, 1,4- (p)","-Spleen ","100-25-4",35,890,0.04,0.4,0.4,0.4]
[null,null,207,"Dinitro-o-cresol, 4,6-","-Metabolic Disorders","534-52-1",8.4,180,0.4,"NA","NA",4]
[null,null,208,"Dinitrophenol, 2,4-","-Eye ","51-28-5",110,1200,0.06,0.01,0.01,0.6]
[null,null,209,"Dinitrotoluene, 2,4-","-Liver -Neurological ","121-14-2",1.2,4.3,4.0000000000000002E-4,7.0000000000000007E-2,7.0000000000000007E-2,4.0000000000000001E-3,"-yes "]
[null,null,210,"Dinitrotoluene, 2,6-","-Blood -Kidney -Neurological ","606-20-2",1.2,3.8,4.0000000000000002E-4,5.0000000000000001E-3,5.0000000000000001E-3,4.0000000000000001E-3,"-yes "]
[null,null,211,"Di-n-octylphthalate","-Kidney -Liver ","117-84-0",1700,39000,480000,"NA","NA",4800000]
[null,null,212,"Dinoseb","-Developmental ","88-85-7",65,840,0.03,0.03,0.03,0.3]
[null,null,213,"Dioxane, 1,4-",null,"123-91-1",23,38,0.01,0.5,0.5,0.1,"-yes "]
[null,null,214,"Dioxins, as total 2,3,7,8-TCDD equivalents",null,-56240,6.9999999999999999E-6,3.0000000000000001E-5,3.0000000000000001E-3,5.9999999999999997E-7,5.9999999999999997E-7,0.03,"-yes ","(e)"]
[null,null,215,"Diphenamid","-Liver ","957-51-7",2300,41000,2.6,20,20,26]
[null,null,216,"Diphenyl  [see Biphenyl, 1,1-]"]
[null,null,217,"Diphenylamine, N,N-","-Kidney -Liver ","122-39-4",2000,40000,14,"NA","NA",140]
[null,null,218,"Diphenylhydrazine, 1,2-",null,"122-66-7",1.1000000000000001,4.8,2E-3,7.0000000000000001E-3,7.0000000000000001E-3,0.02,"-yes "]
[null,null,219,"Diquat","-Eye ","85-00-7",190,4300,800,60,60,8000]
[null,null,220,"Disulfoton","-Neurological ",-585023,3.3,66,0.09,0.1,0.1,0.9]
[null,null,221,"Diuron","-Blood ","330-54-1",150,2300,0.3,0.2,0.2,3]
[null,null,222,"EDB  [see Dibromoethane, 1,2-]"]
[null,null,223,"EDC  [see Dichloroethane, 1,2-]"]
[null,null,224,"Endosulfan (alpha+beta+sulfate)","-Cardiovascular -Kidney ","115-29-7",450,7600,3.8,5.0000000000000001E-3,8.0000000000000004E-4,38]
[null,null,225,"Endothall","-Gastrointestinal ","145-73-3",1800,44000,0.4,0.4,0.4,4]
[null,null,226,"Endrin","-Liver ","72-20-8",25,510,1,1E-3,1E-3,10]
[null,null,227,"EPEG  [see Ethylphthalyl ethylglycolate]"]
[null,null,228,"Epichlorohydrin","-Kidney -Nasal ","106-89-8",14,80,0.03,1.1000000000000001,1.1000000000000001,0.3,"-yes "]
[null,null,229,"EPN  [see Ethyl p-nitrophenyl phenylphosphorothioate]"]
[null,null,230,"EPTC  [see Ethyl dipropylthiocarbamate, S-]"]
[null,null,231,"Ethanol","-Developmental ","64-17-5","*","*",40,"NA","NA",400]
[null,null,232,"Ethion","-Neurological ",-487992,42,920,1.7,3.0000000000000001E-3,3.0000000000000001E-3,17]
[null,null,233,"Ethoprop","-Neurological ","13194-48-4",7.4,120,5.0000000000000001E-3,2E-3,2E-3,0.05]
[null,null,234,"Ethoxyethanol acetate, 2-","-Developmental ","111-15-9",14000,130000,8.8000000000000007,8.4,8.4,88]
[null,null,235,"Ethoxyethanol, 2-","-Reproductive ","110-80-5",10000,72000,13,"NA","NA",130]
[null,null,236,"Ethyl acetate","-Body Weight ","141-78-6",9100,53000,26,26,26,260]
[null,null,237,"Ethyl acrylate",null,"140-88-5",2,3,2E-3,0.6,0.6,0.02,"-yes "]
[null,null,238,"Ethyl chloride  [or Chloroethane]","-Developmental ","75-00-3",3.9,5.4,0.06,"NA","NA",0.6,"-yes "]
[null,null,239,"Ethyl dipropylthiocarbamate, S-  [or EPTC]","-Cardiovascular ","759-94-4",1400,14000,11,15,15,110]
[null,null,240,"Ethyl ether","-Body Weight ","60-29-7",260,1400,5,850,850,50]
[null,null,241,"Ethyl methacrylate","-Kidney ","97-63-2",630,3500,3.5,"NA","NA",35]
[null,null,242,"Ethyl p-nitrophenyl phenylphosphorothioate  [or EPN]","-Neurological ","2104-64-5",0.8,18,0.02,3.0000000000000001E-3,3.0000000000000001E-3,0.2]
[null,3,243,"Ethylbenzene","-Developmental -Kidney -Liver ","100-41-4",1500,9200,0.6,12,12,6]
[null,null,244,"Ethylene diamine","-Blood -Cardiovascular ","107-15-3",1100,11000,0.6,3.2,3.2,6]
[null,null,245,"Ethylene glycol","-Kidney ","107-21-1",110000,"*",56,65,65,560]
[null,null,246,"Ethylene oxide",null,"75-21-8",0.3,0.4,2.0000000000000001E-4,20,20,2E-3,"-yes "]
[null,null,247,"Ethylene thiourea  [or ETU]","-Thyroid ","96-45-7",7,57,1E-3,5.6,5.6,0.01,"-yes "]
[null,null,248,"Ethylphthalyl ethylglycolate  [or EPEG]","-Kidney ","84-72-0",260000,"*",1200,"NA","NA",12000]
[null,null,249,"ETU  [see Ethylene thiourea]"]
[null,null,250,"Fenamiphos","-Neurological ","22224-92-6",19,340,0.02,3.0000000000000001E-3,3.0000000000000001E-3,0.2]
[null,null,251,"Fensulfothion","-Neurological ","115-90-2",19,310,0.01,4.0000000000000001E-3,4.0000000000000001E-3,0.1]
[null,null,252,"Fenvalerate  [see Pydrin]"]
[null,null,253,"Fluometuron","-None Specified ","2164-17-2",980,16000,0.9,1.8,1.8,9]
[null,null,254,"Fluoranthene","-Blood -Kidney -Liver ","206-44-0",3200,59000,1200,1.3,1.3,12000]
[null,null,255,"Fluorene","-Blood ","86-73-7",2600,33000,160,17,17,1600]
[null,null,256,"Fluoride","-Teeth mottling","7782-41-4","840**",130000,6000,30000,15000,60000]
[null,null,257,"Fluoridone","-Kidney -Reproductive ","59756-60-4",7000,180000,2500,460,460,25000]
[null,null,258,"Fonofos","-Liver -Neurological ","944-22-9",140,2100,0.4,3.0000000000000001E-3,3.0000000000000001E-3,4]
[null,null,259,"Formaldehyde","-Gastrointestinal ","50-00-0",23,31,2.4,0.4,0.4,24,"-yes "]
[null,null,260,"Furan","-Liver ","110-00-9",4.8,26,0.09,"NA","NA",0.9]
[null,null,261,"Furfural","-Liver -Nasal ",35796,190,2400,0.09,2.7,2.7,0.9]
[null,null,262,"Glycidaldehyde","-Adrenals -Blood -Kidney ","765-34-4",15,120,0.01,"NA","NA",0.1]
[null,null,263,"Glyphosate  [or Roundup]","-Kidney ","1071-83-6",8800,220000,3.3,0.5,0.5,33]
[null,null,264,"Guthion  [or Methyl azinphos]","-Neurological ","86-50-0",120,2400,0.2,2.0000000000000001E-4,2.0000000000000001E-4,2]
[null,null,265,"Heptachlor","-Liver ","76-44-8",0.2,1,23,0.01,0.01,230,"-yes "]
[null,null,267,"Hexachloro-1,3-butadiene","-Kidney ","87-68-3",6.2,13,1,110,110,10,"-yes "]
[null,null,268,"Hexachlorobenzene","-Liver ","118-74-1",0.4,1.2,2.2000000000000002,5.9999999999999995E-4,5.9999999999999995E-4,22,"-yes "]
[null,null,269,"Hexachlorocyclohexane, alpha-  [or BHC, alpha-]",null,"319-84-6",0.1,0.6,2.9999999999999997E-4,2.9999999999999997E-4,2.9999999999999997E-4,3.0000000000000001E-3,"-yes "]
[null,null,272,"Hexachlorocyclohexane, gamma-  [or Lindane or BHC, gamma-]","-Kidney -Liver ","58-89-9",0.7,2.5,8.9999999999999993E-3,3.0000000000000001E-3,3.0000000000000001E-3,0.09,"-yes "]
[null,null,273,"Hexachlorocyclopentadiene","-Gastrointestinal ","77-47-4",9.5,50,400,24,24,4000]
[null,null,274,"Hexachloroethane","-Kidney ","67-72-1",38,87,0.2,0.2,0.2,2,"-yes "]
[null,null,275,"Hexachlorophene","-Neurological ","70-30-4",26,670,53,26,26,530]
[null,null,276,"Hexahydro-1,3,5-trinitro-1,3,5-triazine  [or RDX]","-Reproductive ","121-82-4",7.7,28,2E-3,1.3,1.3,0.02,"-yes "]
[null,null,277,"Hexane, n-","-Neurological ","110-54-3",680,3900,2.1,1200,1200,21]
[null,null,278,"Hexanone, 2-  [or Methyl butyl ketone]","-None Specified ","591-78-6",24,130,1.4,"NA","NA",14]
[null,null,279,"Hexazinone","-Body Weight ","51235-04-2",2300,32000,1.1000000000000001,120,120,11]
[null,null,280,"Hydroquinone","-Blood ","123-31-9",2600,35000,1.4,0.02,0.02,14]
[null,null,283,"Isobutyl alcohol","-Neurological ","78-83-1",6400,42000,8.9,200,200,89]
[null,null,284,"Isophorone","-None Specified ","78-59-1",540,1200,0.2,3.8,3.8,2,"-yes "]
[null,null,285,"Isopropyl benzene  [see Cumene]"]
[null,null,286,"Karate  [see Cyhalothrin, lambda]"]
[null,null,287,"Kelthane  [see Dicofol]"]
[null,null,289,"Limonene","-Kidney -Liver ","138-86-3",640,3600,42,"NA","NA",420]
[null,null,290,"Lindane  [see Hexachlorocyclohexane, gamma-]"]
[null,null,291,"Linuron","-Blood ","330-55-2",160,3100,0.04,1.4,1.4,0.4]
[null,null,292,"Lithium","-None Specified ","7439-93-2",1700,44000,"***","NA","NA","***"]
[null,null,293,"Malathion","-Neurological ","121-75-5",1500,24000,4.2,3.0000000000000001E-3,3.0000000000000001E-3,42]
[null,null,294,"Maleic anhydride","-Kidney ","108-31-6",3200,24000,2.8,"NA","NA",28]
[null,null,295,"Maleic hydrazide","-Kidney ","123-33-1",1000,5400,16,3.4,3.4,160]
[null,null,296,"Malonitrile","-Liver -Spleen ","109-77-3",1.2,13,5.9999999999999995E-4,"NA","NA",6.0000000000000001E-3]
[null,null,297,"Maneb","-Thyroid ","12427-38-2",410,8400,2.9,0.5,0.5,29]
[null,null,298,"Manganese","-Neurological ","7439-96-5",3500,43000,"***","NA","NA","***"]
[null,null,299,"MCPA  [see Methyl-4-chlorophenoxy acetic acid, 2- ]"]
[null,null,300,"MCPP  [see Propionic acid, 2-(2-methyl-4-chlorophenoxy)]"]
[null,null,302,"Mercury, methyl-  [see Methylmercury]"]
[null,null,303,"Merphos","-Neurological ","150-50-5",2.5,52,0.5,"NA","NA",5]
[null,null,304,"Merphos oxide","-Neurological ","78-48-8",2.5,56,0.3,0.3,0.3,3]
[null,null,305,"Methacrylonitrile","-Liver ","126-98-7",1,5.9,3.0000000000000001E-3,"NA","NA",0.03]
[null,null,306,"Methamidophos","-Neurological ","10265-92-6",3.1,36,1E-3,0,0,0.01]
[null,null,307,"Methanol","-Developmental -Eye -Neurological ","67-56-1",13000,90000,14,180,180,140]
[null,null,308,"Methidathion","-Liver ","950-37-8",68,950,3.0000000000000001E-3,1E-4,1E-4,0.03]
[null,null,309,"Methomyl","-Kidney -Spleen ","16752-77-5",38,200,1.2,7.0000000000000001E-3,7.0000000000000001E-3,12]
[null,null,310,"Methoxy-5-nitroaniline, 2-",null,"99-59-2",19,71,6.0000000000000001E-3,"NA","NA",0.06,"-yes "]
[null,null,311,"Methoxychlor","-Developmental -Reproductive ","72-43-5",420,8800,160,0.1,0.1,1600]
[null,null,312,"Methyl acetate","-Liver ","79-20-9",6800,38000,16,"NA","NA",160]
[null,null,313,"Methyl acrylate","-None Specified ","96-33-3",260,1500,0.9,"NA","NA",9]
[null,null,314,"Methyl azinphos  [see Guthion]"]
[null,null,315,"Methyl bromide  [see Bromomethane]"]
[null,null,316,"Methyl butyl ketone  [see Hexanone, 2-]"]
[null,null,317,"Methyl chloride  [or Chloromethane]","-Neurological ","74-87-3",4,5.7,0.01,2.2999999999999998,2.2999999999999998,0.1,"-yes "]
[null,null,318,"Methyl chloroform  [see Trichloroethane, 1,1,1-]"]
[null,null,319,"Methyl ethyl ketone  [or Butanone, 2-]","-Developmental ","78-93-3",16000,110000,17,490,490,170]
[null,null,320,"Methyl isobutyl ketone  [or MIBK]","-Kidney -Liver ",-654239,4300,44000,2.6,110,110,26]
[null,null,321,"Methyl methacrylate","-Nasal ","80-62-6",1900,10000,0.1,32,32,1]
[null,null,322,"Methyl parathion  [or Parathion, methyl]","-Blood -Neurological ","298-00-0",20,370,0.06,2.9999999999999997E-4,2.9999999999999997E-4,0.6]
[null,null,323,"Methyl styrene (mixed)","-Nasal ","25013-15-4",120,770,0.8,"NA","NA",8]
[null,null,324,"Methyl styrene, alpha","-Kidney -Liver ","98-83-9",1500,10000,11,"NA","NA",110]
[null,5,325,"Methyl tert-butyl ether  [or MTBE]","-Eye -Kidney -Liver ",-97059,4400,24000,0.09,150,150,0.9]
[null,null,326,"Methyl-4-chlorophenoxy acetic acid, 2-  [or MCPA]","-Kidney -Liver ","94-74-6",35,500,0.02,0.4,0.4,0.2]
[null,null,327,"Methylaniline, 2-",null,"95-53-4",2.6,6.4,8.9999999999999998E-4,0.2,0.2,8.9999999999999993E-3,"-yes "]
[null,null,328,"Methylene bis(2-chloroaniline), 4,4-","-Liver -Bladder","101-14-4",6.4,23,1E-3,"NA","NA",0.01,"-yes "]
[null,null,329,"Methylene bromide","-Blood ","74-95-3",96,550,0.3,"NA","NA",3]
[null,null,330,"Methylene chloride","-Liver ",27639,17,26,0.02,7.3,7.3,0.2,"-yes "]
[null,null,331,"Methylene diphenyl diisocyanate","-Nasal ","101-68-8",400,2100,"NA","NA","NA","NA"]
[null,null,332,"Methylmercury  [or Mercury, methyl]","-Neurological ","22967-92-6",1.1000000000000001,6.1,2E-3,"NA","NA",0.02]
[null,7,333,"Methylnaphthalene, 1-","-Nasal ","90-12-0",200,1800,3.1,10,10,31]
[null,8,334,"Methylnaphthalene, 2-","-Nasal ","91-57-6",210,2100,8.5,9.1,9.1,85]
[null,null,335,"Methylphenol, 2-  [or Cresol, o-]","-Neurological ","95-48-7",2900,31000,0.3,1.9,1.9,3]
[null,null,336,"Methylphenol, 3-  [or Cresol, m-]","-Neurological ","108-39-4",2900,33000,0.3,3.3,3.3,3]
[null,null,337,"Methylphenol, 4-  [or Cresol, p-]","-Neurological -Respiratory ","106-44-5",300,3400,0.03,0.5,0.5,0.3]
[null,null,338,"Metolachlor","-Body Weight ","51218-45-2",12000,200000,1.2,0.01,0.01,12]
[null,null,339,"Metribuzin","-Kidney -Liver ","21087-64-9",54,290,2.2000000000000002,0.8,0.8,22]
[null,null,340,"Metsulfuron, methyl  [see Ally]"]
[null,null,341,"Mevinphos","-Neurological ","7786-34-7",18,270,0.01,2.9999999999999997E-4,2.9999999999999997E-4,0.1]
[null,null,342,"MIBK  [see Methyl isobutyl ketone]"]
[null,null,343,"Molinate","-Reproductive ","2212-67-1",120,1300,0.1,0.1,0.1,1]
[null,null,344,"Molybdenum","-Gout","7439-98-7",440,11000,"***","NA","NA","***"]
[null,null,345,"MTBE  [see Methyl tert-butyl ether]"]
[null,null,346,"Naled","-Neurological ","300-76-5",150,2400,0.1,2.0000000000000001E-4,2.0000000000000001E-4,1]
[null,6,347,"Naphthalene","-Nasal ","91-20-3",55,300,1.2,2.2000000000000002,2.2000000000000002,12]
[null,null,348,"Nickel","-Body Weight ","7440-02-0","340**",35000,130,"NA",11,1300,null,"(b,c)"]
[null,null,349,"Nitrate","-Blood ","14797-55-8",140000,"*","***","NA","NA","***"]
[null,null,350,"Nitrite","-Blood ","14797-65-0",8700,220000,"***","NA","NA","***"]
[null,null,351,"Nitroaniline, m-","-Blood ",36405,21,130,0.01,"NA","NA",0.1,"-yes "]
[null,null,352,"Nitroaniline, o-","-Blood ","88-74-4",24,130,0.1,"NA","NA",1]
[null,null,353,"Nitroaniline, p-","-Blood ",-657429,17,96,8.0000000000000002E-3,5.9,5.9,0.08,"-yes "]
[null,null,354,"Nitrobenzene","-Adrenals -Blood -Kidney -Liver ","98-95-3",18,140,0.02,0.6,0.6,0.2]
[null,null,355,"Nitroglycerin","-Cardiovascular ","55-63-0",27,54,0.03,"NA","NA",0.3,"-yes "]
[null,null,356,"Nitrophenol, 4-","-None Specified ",-657397,560,7900,0.3,0.3,0.3,3]
[null,null,357,"Nitroso-di-ethylamine, N-",null,"55-18-5",3.0000000000000001E-3,5.0000000000000001E-3,9.9999999999999995E-7,3.0000000000000001E-5,3.0000000000000001E-5,1.0000000000000001E-5,"-yes "]
[null,null,358,"Nitroso-dimethylamine, N-",null,"62-75-9",8.9999999999999993E-3,0.02,3.0000000000000001E-6,0.01,0.01,3.0000000000000001E-5,"-yes "]
[null,null,359,"Nitroso-di-n-butylamine, N-",null,"924-16-3",0.05,0.08,9.0000000000000006E-5,5.0000000000000001E-4,5.0000000000000001E-4,8.9999999999999998E-4,"-yes "]
[null,null,360,"Nitroso-di-n-propylamine, N-",null,"621-64-7",0.08,0.2,5.0000000000000002E-5,5.0000000000000001E-3,5.0000000000000001E-3,5.0000000000000001E-4,"-yes "]
[null,null,361,"Nitroso-diphenylamine, N-",null,"86-30-6",180,730,0.4,0.3,0.3,4,"-yes "]
[null,null,362,"Nitroso-N-methylethylamine, N-",null,"10595-95-6",0.02,0.04,6.0000000000000002E-6,2.0000000000000001E-4,2.0000000000000001E-4,6.0000000000000002E-5,"-yes "]
[null,null,363,"Nitrotoluene, m-","-Spleen ",36373,640,4700,1.4,3.6,3.6,14]
[null,null,364,"Nitrotoluene, o-","-Spleen ","88-72-2",400,3300,0.9,7.3,7.3,9]
[null,null,365,"Nitrotoluene, p-","-Spleen ","99-99-0",750,12000,0.9,7.3,7.3,9]
[null,null,366,"Nonylphenol","-Kidney ","25154-52-3",100,2200,20,14,3.4,200]
[null,null,367,"Octamethylpyrophosphoramide","-Neurological ","152-16-9",130,1600,0.06,"NA","NA",0.6]
[null,null,368,"Oxamyl","-Body Weight ","23135-22-0",1700,22000,0.9,0.04,0.04,9]
[null,null,369,"Paraquat","-Respiratory ","1910-42-5",340,5500,16,230,230,160]
[null,null,370,"Parathion","-Neurological ","56-38-2",500,11000,1,0.01,0.01,10]
[null,null,371,"Parathion, methyl  [see Methyl parathion]"]
[null,null,372,"PCBs  [or Aroclor mixture]","-Immunological ","1336-36-3",0.5,2.6,17,2E-3,2E-3,170,"-yes "]
[null,null,373,"PCE  [see Tetrachloroethene]"]
[null,null,374,"Pebulate","-Blood ","1114-71-2",2000,17000,8.5,7.4,7.4,85]
[null,null,375,"Pendimethalin","-Liver ","40487-42-1",3200,58000,28,1,1,280]
[null,null,376,"Pentachlorobenzene","-Kidney -Liver ","608-93-5",45,480,3.9,1.2,1.2,39]
[null,null,377,"Pentachloronitrobenzene","-Liver ","82-68-8",3.3,12,0.2,0.03,0.03,2,"-yes "]
[null,null,378,"Pentachlorophenol","-Kidney -Liver ","87-86-5",7.2,28,0.03,0.2,0.2,0.3,"-yes "]
[null,null,379,"Permethrin","-Liver ","52645-53-1",4200,96000,2500,7.0000000000000001E-3,7.0000000000000001E-3,25000]
[null,null,380,"Phenanthrene","-Kidney ",31055,2200,36000,250,"NA","NA",2500]
[null,null,381,"Phenmedipham  [or Betanal]","-None Specified ","13684-63-4",21000,450000,150,18,18,1500]
[null,null,382,"Phenol","-Developmental ","108-95-2","500**",220000,0.05,0.03,0.03,0.5]
[null,null,383,"Phenylenediamine, m-","-Liver ","108-45-2",360,4000,0.2,"NA","NA",2]
[null,null,384,"Phenylenediamine, o-",null,"95-54-5",17,54,4.0000000000000001E-3,"NA","NA",0.04,"-yes "]
[null,null,385,"Phenylenediamine, p-","-Whole Body","106-50-3",12000,160000,6.2,"NA","NA",62]
[null,null,386,"Phenylphenol, 2-",null,"90-43-7",490,2100,0.4,0.8,0.8,4,"-yes "]
[null,null,387,"Phorate","-Neurological ",-585084,16,320,0.3,1E-3,1E-3,3]
[null,null,388,"Phosmet","-Liver -Neurological ",-426292,1600,33000,5,4.0000000000000001E-3,4.0000000000000001E-3,50]
[null,null,389,"Phthalic acid, p-","-Bladder","100-21-0",8000,45000,110,"NA","NA",1100]
[null,null,390,"Phthalic anhydride","-Kidney -Nasal -Respiratory ","85-44-9",11000,63000,76,"NA","NA",760]
[null,null,391,"Polychlorinated dibenzo-p-dioxins  [see Dioxins]"]
[null,null,392,"Prometon","-None Specified ","1610-18-0",1200,23000,2.4,14,14,24]
[null,null,393,"Prometryn","-Bone Marrow -Kidney -Liver ","7287-19-6",320,6100,0.7,0.5,0.5,7]
[null,null,394,"Propachlor","-Liver ","1918-16-7",990,17000,1.1000000000000001,0.1,0.1,11]
[null,null,395,"Propanil","-Spleen ","709-98-8",390,6700,0.4,0.2,0.2,4]
[null,null,396,"Propazine","-Body Weight ","139-40-2",1600,28000,0.2,2.7,2.7,2]
[null,null,397,"Propionic acid, 2-(2-methyl-4-chlorophenoxy)  [or MCPP]","-Kidney ","93-65-2",64,800,0.03,"NA","NA",0.3]
[null,null,398,"Propoxur  [see Baygon]"]
[null,null,399,"Propylene glycol","-Blood -Bone Marrow ","57-55-6","*","*",560,140,140,5600]
[null,null,400,"Propylene glycol monomethyl ether","-Kidney -Liver -Neurological ","107-98-2",38000,390000,20,"NA","NA",200]
[null,null,401,"Propylene oxide","-Nasal -Respiratory ","75-56-9",3.1,9.3000000000000007,5.9999999999999995E-4,"NA","NA",6.0000000000000001E-3,"-yes "]
[null,null,402,"Pydrin [or Fenvalerate]","-Neurological ","51630-58-1",2100,46000,70,1E-4,1E-4,700]
[null,null,403,"Pyrene","-Kidney ","129-00-0",2400,45000,880,1.3,1.3,8800]
[null,null,404,"Pyridine","-Liver ","110-86-1",20,130,0.03,5.4,5.4,0.3]
[null,null,405,"Quinoline",null,"91-22-5",0.3,1.3,8.9999999999999998E-4,"NA","NA",8.9999999999999993E-3,"-yes "]
[null,null,406,"RDX  [see Hexahydro-1,3,5-trinitro-1,3,5-triazine]"]
[null,null,407,"Resmethrin","-Reproductive ","10453-86-8",2500,56000,1200,0.01,0.01,12000]
[null,null,408,"Ronnel","-Liver ","299-84-3",4200,88000,1300,0.2,0.2,13000]
[null,null,409,"Roundup  [see Glyphosate]"]
[null,null,410,"Selenium","-Hair Loss -Neurological -Skin ","7782-49-2",440,11000,5.2,0.5,7.4,52,null,"(b,c)"]
[null,null,411,"Sevin  [see Carbaryl]"]
[null,null,412,"Silver","-Skin ","7440-22-4",410,8200,17,0.01,0.06,170,null,"(b)"]
[null,null,413,"Silvex  [see Trichlorophenoxy propionic acid]"]
[null,null,414,"Simazine","-Blood ","122-34-9",7.8,35,0.08,0.1,0.1,0.8,"-yes "]
[null,null,415,"Strontium","-Bone","7440-24-6",52000,"*","***","NA","NA","***"]
[null,null,416,"Strychnine","-Mortality ","57-24-9",23,380,0.02,0.3,0.3,0.2]
[null,null,417,"Styrene","-Blood -Liver -Neurological ","100-42-5",3600,23000,3.6,16,16,36]
[null,null,418,"TCDD, 2,3,7,8-  [see Dioxins, as total 2,3,7,8-TCDD equivalents]"]
[null,null,419,"TCE  [see Trichloroethene]"]
[null,null,420,"Temik  [see Aldicarb]"]
[null,null,421,"Terbacil","-Liver -Thyroid ","5902-51-2",920,14000,0.5,14,14,5]
[null,null,422,"Terbufos","-Neurological ","13071-79-9",1.9,29,0.02,1E-3,1E-3,0.2]
[null,null,423,"Terbutryn","-Blood ","886-50-0",88,2200,0.2,0.09,0.09,2]
[null,null,424,"Tetrachlorobenzene, 1,2,4,5-","-Kidney ","95-94-3",12,100,0.5,0.4,0.4,5]
[null,null,425,"Tetrachloroethane, 1,1,1,2-","-Kidney -Liver ","630-20-6",2.9,4.3,0.01,"NA","NA",0.1,"-yes "]
[null,null,426,"Tetrachloroethane, 1,1,2,2-","-Liver ","79-34-5",0.7,1.2,1E-3,0.08,0.08,0.01,"-yes "]
[null,null,427,"Tetrachloroethene  [or PCE]","-Liver ","127-18-4",8.8000000000000007,18,0.03,0.1,0.1,0.3,"-yes "]
[null,null,428,"Tetrachlorophenol, 2,3,4,6-","-Liver ","58-90-2",2100,30000,3.2,7.0000000000000007E-2,7.0000000000000007E-2,32]
[null,null,429,"Tetraethyl dithiopyrophosphate","-Bone Marrow -Neurological ","3689-24-5",35,510,0.1,4.0000000000000002E-4,4.0000000000000002E-4,1]
[null,null,430,"Thallium","-Hair Loss -Liver ","7440-28-0",6.1,150,2.8,9,9,28]
[null,null,431,"Thiobencarb","-Kidney ","28249-77-6",810,16000,2.9,"NA","NA",29]
[null,null,432,"Thiram","-Neurological ","137-26-8",400,7700,1.1000000000000001,5.0000000000000001E-3,5.0000000000000001E-3,11]
[null,null,433,"Tin","-Kidney -Liver ","7440-31-5",47000,880000,"***","NA","NA","***"]
[null,2,434,"Toluene","-Kidney -Liver -Neurological ","108-88-3",7500,60000,0.5,5.6,5.6,5]
[null,null,435,"Toluene diisocyanate, 2,4/2,6- mixture","-Respiratory ","26471-62-5",1.3,15,"NA","NA","NA","NA"]
[null,null,436,"Toluidine, p-",null,"106-49-0",2.2000000000000002,4.5,8.9999999999999998E-4,"NA","NA",8.9999999999999993E-3,"-yes "]
[null,null,438,"Triallate","-Liver -Spleen ","2303-17-5",980,16000,8.4,6,6,84]
[null,null,439,"Tributyltin oxide","-Immunological ","56-35-9",25,570,7.6,0.2,0.2,76]
[null,null,440,"Trichloro-1,2,2-trifluoroethane, 1,1,2-  [or CFC 113]","-Neurological ","76-13-1",18000,96000,11000,"NA","NA",110000]
[null,null,441,"Trichloroacetic acid","-None Specified ",27828,770,8800,0.04,400,400,0.4]
[null,null,442,"Trichlorobenzene, 1,2,3-","-Adrenals ","87-61-6",650,8200,4.5999999999999996,5.6,5.6,46]
[null,null,443,"Trichlorobenzene, 1,2,4-","-Adrenals ","120-82-1",660,8500,5.3,1.7,1.7,53]
[null,null,444,"Trichlorobenzene, 1,3,5-","-None Specified ","108-70-3",260,2300,16,"NA","NA",160]
[null,null,445,"Trichloroethane, 1,1,1-  [or Methyl chloroform]","-None Specified ","71-55-6",730,3900,1.9,2.6,2.6,19]
[null,null,446,"Trichloroethane, 1,1,2-","-Liver ","79-00-5",1.4,2,0.03,0.09,0.09,0.3,"-yes "]
[null,null,448,"Trichlorofluoromethane","-Cardiovascular -Kidney -Respiratory ","75-69-4",270,1500,33,"NA","NA",330]
[null,null,449,"Trichlorophenol, 2,4,5-","-Kidney -Liver ","95-95-4",7700,130000,7.0000000000000007E-2,1.5,1.5,0.7]
[null,null,450,"Trichlorophenol, 2,4,6-",null,32296,70,230,0.06,0.1,0.1,0.6,"-yes "]
[null,null,451,"Trichlorophenoxy acetic acid, 2,4,5-","-Kidney ","93-76-5",690,9500,0.4,0.8,0.8,4]
[null,null,452,"Trichlorophenoxy propionic acid, 2, (2, 4, 5-)  [or Silvex]","-Liver ","93-72-1",660,14000,5.4,"NA","NA",54]
[null,null,453,"Trichloropropane, 1,1,2-","-Kidney -Liver -Thyroid ","598-77-6",76,460,0.3,"NA","NA",3]
[null,null,454,"Trichloropropane, 1,2,3-","-Kidney -Liver ","96-18-4",0.06,0.1,1E-4,1E-3,1E-3,1E-3,"-yes "]
[null,null,455,"Trichloropropene, 1,2,3-","-Eye ","96-19-5",18,98,0.4,"NA","NA",4]
[null,null,456,"Triethylamine","-Nasal ","121-44-8",41,270,"NA","NA","NA","NA"]
[null,null,457,"Trifluralin","-Blood -Liver ",-115895,92,280,3.6,0.2,0.2,36,"-yes "]
[null,null,458,"Trimethyl phosphate",null,"512-56-1",19,57,4.0000000000000001E-3,"NA","NA",0.04,"-yes "]
[null,null,459,"Trimethylbenzene, 1,2,3-","-None Specified ","526-73-8",18,96,0.3,"NA","NA",3]
[null,null,460,"Trimethylbenzene, 1,2,4-","-None Specified ","95-63-6",18,95,0.3,7.2,7.2,3]
[null,null,461,"Trimethylbenzene, 1,3,5-","-None Specified ","108-67-8",15,80,0.3,6.7,6.7,3]
[null,null,462,"Trinitrobenzene, 1,3,5-","-Blood -Spleen ","99-35-4",2000,26000,1,0.09,0.09,10]
[null,null,463,"Trinitrophenylmethylnitramine","-Kidney -Liver -Spleen ","479-45-8",790,15000,1.4,"NA","NA",14]
[null,null,464,"Trinitrotoluene, 2,4,6-","-Liver ","118-96-7",28,97,6.0000000000000001E-3,0.3,0.3,0.06,"-yes "]
[null,null,465,"Trithion  [see Carbophenothion]"]
[null,9,466,"TRPH","-Multiple Endpoints Mixed Contaminants","NOCAS",460,2700,340,340,340,3400]
[null,null,467,"Uranium, soluble salts","-Kidney ","7440-61-1",110,820,"***","NA","NA","***"]
[null,null,468,"Vanadium","-Hair Loss ","7440-62-2","67**",10000,980,"NA","NA",9800,null,"(b)"]
[null,null,469,"Vernam","-Body Weight ","1929-77-7",51,510,0.1,0.2,0.2,1]
[null,null,470,"Vinyl acetate","-Kidney -Nasal ",-654389,320,1700,0.4,3,3,4]
[null,null,471,"Vinyl chloride","-Liver ",27398,0.2,0.8,7.0000000000000001E-3,0.02,0.02,7.0000000000000007E-2,"-yes ","(i)"]
[null,4,472,"Xylenes, total","-Neurological ","1330-20-7",130,700,0.2,3.9,3.9,2]
[null,null,473,"Zinc","-Blood ","7440-66-6",26000,630000,"***","NA","***","***",null,"(b,c)"]
[null,null,474,"Zinc phosphide","-Body Weight ","1314-84-7",26,660,"***","NA","NA","***"]
[null,null,475,"Zineb","-Thyroid ","12122-67-7",4100,82000,19,0.7,0.7,190]
[]
[null,null,null,"Footnotes:"]
[null,null,null,"Values expressed on a dry weight basis and rounded to two significant figures if >1 and to one significant figure if <1."]
[null,null,null,"† = These default Target Organ(s)/Systems or Effects are those reported to occur at the doses used to derive the reference dose.  Non-default Target Organ(s)/Systems or Effects may be justified through a detailed toxicological analysis of the chemicals present at a specific site."]
[null,null,null,"*  Contaminant is not a health concern for this exposure scenario."]
[null,null,null,"**  Direct exposure value based on acute toxicity considerations. This criterion is applicable in scenarios where children might be exposed to soils (e.g. residences, schools, playgrounds)"]
[null,null,null,"***  Leachability values may be derived using the SPLP Test to calculate site-specific SCTLs or may be determined using TCLP in the event oily wastes are present."]
[null,null,null,"# = Site concentrations for carcinogenic polycyclic aromatic hydrocarbons must be converted to Benzo(a)pyrene equivalents before comparison with the appropriate direct exposure SCTL for Benzo(a)pyrene using the approach described in the  February 2005 'Final Technical Report: Development of Cleanup Target Levels (CTLs) for Chapter 62-777, F.A.C.'"]
[null,null,null,"(a) = See discussion on the development of SCTLs for Ammonia in the February 2005 'Final Technical Report: Development of Cleanup Target Levels (CTLs) for Chapter 62-777, F.A.C.'"]
[null,null,null,"(b) = Leachability values derived from USEPA Soil Screening Guidance (1996).  These values were derived assuming soil pH 6.8. These leachability values are dependent upon both the metal concentration in soil and soil characteristics.  Thus, if site-specific soil characteristics are different than the defaults, these leachability values may not apply.  If this is the case, site-specific leachability values should be derived using methods such as  TCLP or SPLP. "]
[null,null,null,"(c) = Phytotoxicity must be considered."]
[null,null,null,"(d) = Residential direct exposure value from USEPA Revised Interm Soil Guidance for CERCLA Sites and RCRA Corrective Action Facilities.  OSWER Directive 9355.4-12 (1994).  The industrial direct exposure value was derived using methodologies outlined in USEPA 'Recommendations of the Technical Review Workgroup for Lead for an Interim Approach to Assessing Risks Associated with Adult Exposures to Lead in Soil', December 1996; and in 'Blood Lead Concentrations of U.S. Adult Females: Summary Statistics from Phases 1 and 2 of the NHANES III', March 2002."]
[null,null,null,"(e) = The SCTL for Dioxins, as total 2,3,7,8-TCDD equivalents should be compared to the total dioxin equivalents for chlorinated dioxin and dibenzofuran congeners using the approach described in the  February 2005 'Final Technical Report: Development of Cleanup Target Levels (CTLs) for Chapter 62-777, F.A.C.'"]
[null,null,null,"(f) = The common name BHC is a misnomer for hexachlorocyclohexane."]
[null,null,null,"(g) = Unless concentrations for both chromium III and VI are known, total chromium concentrations should by compared with direct exposure SCTLs for chromium VI."]
[null,null,null,"(h) = Residential chronic SCTL for cadmium should be used as a not-to-exceed value because the residential chronic SCTL for cadmium is indistinguishable from the SCTL based on acute toxicity."]
[null,null,null,"(i) = Residential chronic SCTL for vinyl chloride calculated by adding prorated and non-prorated risks, as discussed in the  February 2005 'Final Technical Report: Development of Cleanup Target Levels (CTLs) for Chapter 62-777, F.A.C.'"]
[null,null,null,"(j) = 12789-03-6 or 57-74-9"]
[null,null,null,"Note: If more than one contaminant is present at a site, the direct exposure values are to be modified, if necessary, such that the sum of the hazard quotients for non-carcinogenic contaminants affecting the same organ(s) is 1 or less.  For carcinogens, the direct exposure values shall be modified such that the cumulative lifetime risk level posed by the contaminants is 1.0E-06, as presented in Appendix D 'Draft Technical Report: Development of Cleanup Target Levels (CTLs) for Chapter 62-777, F.A.C.', dated February 2005."]
[null,null,null,"None Specified = Target organ(s) not determined at time of rule adoption."]
[null,null,null,"NA = Not available at time of rule adoption."]

{"sheet":"Organoleptics","index":7,"n_rows":49,"n_cols":7,"rows_kept":49,"cut":false,"hidden":false,"merged":[]}
[null,"Table A from 785"]
["777 Water Table Cross Reference)","Contaminant","CAS#","Chapter 62-777, F.A.C. (ug/L)","Based on","Health-Based GCTL (ug/L)","Target Organ/System or Effect"]
[{"$f":"VLOOKUP(B3,WaterCOCs,1,FALSE)","v":"Acenaphthene"},"Acenaphthene","83-32-9",20,"Organoleptic",420,"-Liver"]
[{"$f":"VLOOKUP(B4,WaterCOCs,1,FALSE)","v":"Aluminum"},"Aluminum","7429-90-5",200,"Secondary Standard",7000,"-Body Weight"]
["Biphenyl, 1,1-  [or Diphenyl]","Biphenyl, 1,1-  [or Diphenyl]","92-52-4",0.5,"Organoleptic",350,"-Kidney"]
["Butyl acetate, n-","Butyl acetate, n-","123-86-4",43,"Organoleptic","NA","-None Specified"]
["Chloride","Chloride","16887-00-6",250000,"Secondary Standard","NA","-None Specified"]
["Chlorophenol, 3-","Chlorophenol, 3-","108-43-0",0.1,"Organoleptic",35,"-Reproductive"]
["Chlorophenol, 4-","Chlorophenol, 4-","106-48-9",0.1,"Organoleptic",35,"- Reproductive"]
["Chloropicrin","Chloropicrin",27913,7.3,"Organoleptic","NA","-None Specified"]
["Copper","Copper","7440-50-8",1000,"Secondary Standard","280(a)","-Gastrointestinal"]
["Cumene  [or Isopropyl benzene]","Cumene  [or Isopropyl benzene]","98-82-8",0.8,"Organoleptic",700,"-Adrenals -Kidney"]
["Dichlorophenol, 2,3-","Dichlorophenol, 2,3-","576-24-9",0.04,"Organoleptic",21,"- Immunological"]
["Dichlorophenol, 2,4-","Dichlorophenol, 2,4-","120-83-2",0.3,"Organoleptic",21,"-Immunological"]
["Dichlorophenol, 2,5-","Dichlorophenol, 2,5-","583-78-8",0.5,"Organoleptic",21,"- Immunological"]
["Dichlorophenol, 2,6-","Dichlorophenol, 2,6-","87-65-0",0.2,"Organoleptic",21,"- Immunological"]
["Dichlorophenol, 3,4-","Dichlorophenol, 3,4-","95-77-2",0.3,"Organoleptic",21,"- Immunological"]
["Ethanol","Ethanol","64-17-5",10000,"Organoleptic",400000,"-Developmental"]
["Ethyl acrylate","Ethyl acrylate","140-88-5",0.4,"Organoleptic",0.7,"-Carcinogen"]
["Ethyl ether","Ethyl ether","60-29-7",750,"Organoleptic",1400,"-Body Weight"]
["Ethylbenzene","Ethylbenzene","100-41-4",30,"Secondary Standard","700(700)","-Developmental -Kidney -Liver"]
["Fluoride","Fluoride","7782-41-4",2000,"Secondary Standard","420(a)","-Teeth mottling"]
["Formaldehyde","Formaldehyde","50-00-0",600,"Organoleptic",1400,"-Body Weight -Carcinogen -Gastrointestinal"]
["Hexane, n-","Hexane, n-","110-54-3",6,"Organoleptic",420,"-Neurological"]
["Iron","Iron","7439-89-6",300,"Secondary Standard",4200,"-Gastrointestinal"]
["Manganese","Manganese","7439-96-5",50,"Secondary Standard",330,"-Neurological"]
["Methyl acetate","Methyl acetate","79-20-9",3000,"Organoleptic",7000,"-Liver"]
["Methyl methacrylate","Methyl methacrylate","80-62-6",25,"Organoleptic",9800,"-None specified"]
["Methyl tert-butyl ether  [or MTBE]","Methyl tert-butyl ether  [or MTBE]","1634-04-4",20,"Organoleptic","NA","-Eye -Kidney -Liver"]
["Phenol","Phenol","108-95-2",10,"Organoleptic",2100,"-Developmental"]
["Silver","Silver","7440-22-4",100,"Secondary Standard","35(a)","-Skin"]
["Sulfate","Sulfate","14808-79-8",250000,"Secondary Standard","NA","-None Specified"]
["Toluene","Toluene","108-88-3",40,"Secondary Standard","1400(1000) (b)","-Kidney -Liver -Neurological"]
["Total dissolved solids  [or TDS]","Total dissolved solids  [or TDS]","C-010",500000,"Secondary Standard","NA","-None Specified"]
["Trichlorophenol, 2,4,5-","Trichlorophenol, 2,4,5-","95-95-4",1,"Organoleptic",700,"-Kidney -Liver"]
["Trimethylbenzene, 1,2,3-","Trimethylbenzene, 1,2,3-","526-73-8",10,"Organoleptic",350,"-None Specified"]
["Trimethylbenzene, 1,2,4-","Trimethylbenzene, 1,2,4-","95-63-6",10,"Organoleptic",350,"-None Specified"]
["Trimethylbenzene, 1,3,5-","Trimethylbenzene, 1,3,5-","108-67-8",10,"Organoleptic",350,"-None Specified"]
["Vinyl acetate","Vinyl acetate","108-05-4",88,"Organoleptic",7000,"-Body Weight -Kidney -Nasal"]
["Xylenes, total","Xylenes, total","1330-20-7",20,"Secondary Standard","1400(10000) (c)","-Body Weight -Mortality -Neurological"]
["Zinc","Zinc","7440-66-6",5000,"Secondary Standard","2100(a)","-Blood"]
[]
[]
[null,"Note: GCTLs based organoleptic considerations are lower than the health-based values."]
[null,"Table A in Chapter 62-785, F.A.C., was duplicated in Table 7 of the technical report referenced in this chapter.  Table A is for use only when making decisions regarding subparagraph 62-785.680(1)(c)2., F.A.C."]
[null,"NA = Not available at time of rule adoption."]
[null,"(a) = Health-based GCTL lower than the Secondary Standard.  The Secondary Standard shall be used for this contaminant."]
[null,"(b) = Health-based GCTL higher than Primary Standard (value).  The Primary Standard shall be used for this contaminant."]
[null,"(c) = Health-based GCTL lower than Primary Standard (value).  The Primary Standard shall be used for this contaminant."]